Workbook

Sheet Main
B10: 2021-02-03
B12: Sheet No. | C12: Template Name | D12: Summary
B13: 1 | C13: Future Intra | D13: For Intraday trading in F&O segment
B14: 2 | C14: Cash Intra | D14: For Intraday trading in cash market segment
B15: 3 | C15: Mid-cap Intra | D15: For Intraday trading in Mid-cap stocks
B16: 4 | C16: Bulk Deals | D16: Reveals Bulk Deals carried on NSE & BSE
B17: 5 | C17: Call Tracker
K27: `

Sheet Future Intra
M5: Back to Main Page
A6: FOR INTRA DAY TRADING | L6: =Main!B10 -> 2021-02-03
A9: Sr.no | B9: Sector | C9: Scrip | D9: Expiry Date | E9: CLOSE RATE | F9: Pivot Point | G9: Supports | J9: Resistances
B10: Sector | E10: Point | F10: Point | G10: S1 | H10: S2 | I10: S3 | J10: R1 | K10: R2 | L10: R3 | M10: HIGH | N10: LOW | O10: OI | P10: % Change in OI
A11: 1 | B11: Index | C11: BANKNIFTY | D11: 2021-02-25 | E11: 34392.70 | F11: 34244.73 | G11: 33748.97 | H11: 33105.23 | I11: 32609.47 | J11: 34888.47 | K11: 35384.23 | L11: 36027.97 | M11: 34740.5 | N11: 33601 | O11: 1754600 | P11: -10.78%
A12: 2 | B12: Index | C12: NIFTY | D12: 2021-02-25 | E12: 14696.00 | F12: 14647.75 | G12: 14528.25 | H12: 14360.50 | I12: 14241.00 | J12: 14815.50 | K12: 14935.00 | L12: 15102.75 | M12: 14767.25 | N12: 14480 | O12: 10707075 | P12: -1.02%
A13: 3 | B13: Index | C13: FINNIFTY | D13: 2021-02-25 | E13: 16221.30 | F13: 16189.18 | G13: 15933.12 | H13: 15644.93 | I13: 15388.87 | J13: 16477.37 | K13: 16733.43 | L13: 17021.62 | M13: 16445.25 | N13: 15901 | O13: 41160 | P13: -3.74%
A14: 4 | B14: Others | C14: AARTIIND | D14: 2021-02-25 | E14: 1189.20 | F14: 1180.08 | G14: 1166.17 | H14: 1143.13 | I14: 1129.22 | J14: 1203.12 | K14: 1217.03 | L14: 1240.07 | M14: 1194 | N14: 1157.05 | O14: 512125 | P14: 2.29%
A15: 5 | B15: Cement | C15: ACC | D15: 2021-02-25 | E15: 1773.50 | F15: 1757.70 | G15: 1720.85 | H15: 1668.20 | I15: 1631.35 | J15: 1810.35 | K15: 1847.20 | L15: 1899.85 | M15: 1794.55 | N15: 1705.05 | O15: 2732500 | P15: 4.47%
A16: 6 | B16: Others | C16: ADANIENT | D16: 2021-02-25 | E16: 567.25 | F16: 560.23 | G16: 550.52 | H16: 533.78 | I16: 524.07 | J16: 576.97 | K16: 586.68 | L16: 603.42 | M16: 569.95 | N16: 543.5 | O16: 18494000 | P16: -0.21%
A17: 7 | B17: Others | C17: ADANIPORTS | D17: 2021-02-25 | E17: 554.40 | F17: 551.43 | G17: 545.22 | H17: 536.03 | I17: 529.82 | J17: 560.62 | K17: 566.83 | L17: 576.02 | M17: 557.65 | N17: 542.25 | O17: 36570000 | P17: 3.63%
A18: 8 | B18: Automobile | C18: AMARAJABAT | D18: 2021-02-25 | E18: 942.40 | F18: 951.60 | G18: 930.80 | H18: 919.20 | I18: 898.40 | J18: 963.20 | K18: 984.00 | L18: 995.60 | M18: 972.4 | N18: 940 | O18: 1857000 | P18: 14.00%
A19: 9 | B19: Cement | C19: AMBUJACEM | D19: 2021-02-25 | E19: 276.90 | F19: 273.47 | G19: 265.93 | H19: 254.97 | I19: 247.43 | J19: 284.43 | K19: 291.97 | L19: 302.93 | M19: 281 | N19: 262.5 | O19: 21006000 | P19: 0.72%
A20: 10 | B20: Others | C20: APOLLOHOSP | D20: 2021-02-25 | E20: 2720.50 | F20: 2719.30 | G20: 2688.60 | H20: 2656.70 | I20: 2626.00 | J20: 2751.20 | K20: 2781.90 | L20: 2813.80 | M20: 2750 | N20: 2687.4 | O20: 1420000 | P20: 7.25%
A21: 11 | B21: Automobile | C21: APOLLOTYRE | D21: 2021-02-25 | E21: 228.90 | F21: 224.88 | G21: 219.82 | H21: 210.73 | I21: 205.67 | J21: 233.97 | K21: 239.03 | L21: 248.12 | M21: 229.95 | N21: 215.8 | O21: 18180000 | P21: 3.30%
A22: 12 | B22: Automobile | C22: ASHOKLEY | D22: 2021-02-25 | E22: 133.35 | F22: 130.60 | G22: 126.55 | H22: 119.75 | I22: 115.70 | J22: 137.40 | K22: 141.45 | L22: 148.25 | M22: 134.65 | N22: 123.8 | O22: 38232000 | P22: 12.44%
A23: 13 | B23: FMCG | C23: ASIANPAINT | D23: 2021-02-25 | E23: 2470.35 | F23: 2476.10 | G23: 2425.55 | H23: 2380.75 | I23: 2330.20 | J23: 2520.90 | K23: 2571.45 | L23: 2616.25 | M23: 2526.65 | N23: 2431.3 | O23: 5514600 | P23: 4.43%
A24: 14 | B24: Pharma | C24: AUROPHARMA | D24: 2021-02-25 | E24: 926.40 | F24: 928.17 | G24: 912.78 | H24: 899.17 | I24: 883.78 | J24: 941.78 | K24: 957.17 | L24: 970.78 | M24: 943.55 | N24: 914.55 | O24: 8554000 | P24: 9.36%
A25: 15 | B25: Banking | C25: AXISBANK | D25: 2021-02-25 | E25: 719.20 | F25: 725.08 | G25: 702.57 | H25: 685.93 | I25: 663.42 | J25: 741.72 | K25: 764.23 | L25: 780.87 | M25: 747.6 | N25: 708.45 | O25: 45157200 | P25: -4.09%
A26: 16 | B26: Automobile | C26: BAJAJ-AUTO | D26: 2021-02-25 | E26: 4211.85 | F26: 4210.62 | G26: 4137.23 | H26: 4062.62 | I26: 3989.23 | J26: 4285.23 | K26: 4358.62 | L26: 4433.23 | M26: 4284 | N26: 4136 | O26: 1769500 | P26: -0.66%
A27: 17 | B27: Finance | C27: BAJAJFINSV | D27: 2021-02-25 | E27: 9541.90 | F27: 9647.12 | G27: 9259.78 | H27: 8977.67 | I27: 8590.33 | J27: 9929.23 | K27: 10316.57 | L27: 10598.68 | M27: 10034.45 | N27: 9365 | O27: 700625 | P27: -1.04%
A28: 18 | B28: Finance | C28: BAJFINANCE | D28: 2021-02-25 | E28: 5185.80 | F28: 5217.22 | G28: 5085.03 | H28: 4984.27 | I28: 4852.08 | J28: 5317.98 | K28: 5450.17 | L28: 5550.93 | M28: 5349.4 | N28: 5116.45 | O28: 3790000 | P28: -5.80%
A29: 19 | B29: Automobile | C29: BALKRISIND | D29: 2021-02-25 | E29: 1684.50 | F29: 1679.83 | G29: 1649.67 | H29: 1614.83 | I29: 1584.67 | J29: 1714.67 | K29: 1744.83 | L29: 1779.67 | M29: 1710 | N29: 1645 | O29: 1367600 | P29: 7.99%
A30: 20 | B30: Banking | C30: BANDHANBNK | D30: 2021-02-25 | E30: 338.45 | F30: 337.28 | G30: 329.82 | H30: 321.18 | I30: 313.72 | J30: 345.92 | K30: 353.38 | L30: 362.02 | M30: 344.75 | N30: 328.65 | O30: 24926400 | P30: 1.71%
A31: 21 | B31: Banking | C31: BANKBARODA | D31: 2021-02-25 | E31: 74.95 | F31: 75.22 | G31: 73.13 | H31: 71.32 | I31: 69.23 | J31: 77.03 | K31: 79.12 | L31: 80.93 | M31: 77.3 | N31: 73.4 | O31: 68339700 | P31: -1.82%
A32: 22 | B32: FMCG | C32: BATAINDIA | D32: 2021-02-25 | E32: 1550.20 | F32: 1548.73 | G32: 1529.02 | H32: 1507.83 | I32: 1488.12 | J32: 1569.92 | K32: 1589.63 | L32: 1610.82 | M32: 1568.45 | N32: 1527.55 | O32: 1035650 | P32: 11.03%
A33: 23 | B33: Capital_Goods | C33: BEL | D33: 2021-02-25 | E33: 132.95 | F33: 133.07 | G33: 130.23 | H33: 127.52 | I33: 124.68 | J33: 135.78 | K33: 138.62 | L33: 141.33 | M33: 135.9 | N33: 130.35 | O33: 30369600 | P33: 1.47%
A34: 24 | B34: FMCG | C34: BERGEPAINT | D34: 2021-02-25 | E34: 728.00 | F34: 733.53 | G34: 718.52 | H34: 709.03 | I34: 694.02 | J34: 743.02 | K34: 758.03 | L34: 767.52 | M34: 748.55 | N34: 724.05 | O34: 3104200 | P34: 1.22%
A35: 25 | B35: Automobile | C35: BHARATFORG | D35: 2021-02-25 | E35: 651.60 | F35: 641.83 | G35: 629.17 | H35: 606.73 | I35: 594.07 | J35: 664.27 | K35: 676.93 | L35: 699.37 | M35: 654.5 | N35: 619.4 | O35: 5677500 | P35: 7.47%
A36: 26 | B36: Telecom | C36: BHARTIARTL | D36: 2021-02-25 | E36: 603.35 | F36: 598.37 | G36: 587.23 | H36: 571.12 | I36: 559.98 | J36: 614.48 | K36: 625.62 | L36: 641.73 | M36: 609.5 | N36: 582.25 | O36: 97910496 | P36: 4.23%
A37: 27 | B37: Capital_Goods | C37: BHEL | D37: 2021-02-25 | E37: 39.15 | F37: 39.18 | G37: 38.22 | H37: 37.28 | I37: 36.32 | J37: 40.12 | K37: 41.08 | L37: 42.02 | M37: 40.15 | N37: 38.25 | O37: 104979000 | P37: 3.18%
A38: 28 | B38: Pharma | C38: BIOCON | D38: 2021-02-25 | E38: 393.20 | F38: 389.40 | G38: 383.80 | H38: 374.40 | I38: 368.80 | J38: 398.80 | K38: 404.40 | L38: 413.80 | M38: 395 | N38: 380 | O38: 18107900 | P38: -0.44%
A39: 29 | B39: Automobile | C39: BOSCHLTD | D39: 2021-02-25 | E39: 16636.05 | F39: 16545.53 | G39: 16292.07 | H39: 15948.08 | I39: 15694.62 | J39: 16889.52 | K39: 17142.98 | L39: 17486.97 | M39: 16799 | N39: 16201.55 | O39: 85800 | P39: 9.65%
A40: 30 | B40: Oil_Gas | C40: BPCL | D40: 2021-02-25 | E40: 403.30 | F40: 400.35 | G40: 393.95 | H40: 384.60 | I40: 378.20 | J40: 409.70 | K40: 416.10 | L40: 425.45 | M40: 406.75 | N40: 391 | O40: 23434200 | P40: -5.90%
A41: 31 | B41: FMCG | C41: BRITANNIA | D41: 2021-02-25 | E41: 3521.75 | F41: 3528.58 | G41: 3495.17 | H41: 3468.58 | I41: 3435.17 | J41: 3555.17 | K41: 3588.58 | L41: 3615.17 | M41: 3562 | N41: 3502 | O41: 2124800 | P41: 6.48%
A42: 32 | B42: Pharma | C42: CADILAHC | D42: 2021-02-25 | E42: 470.90 | F42: 466.63 | G42: 459.77 | H42: 448.63 | I42: 441.77 | J42: 477.77 | K42: 484.63 | L42: 495.77 | M42: 473.5 | N42: 455.5 | O42: 11070400 | P42: 6.52%
A43: 33 | B43: Banking | C43: CANBK | D43: 2021-02-25 | E43: 147.50 | F43: 146.90 | G43: 142.10 | H43: 136.70 | I43: 131.90 | J43: 152.30 | K43: 157.10 | L43: 162.50 | M43: 151.7 | N43: 141.5 | O43: 58860000 | P43: -4.43%
A44: 34 | B44: Finance | C44: CHOLAFIN | D44: 2021-02-25 | E44: 440.55 | F44: 450.93 | G44: 425.12 | H44: 409.68 | I44: 383.87 | J44: 466.37 | K44: 492.18 | L44: 507.62 | M44: 476.75 | N44: 435.5 | O44: 5642500 | P44: 8.82%
A45: 35 | B45: Pharma | C45: CIPLA | D45: 2021-02-25 | E45: 825.00 | F45: 819.38 | G45: 810.12 | H45: 795.23 | I45: 785.97 | J45: 834.27 | K45: 843.53 | L45: 858.42 | M45: 828.65 | N45: 804.5 | O45: 13107900 | P45: -4.81%
A46: 36 | B46: Others | C46: COALINDIA | D46: 2021-02-25 | E46: 131.20 | F46: 131.38 | G46: 129.52 | H46: 127.83 | I46: 125.97 | J46: 133.07 | K46: 134.93 | L46: 136.62 | M46: 133.25 | N46: 129.7 | O46: 37556400 | P46: 2.16%
A47: 37 | B47: Technology | C47: COFORGE | D47: 2021-02-25 | E47: 2458.00 | F47: 2450.02 | G47: 2398.03 | H47: 2338.07 | I47: 2286.08 | J47: 2509.98 | K47: 2561.97 | L47: 2621.93 | M47: 2502 | N47: 2390.05 | O47: 517500 | P47: 1.47%
A48: 38 | B48: FMCG | C48: COLPAL | D48: 2021-02-25 | E48: 1622.95 | F48: 1629.37 | G48: 1603.98 | H48: 1585.02 | I48: 1559.63 | J48: 1648.33 | K48: 1673.72 | L48: 1692.68 | M48: 1654.75 | N48: 1610.4 | O48: 3274600 | P48: 0.52%
A49: 39 | B49: Others | C49: CONCOR | D49: 2021-02-25 | E49: 458.85 | F49: 458.77 | G49: 452.88 | H49: 446.92 | I49: 441.03 | J49: 464.73 | K49: 470.62 | L49: 476.58 | M49: 464.65 | N49: 452.8 | O49: 7480518 | P49: 3.10%
A50: 40 | B50: Capital_Goods | C50: CUMMINSIND | D50: 2021-02-25 | E50: 748.40 | F50: 757.35 | G50: 719.70 | H50: 691.00 | I50: 653.35 | J50: 786.05 | K50: 823.70 | L50: 852.40 | M50: 795 | N50: 728.65 | O50: 1478400 | P50: -9.28%
A51: 41 | B51: FMCG | C51: DABUR | D51: 2021-02-25 | E51: 528.05 | F51: 530.47 | G51: 523.88 | H51: 519.72 | I51: 513.13 | J51: 534.63 | K51: 541.22 | L51: 545.38 | M51: 537.05 | N51: 526.3 | O51: 14461250 | P51: -0.26%
A52: 42 | B52: Pharma | C52: DIVISLAB | D52: 2021-02-25 | E52: 3557.50 | F52: 3532.20 | G52: 3483.55 | H52: 3409.60 | I52: 3360.95 | J52: 3606.15 | K52: 3654.80 | L52: 3728.75 | M52: 3580.85 | N52: 3458.25 | O52: 3336800 | P52: -1.99%
A53: 43 | B53: Realty | C53: DLF | D53: 2021-02-25 | E53: 296.20 | F53: 291.97 | G53: 283.53 | H53: 270.87 | I53: 262.43 | J53: 304.63 | K53: 313.07 | L53: 325.73 | M53: 300.4 | N53: 279.3 | O53: 27960900 | P53: 9.90%
A54: 44 | B54: Pharma | C54: DRREDDY | D54: 2021-02-25 | E54: 4510.25 | F54: 4492.03 | G54: 4425.92 | H54: 4341.58 | I54: 4275.47 | J54: 4576.37 | K54: 4642.48 | L54: 4726.82 | M54: 4558.15 | N54: 4407.7 | O54: 3448125 | P54: 12.25%
A55: 45 | B55: Automobile | C55: EICHERMOT | D55: 2021-02-25 | E55: 2914.50 | F55: 2892.45 | G55: 2856.35 | H55: 2798.20 | I55: 2762.10 | J55: 2950.60 | K55: 2986.70 | L55: 3044.85 | M55: 2928.55 | N55: 2834.3 | O55: 2293900 | P55: 4.45%
A56: 46 | B56: Automobile | C56: ESCORTS | D56: 2021-02-25 | E56: 1343.20 | F56: 1330.42 | G56: 1297.83 | H56: 1252.47 | I56: 1219.88 | J56: 1375.78 | K56: 1408.37 | L56: 1453.73 | M56: 1363 | N56: 1285.05 | O56: 3520000 | P56: 1.67%
A57: 47 | B57: Automobile | C57: EXIDEIND | D57: 2021-02-25 | E57: 200.75 | F57: 199.45 | G57: 197.10 | H57: 193.45 | I57: 191.10 | J57: 203.10 | K57: 205.45 | L57: 209.10 | M57: 201.8 | N57: 195.8 | O57: 10814400 | P57: -7.48%
A58: 48 | B58: Banking | C58: FEDERALBNK | D58: 2021-02-25 | E58: 80.80 | F58: 80.40 | G58: 78.50 | H58: 76.20 | I58: 74.30 | J58: 82.70 | K58: 84.60 | L58: 86.90 | M58: 82.3 | N58: 78.1 | O58: 85740000 | P58: -0.09%
A59: 49 | B59: Oil_Gas | C59: GAIL | D59: 2021-02-25 | E59: 130.75 | F59: 131.03 | G59: 129.17 | H59: 127.58 | I59: 125.72 | J59: 132.62 | K59: 134.48 | L59: 136.07 | M59: 132.9 | N59: 129.45 | O59: 28834700 | P59: 10.19%
A60: 50 | B60: Pharma | C60: GLENMARK | D60: 2021-02-25 | E60: 490.35 | F60: 488.78 | G60: 482.87 | H60: 475.38 | I60: 469.47 | J60: 496.27 | K60: 502.18 | L60: 509.67 | M60: 494.7 | N60: 481.3 | O60: 4363100 | P60: 0.66%
A61: 51 | B61: Infrastructure | C61: GMRINFRA | D61: 2021-02-25 | E61: 25.05 | F61: 24.95 | G61: 24.55 | H61: 24.05 | I61: 23.65 | J61: 25.45 | K61: 25.85 | L61: 26.35 | M61: 25.35 | N61: 24.45 | O61: 146790000 | P61: 3.28%
A62: 52 | B62: FMCG | C62: GODREJCP | D62: 2021-02-25 | E62: 750.45 | F62: 756.62 | G62: 741.28 | H62: 732.12 | I62: 716.78 | J62: 765.78 | K62: 781.12 | L62: 790.28 | M62: 771.95 | N62: 747.45 | O62: 3263000 | P62: 2.84%
A63: 53 | B63: Others | C63: GODREJPROP | D63: 2021-02-25 | E63: 1406.75 | F63: 1383.92 | G63: 1358.83 | H63: 1310.92 | I63: 1285.83 | J63: 1431.83 | K63: 1456.92 | L63: 1504.83 | M63: 1409 | N63: 1336 | O63: 1599000 | P63: -1.84%
A64: 54 | B64: Cement | C64: GRASIM | D64: 2021-02-25 | E64: 1192.95 | F64: 1182.00 | G64: 1149.55 | H64: 1106.15 | I64: 1073.70 | J64: 1225.40 | K64: 1257.85 | L64: 1301.25 | M64: 1214.45 | N64: 1138.6 | O64: 17603500 | P64: -0.52%
A65: 55 | B65: Others | C65: HAVELLS | D65: 2021-02-25 | E65: 1133.00 | F65: 1118.75 | G65: 1088.60 | H65: 1044.20 | I65: 1014.05 | J65: 1163.15 | K65: 1193.30 | L65: 1237.70 | M65: 1148.9 | N65: 1074.35 | O65: 4148000 | P65: -9.29%
A66: 56 | B66: Technology | C66: HCLTECH | D66: 2021-02-25 | E66: 957.40 | F66: 953.75 | G66: 941.65 | H66: 925.90 | I66: 913.80 | J66: 969.50 | K66: 981.60 | L66: 997.35 | M66: 965.85 | N66: 938 | O66: 20129200 | P66: -4.00%
A67: 57 | B67: Finance | C67: HDFC | D67: 2021-02-25 | E67: 2666.10 | F67: 2686.00 | G67: 2602.10 | H67: 2538.10 | I67: 2454.20 | J67: 2750.00 | K67: 2833.90 | L67: 2897.90 | M67: 2769.9 | N67: 2622 | O67: 17995500 | P67: -2.62%
A68: 58 | B68: Finance | C68: HDFCAMC | D68: 2021-02-25 | E68: 2992.95 | F68: 3000.98 | G68: 2956.97 | H68: 2920.98 | I68: 2876.97 | J68: 3036.97 | K68: 3080.98 | L68: 3116.97 | M68: 3045 | N68: 2965 | O68: 465400 | P68: 1.39%
A69: 59 | B69: Banking | C69: HDFCBANK | D69: 2021-02-25 | E69: 1565.55 | F69: 1549.67 | G69: 1518.13 | H69: 1470.72 | I69: 1439.18 | J69: 1597.08 | K69: 1628.62 | L69: 1676.03 | M69: 1581.2 | N69: 1502.25 | O69: 25522200 | P69: -3.76%
A70: 60 | B70: Finance | C70: HDFCLIFE | D70: 2021-02-25 | E70: 684.95 | F70: 692.02 | G70: 670.78 | H70: 656.62 | I70: 635.38 | J70: 706.18 | K70: 727.42 | L70: 741.58 | M70: 713.25 | N70: 677.85 | O70: 8980400 | P70: 17.70%
A71: 61 | B71: Automobile | C71: HEROMOTOCO | D71: 2021-02-25 | E71: 3249.20 | F71: 3261.08 | G71: 3191.17 | H71: 3133.13 | I71: 3063.22 | J71: 3319.12 | K71: 3389.03 | L71: 3447.07 | M71: 3331 | N71: 3203.05 | O71: 3489900 | P71: 8.62%
A72: 62 | B72: Metals | C72: HINDALCO | D72: 2021-02-25 | E72: 255.95 | F72: 252.95 | G72: 247.90 | H72: 239.85 | I72: 234.80 | J72: 261.00 | K72: 266.05 | L72: 274.10 | M72: 258 | N72: 244.9 | O72: 23551100 | P72: 0.24%
A73: 63 | B73: Oil_Gas | C73: HINDPETRO | D73: 2021-02-25 | E73: 223.75 | F73: 223.70 | G73: 220.40 | H73: 217.05 | I73: 213.75 | J73: 227.05 | K73: 230.35 | L73: 233.70 | M73: 227 | N73: 220.35 | O73: 29006100 | P73: 6.16%
A74: 64 | B74: FMCG | C74: HINDUNILVR | D74: 2021-02-25 | E74: 2244.15 | F74: 2248.52 | G74: 2217.33 | H74: 2190.52 | I74: 2159.33 | J74: 2275.33 | K74: 2306.52 | L74: 2333.33 | M74: 2279.7 | N74: 2221.7 | O74: 7048500 | P74: 13.57%
A75: 65 | B75: Finance | C75: IBULHSGFIN | D75: 2021-02-25 | E75: 214.65 | F75: 214.28 | G75: 208.97 | H75: 203.28 | I75: 197.97 | J75: 219.97 | K75: 225.28 | L75: 230.97 | M75: 219.6 | N75: 208.6 | O75: 29295000 | P75: 6.88%
A76: 66 | B76: Banking | C76: ICICIBANK | D76: 2021-02-25 | E76: 620.85 | F76: 616.65 | G76: 606.90 | H76: 592.95 | I76: 583.20 | J76: 630.60 | K76: 640.35 | L76: 654.30 | M76: 626.4 | N76: 602.7 | O76: 101169750 | P76: -2.50%
A77: 67 | B77: Finance | C77: ICICIGI | D77: 2021-02-25 | E77: 1393.60 | F77: 1399.15 | G77: 1374.45 | H77: 1355.30 | I77: 1330.60 | J77: 1418.30 | K77: 1443.00 | L77: 1462.15 | M77: 1423.85 | N77: 1380 | O77: 1353200 | P77: 2.31%
A78: 68 | B78: Finance | C78: ICICIPRULI | D78: 2021-02-25 | E78: 477.25 | F78: 483.53 | G78: 467.67 | H78: 458.08 | I78: 442.22 | J78: 493.12 | K78: 508.98 | L78: 518.57 | M78: 499.4 | N78: 473.95 | O78: 6334500 | P78: 6.88%
A79: 69 | B79: Telecom | C79: IDEA | D79: 2021-02-25 | E79: 12.00 | F79: 11.88 | G79: 11.72 | H79: 11.43 | I79: 11.27 | J79: 12.17 | K79: 12.33 | L79: 12.62 | M79: 12.05 | N79: 11.6 | O79: 782390000 | P79: 2.33%
A80: 70 | B80: Banking | C80: IDFCFIRSTB | D80: 2021-02-25 | E80: 47.20 | F80: 47.20 | G80: 45.90 | H80: 44.60 | I80: 43.30 | J80: 48.50 | K80: 49.80 | L80: 51.10 | M80: 48.5 | N80: 45.9 | O80: 179151000 | P80: 4.40%
A81: 71 | B81: Oil_Gas | C81: IGL | D81: 2021-02-25 | E81: 556.15 | F81: 550.10 | G81: 541.55 | H81: 526.95 | I81: 518.40 | J81: 564.70 | K81: 573.25 | L81: 587.85 | M81: 558.65 | N81: 535.5 | O81: 5237375 | P81: -0.50%
A82: 72 | B82: Others | C82: INDIGO | D82: 2021-02-25 | E82: 1634.85 | F82: 1635.40 | G82: 1599.80 | H82: 1564.75 | I82: 1529.15 | J82: 1670.45 | K82: 1706.05 | L82: 1741.10 | M82: 1671 | N82: 1600.35 | O82: 2865000 | P82: 0.19%
A83: 73 | B83: Banking | C83: INDUSINDBK | D83: 2021-02-25 | E83: 979.75 | F83: 980.03 | G83: 955.07 | H83: 930.38 | I83: 905.42 | J83: 1004.72 | K83: 1029.68 | L83: 1054.37 | M83: 1005 | N83: 955.35 | O83: 23468400 | P83: -2.62%
A84: 74 | B84: Telecom | C84: INDUSTOWER | D84: 2021-02-25 | E84: 248.90 | F84: 248.93 | G84: 243.47 | H84: 238.03 | I84: 232.57 | J84: 254.37 | K84: 259.83 | L84: 265.27 | M84: 254.4 | N84: 243.5 | O84: 10379600 | P84: 10.76%
A85: 75 | B85: Technology | C85: INFY | D85: 2021-02-25 | E85: 1278.85 | F85: 1282.40 | G85: 1266.45 | H85: 1254.05 | I85: 1238.10 | J85: 1294.80 | K85: 1310.75 | L85: 1323.15 | M85: 1298.35 | N85: 1270 | O85: 34256400 | P85: 1.59%
A86: 76 | B86: Oil_Gas | C86: IOC | D86: 2021-02-25 | E86: 99.45 | F86: 98.83 | G86: 97.77 | H86: 96.08 | I86: 95.02 | J86: 100.52 | K86: 101.58 | L86: 103.27 | M86: 99.9 | N86: 97.15 | O86: 47229000 | P86: -2.06%
A87: 77 | B87: FMCG | C87: ITC | D87: 2021-02-25 | E87: 219.00 | F87: 220.37 | G87: 216.33 | H87: 213.67 | I87: 209.63 | J87: 223.03 | K87: 227.07 | L87: 229.73 | M87: 224.4 | N87: 217.7 | O87: 105187200 | P87: -1.63%
A88: 78 | B88: Metals | C88: JINDALSTEL | D88: 2021-02-25 | E88: 277.50 | F88: 278.83 | G88: 270.67 | H88: 263.83 | I88: 255.67 | J88: 285.67 | K88: 293.83 | L88: 300.67 | M88: 287 | N88: 272 | O88: 23065000 | P88: -4.49%
A89: 79 | B89: Metals | C89: JSWSTEEL | D89: 2021-02-25 | E89: 390.60 | F89: 387.92 | G89: 381.73 | H89: 372.87 | I89: 366.68 | J89: 396.78 | K89: 402.97 | L89: 411.83 | M89: 394.1 | N89: 379.05 | O89: 34279200 | P89: 0.24%
A90: 80 | B90: Others | C90: JUBLFOOD | D90: 2021-02-25 | E90: 2711.40 | F90: 2690.85 | G90: 2651.70 | H90: 2592.00 | I90: 2552.85 | J90: 2750.55 | K90: 2789.70 | L90: 2849.40 | M90: 2730 | N90: 2631.15 | O90: 1428750 | P90: 4.57%
A91: 81 | B91: Banking | C91: KOTAKBANK | D91: 2021-02-25 | E91: 1866.05 | F91: 1850.70 | G91: 1819.40 | H91: 1772.75 | I91: 1741.45 | J91: 1897.35 | K91: 1928.65 | L91: 1975.30 | M91: 1882 | N91: 1804.05 | O91: 13578800 | P91: -9.58%
A92: 82 | B92: Finance | C92: L&TFH | D92: 2021-02-25 | E92: 94.40 | F92: 94.05 | G92: 92.30 | H92: 90.20 | I92: 88.45 | J92: 96.15 | K92: 97.90 | L92: 100.00 | M92: 95.8 | N92: 91.95 | O92: 26325800 | P92: 14.52%
A93: 83 | B93: Others | C93: LALPATHLAB | D93: 2021-02-25 | E93: 2438.25 | F93: 2417.17 | G93: 2341.78 | H93: 2245.32 | I93: 2169.93 | J93: 2513.63 | K93: 2589.02 | L93: 2685.48 | M93: 2492.55 | N93: 2320.7 | O93: 104500 | P93: -13.28%
A94: 84 | B94: Finance | C94: LICHSGFIN | D94: 2021-02-25 | E94: 443.35 | F94: 445.62 | G94: 434.38 | H94: 425.42 | I94: 414.18 | J94: 454.58 | K94: 465.82 | L94: 474.78 | M94: 456.85 | N94: 436.65 | O94: 8282000 | P94: 7.36%
A95: 85 | B95: Capital_Goods | C95: LT | D95: 2021-02-25 | E95: 1529.65 | F95: 1536.40 | G95: 1470.45 | H95: 1411.25 | I95: 1345.30 | J95: 1595.60 | K95: 1661.55 | L95: 1720.75 | M95: 1602.35 | N95: 1477.2 | O95: 14646975 | P95: 5.85%
A96: 86 | B96: Pharma | C96: LUPIN | D96: 2021-02-25 | E96: 1035.25 | F96: 1023.82 | G96: 1008.63 | H96: 982.02 | I96: 966.83 | J96: 1050.43 | K96: 1065.62 | L96: 1092.23 | M96: 1039 | N96: 997.2 | O96: 7661050 | P96: -7.82%
A97: 87 | B97: Automobile | C97: M&M | D97: 2021-02-25 | E97: 820.15 | F97: 822.43 | G97: 803.87 | H97: 787.58 | I97: 769.02 | J97: 838.72 | K97: 857.28 | L97: 873.57 | M97: 841 | N97: 806.15 | O97: 10399200 | P97: -2.51%
A98: 88 | B98: Finance | C98: M&MFIN | D98: 2021-02-25 | E98: 172.00 | F98: 170.52 | G98: 165.78 | H98: 159.57 | I98: 154.83 | J98: 176.73 | K98: 181.47 | L98: 187.68 | M98: 175.25 | N98: 164.3 | O98: 14928000 | P98: -12.27%
A99: 89 | B99: Finance | C99: MANAPPURAM | D99: 2021-02-25 | E99: 169.85 | F99: 169.68 | G99: 166.17 | H99: 162.48 | I99: 158.97 | J99: 173.37 | K99: 176.88 | L99: 180.57 | M99: 173.2 | N99: 166 | O99: 14262000 | P99: -5.56%
A100: 90 | B100: FMCG | C100: MARICO | D100: 2021-02-25 | E100: 425.60 | F100: 425.83 | G100: 420.17 | H100: 414.73 | I100: 409.07 | J100: 431.27 | K100: 436.93 | L100: 442.37 | M100: 431.5 | N100: 420.4 | O100: 9082000 | P100: 0.40%
A101: 91 | B101: Automobile | C101: MARUTI | D101: 2021-02-25 | E101: 7676.60 | F101: 7655.62 | G101: 7526.23 | H101: 7375.87 | I101: 7246.48 | J101: 7805.98 | K101: 7935.37 | L101: 8085.73 | M101: 7785 | N101: 7505.25 | O101: 2372100 | P101: -5.31%
A102: 92 | B102: FMCG | C102: MCDOWELL-N | D102: 2021-02-25 | E102: 582.15 | F102: 580.07 | G102: 573.13 | H102: 564.12 | I102: 557.18 | J102: 589.08 | K102: 596.02 | L102: 605.03 | M102: 587 | N102: 571.05 | O102: 11812500 | P102: 5.62%
A103: 93 | B103: Finance | C103: MFSL | D103: 2021-02-25 | E103: 700.70 | F103: 703.55 | G103: 687.15 | H103: 673.60 | I103: 657.20 | J103: 717.10 | K103: 733.50 | L103: 747.05 | M103: 719.95 | N103: 690 | O103: 5080400 | P103: -2.01%
A104: 94 | B104: Oil_Gas | C104: MGL | D104: 2021-02-25 | E104: 1077.80 | F104: 1071.63 | G104: 1059.77 | H104: 1041.73 | I104: 1029.87 | J104: 1089.67 | K104: 1101.53 | L104: 1119.57 | M104: 1083.5 | N104: 1053.6 | O104: 1578600 | P104: 6.13%
A105: 95 | B105: Technology | C105: MINDTREE | D105: 2021-02-25 | E105: 1691.45 | F105: 1698.48 | G105: 1665.02 | H105: 1638.58 | I105: 1605.12 | J105: 1724.92 | K105: 1758.38 | L105: 1784.82 | M105: 1731.95 | N105: 1672.05 | O105: 1688000 | P105: -1.68%
A106: 96 | B106: Automobile | C106: MOTHERSUMI | D106: 2021-02-25 | E106: 157.35 | F106: 156.77 | G106: 154.08 | H106: 150.82 | I106: 148.13 | J106: 160.03 | K106: 162.72 | L106: 165.98 | M106: 159.45 | N106: 153.5 | O106: 30919000 | P106: 9.79%
A107: 97 | B107: Automobile | C107: MRF | D107: 2021-02-25 | E107: 91351.00 | F107: 91009.23 | G107: 89638.47 | H107: 87925.93 | I107: 86555.17 | J107: 92721.77 | K107: 94092.53 | L107: 95805.07 | M107: 92380 | N107: 89296.7 | O107: 50930 | P107: 0.73%
A108: 98 | B108: Finance | C108: MUTHOOTFIN | D108: 2021-02-25 | E108: 1172.05 | F108: 1170.05 | G108: 1155.70 | H108: 1139.35 | I108: 1125.00 | J108: 1186.40 | K108: 1200.75 | L108: 1217.10 | M108: 1184.4 | N108: 1153.7 | O108: 4880250 | P108: 0.59%
A109: 99 | B109: Metals | C109: NATIONALUM | D109: 2021-02-25 | E109: 49.75 | F109: 49.78 | G109: 48.82 | H109: 47.88 | I109: 46.92 | J109: 50.72 | K109: 51.68 | L109: 52.62 | M109: 50.75 | N109: 48.85 | O109: 56797000 | P109: 0.66%
A110: 100 | B110: Others | C110: NAUKRI | D110: 2021-02-25 | E110: 4867.35 | F110: 4772.37 | G110: 4626.98 | H110: 4386.62 | I110: 4241.23 | J110: 5012.73 | K110: 5158.12 | L110: 5398.48 | M110: 4917.75 | N110: 4532 | O110: 899750 | P110: -5.46%
A111: 101 | B111: FMCG | C111: NESTLEIND | D111: 2021-02-25 | E111: 17288.00 | F111: 17251.75 | G111: 17053.50 | H111: 16819.00 | I111: 16620.75 | J111: 17486.25 | K111: 17684.50 | L111: 17919.00 | M111: 17450 | N111: 17017.25 | O111: 325250 | P111: 4.20%
A112: 102 | B112: Metals | C112: NMDC | D112: 2021-02-25 | E112: 111.10 | F112: 111.02 | G112: 108.58 | H112: 106.07 | I112: 103.63 | J112: 113.53 | K112: 115.97 | L112: 118.48 | M112: 113.45 | N112: 108.5 | O112: 43784500 | P112: 4.38%
A113: 103 | B113: Power | C113: NTPC | D113: 2021-02-25 | E113: 92.80 | F113: 92.37 | G113: 91.23 | H113: 89.67 | I113: 88.53 | J113: 93.93 | K113: 95.07 | L113: 96.63 | M113: 93.5 | N113: 90.8 | O113: 73512900 | P113: 0.34%
A114: 104 | B114: Oil_Gas | C114: ONGC | D114: 2021-02-25 | E114: 93.35 | F114: 93.08 | G114: 91.92 | H114: 90.48 | I114: 89.32 | J114: 94.52 | K114: 95.68 | L114: 97.12 | M114: 94.25 | N114: 91.65 | O114: 44929500 | P114: 2.35%
A115: 105 | B115: Textile | C115: PAGEIND | D115: 2021-02-25 | E115: 29447.85 | F115: 29226.92 | G115: 28657.28 | H115: 27866.72 | I115: 27297.08 | J115: 30017.48 | K115: 30587.12 | L115: 31377.68 | M115: 29796.55 | N115: 28436.35 | O115: 78750 | P115: 7.85%
A116: 106 | B116: Pharma | C116: PEL | D116: 2021-02-25 | E116: 1505.45 | F116: 1480.95 | G116: 1439.90 | H116: 1374.35 | I116: 1333.30 | J116: 1546.50 | K116: 1587.55 | L116: 1653.10 | M116: 1522 | N116: 1415.4 | O116: 4408250 | P116: -4.70%
A117: 107 | B117: Oil_Gas | C117: PETRONET | D117: 2021-02-25 | E117: 247.10 | F117: 246.35 | G117: 243.30 | H117: 239.50 | I117: 236.45 | J117: 250.15 | K117: 253.20 | L117: 257.00 | M117: 249.4 | N117: 242.55 | O117: 13722000 | P117: -4.33%
A118: 108 | B118: Finance | C118: PFC | D118: 2021-02-25 | E118: 119.65 | F118: 119.32 | G118: 117.43 | H118: 115.22 | I118: 113.33 | J118: 121.53 | K118: 123.42 | L118: 125.63 | M118: 121.2 | N118: 117.1 | O118: 26089600 | P118: -2.14%
A119: 109 | B119: FMCG | C119: PIDILITIND | D119: 2021-02-25 | E119: 1765.65 | F119: 1758.13 | G119: 1734.32 | H119: 1702.98 | I119: 1679.17 | J119: 1789.47 | K119: 1813.28 | L119: 1844.62 | M119: 1781.95 | N119: 1726.8 | O119: 2751000 | P119: -1.84%
A120: 110 | B120: Banking | C120: PNB | D120: 2021-02-25 | E120: 36.45 | F120: 36.38 | G120: 35.72 | H120: 34.98 | I120: 34.32 | J120: 37.12 | K120: 37.78 | L120: 38.52 | M120: 37.05 | N120: 35.65 | O120: 193200000 | P120: 4.75%
A121: 111 | B121: Power | C121: POWERGRID | D121: 2021-02-25 | E121: 194.40 | F121: 193.33 | G121: 190.87 | H121: 187.33 | I121: 184.87 | J121: 196.87 | K121: 199.33 | L121: 202.87 | M121: 195.8 | N121: 189.8 | O121: 12020000 | P121: -3.87%
A122: 112 | B122: Media | C122: PVR | D122: 2021-02-25 | E122: 1555.15 | F122: 1550.78 | G122: 1527.32 | H122: 1499.48 | I122: 1476.02 | J122: 1578.62 | K122: 1602.08 | L122: 1629.92 | M122: 1574.25 | N122: 1522.95 | O122: 1908423 | P122: 3.42%
A123: 113 | B123: Cement | C123: RAMCOCEM | D123: 2021-02-25 | E123: 883.20 | F123: 872.42 | G123: 854.83 | H123: 826.47 | I123: 808.88 | J123: 900.78 | K123: 918.37 | L123: 946.73 | M123: 890 | N123: 844.05 | O123: 1262250 | P123: 2.84%
A124: 114 | B124: Banking | C124: RBLBANK | D124: 2021-02-25 | E124: 242.30 | F124: 243.17 | G124: 236.73 | H124: 231.17 | I124: 224.73 | J124: 248.73 | K124: 255.17 | L124: 260.73 | M124: 249.6 | N124: 237.6 | O124: 19290800 | P124: -10.50%
A125: 115 | B125: Power | C125: RECLTD | D125: 2021-02-25 | E125: 144.55 | F125: 143.18 | G125: 141.12 | H125: 137.68 | I125: 135.62 | J125: 146.62 | K125: 148.68 | L125: 152.12 | M125: 145.25 | N125: 139.75 | O125: 11790000 | P125: 7.73%
A126: 116 | B126: Oil_Gas | C126: RELIANCE | D126: 2021-02-25 | E126: 1938.65 | F126: 1917.15 | G126: 1884.50 | H126: 1830.35 | I126: 1797.70 | J126: 1971.30 | K126: 2003.95 | L126: 2058.10 | M126: 1949.8 | N126: 1863 | O126: 30607250 | P126: 4.10%
A127: 117 | B127: Metals | C127: SAIL | D127: 2021-02-25 | E127: 60.35 | F127: 61.22 | G127: 58.53 | H127: 56.72 | I127: 54.03 | J127: 63.03 | K127: 65.72 | L127: 67.53 | M127: 63.9 | N127: 59.4 | O127: 117344000 | P127: -13.08%
A128: 118 | B128: Finance | C128: SBILIFE | D128: 2021-02-25 | E128: 869.80 | F128: 875.02 | G128: 857.33 | H128: 844.87 | I128: 827.18 | J128: 887.48 | K128: 905.17 | L128: 917.63 | M128: 892.7 | N128: 862.55 | O128: 5571750 | P128: 2.67%
A129: 119 | B129: Banking | C129: SBIN | D129: 2021-02-25 | E129: 334.15 | F129: 329.55 | G129: 320.60 | H129: 307.05 | I129: 298.10 | J129: 343.10 | K129: 352.05 | L129: 365.60 | M129: 338.5 | N129: 316 | O129: 78702000 | P129: -3.31%
A130: 120 | B130: Cement | C130: SHREECEM | D130: 2021-02-25 | E130: 26461.30 | F130: 25887.25 | G130: 25075.05 | H130: 23688.80 | I130: 22876.60 | J130: 27273.50 | K130: 28085.70 | L130: 29471.95 | M130: 26699.45 | N130: 24501 | O130: 134850 | P130: -1.14%
A131: 121 | B131: Capital_Goods | C131: SIEMENS | D131: 2021-02-25 | E131: 1822.30 | F131: 1790.63 | G131: 1741.67 | H131: 1661.03 | I131: 1612.07 | J131: 1871.27 | K131: 1920.23 | L131: 2000.87 | M131: 1839.6 | N131: 1710 | O131: 870650 | P131: 2.66%
A132: 122 | B132: Textile | C132: SRF | D132: 2021-02-25 | E132: 5481.05 | F132: 5506.05 | G132: 5420.10 | H132: 5359.15 | I132: 5273.20 | J132: 5567.00 | K132: 5652.95 | L132: 5713.90 | M132: 5592 | N132: 5445.1 | O132: 327125 | P132: 0.77%
A133: 123 | B133: Finance | C133: SRTRANSFIN | D133: 2021-02-25 | E133: 1373.30 | F133: 1386.08 | G133: 1338.22 | H133: 1303.13 | I133: 1255.27 | J133: 1421.17 | K133: 1469.03 | L133: 1504.12 | M133: 1433.95 | N133: 1351 | O133: 4784800 | P133: -4.04%
A134: 124 | B134: Pharma | C134: SUNPHARMA | D134: 2021-02-25 | E134: 607.75 | F134: 603.85 | G134: 593.00 | H134: 578.25 | I134: 567.40 | J134: 618.60 | K134: 629.45 | L134: 644.20 | M134: 614.7 | N134: 589.1 | O134: 46996600 | P134: -0.06%
A135: 125 | B135: Media | C135: SUNTV | D135: 2021-02-25 | E135: 521.30 | F135: 516.17 | G135: 505.38 | H135: 489.47 | I135: 478.68 | J135: 532.08 | K135: 542.87 | L135: 558.78 | M135: 526.95 | N135: 500.25 | O135: 11401500 | P135: 5.25%
A136: 126 | B136: Fertilisers | C136: TATACHEM | D136: 2021-02-25 | E136: 523.10 | F136: 516.03 | G136: 506.07 | H136: 489.03 | I136: 479.07 | J136: 533.07 | K136: 543.03 | L136: 560.07 | M136: 526 | N136: 499 | O136: 7302000 | P136: -0.16%
A137: 127 | B137: Others | C137: TATACONSUM | D137: 2021-02-25 | E137: 578.75 | F137: 581.75 | G137: 566.00 | H137: 553.25 | I137: 537.50 | J137: 594.50 | K137: 610.25 | L137: 623.00 | M137: 597.5 | N137: 569 | O137: 15171300 | P137: 5.74%
A138: 128 | B138: Automobile | C138: TATAMOTORS | D138: 2021-02-25 | E138: 324.20 | F138: 317.58 | G138: 297.72 | H138: 271.23 | I138: 251.37 | J138: 344.07 | K138: 363.93 | L138: 390.42 | M138: 337.45 | N138: 291.1 | O138: 76744800 | P138: -1.60%
A139: 129 | B139: Power | C139: TATAPOWER | D139: 2021-02-25 | E139: 84.05 | F139: 82.75 | G139: 81.10 | H139: 78.15 | I139: 76.50 | J139: 85.70 | K139: 87.35 | L139: 90.30 | M139: 84.4 | N139: 79.8 | O139: 107338500 | P139: 3.52%
A140: 130 | B140: Metals | C140: TATASTEEL | D140: 2021-02-25 | E140: 643.35 | F140: 639.87 | G140: 629.48 | H140: 615.62 | I140: 605.23 | J140: 653.73 | K140: 664.12 | L140: 677.98 | M140: 650.25 | N140: 626 | O140: 39701800 | P140: -1.10%
A141: 131 | B141: Technology | C141: TCS | D141: 2021-02-25 | E141: 3211.65 | F141: 3199.65 | G141: 3167.60 | H141: 3123.55 | I141: 3091.50 | J141: 3243.70 | K141: 3275.75 | L141: 3319.80 | M141: 3231.7 | N141: 3155.6 | O141: 5522100 | P141: -0.66%
A142: 132 | B142: Technology | C142: TECHM | D142: 2021-02-25 | E142: 963.20 | F142: 959.95 | G142: 945.30 | H142: 927.40 | I142: 912.75 | J142: 977.85 | K142: 992.50 | L142: 1010.40 | M142: 974.6 | N142: 942.05 | O142: 13748400 | P142: 0.37%
A143: 133 | B143: FMCG | C143: TITAN | D143: 2021-02-25 | E143: 1494.40 | F143: 1507.88 | G143: 1475.82 | H143: 1457.23 | I143: 1425.17 | J143: 1526.47 | K143: 1558.53 | L143: 1577.12 | M143: 1539.95 | N143: 1489.3 | O143: 6230250 | P143: -0.35%
A144: 134 | B144: Pharma | C144: TORNTPHARM | D144: 2021-02-25 | E144: 2577.15 | F144: 2561.72 | G144: 2538.43 | H144: 2499.72 | I144: 2476.43 | J144: 2600.43 | K144: 2623.72 | L144: 2662.43 | M144: 2585 | N144: 2523 | O144: 862500 | P144: 10.90%
A145: 135 | B145: Power | C145: TORNTPOWER | D145: 2021-02-25 | E145: 310.80 | F145: 310.72 | G145: 305.53 | H145: 300.27 | I145: 295.08 | J145: 315.98 | K145: 321.17 | L145: 326.43 | M145: 315.9 | N145: 305.45 | O145: 5100000 | P145: 11.84%
A146: 136 | B146: Automobile | C146: TVSMOTOR | D146: 2021-02-25 | E146: 620.20 | F146: 609.68 | G146: 594.67 | H146: 569.13 | I146: 554.12 | J146: 635.22 | K146: 650.23 | L146: 675.77 | M146: 624.7 | N146: 584.15 | O146: 5860400 | P146: -7.18%
A147: 137 | B147: FMCG | C147: UBL | D147: 2021-02-25 | E147: 1293.35 | F147: 1293.48 | G147: 1274.07 | H147: 1254.78 | I147: 1235.37 | J147: 1312.77 | K147: 1332.18 | L147: 1351.47 | M147: 1312.9 | N147: 1274.2 | O147: 1425900 | P147: -1.74%
A148: 138 | B148: Cement | C148: ULTRACEMCO | D148: 2021-02-25 | E148: 6137.65 | F148: 6059.38 | G148: 5890.77 | H148: 5643.88 | I148: 5475.27 | J148: 6306.27 | K148: 6474.88 | L148: 6721.77 | M148: 6228 | N148: 5812.5 | O148: 1306400 | P148: -7.22%
A149: 139 | B149: Fertilisers | C149: UPL | D149: 2021-02-25 | E149: 567.65 | F149: 559.82 | G149: 550.23 | H149: 532.82 | I149: 523.23 | J149: 577.23 | K149: 586.82 | L149: 604.23 | M149: 569.4 | N149: 542.4 | O149: 15538900 | P149: -3.96%
A150: 140 | B150: Metals | C150: VEDL | D150: 2021-02-25 | E150: 174.30 | F150: 174.50 | G150: 172.15 | H150: 170.00 | I150: 167.65 | J150: 176.65 | K150: 179.00 | L150: 181.15 | M150: 176.85 | N150: 172.35 | O150: 80463600 | P150: -0.20%
A151: 141 | B151: Capital_Goods | C151: VOLTAS | D151: 2021-02-25 | E151: 986.80 | F151: 977.10 | G151: 956.20 | H151: 925.60 | I151: 904.70 | J151: 1007.70 | K151: 1028.60 | L151: 1059.20 | M151: 998 | N151: 946.5 | O151: 1996000 | P151: 6.91%
A152: 142 | B152: Technology | C152: WIPRO | D152: 2021-02-25 | E152: 430.50 | F152: 430.60 | G152: 425.00 | H152: 419.50 | I152: 413.90 | J152: 436.10 | K152: 441.70 | L152: 447.20 | M152: 436.2 | N152: 425.1 | O152: 28172800 | P152: -0.70%
A153: 143 | B153: Media | C153: ZEEL | D153: 2021-02-25 | E153: 245.00 | F153: 241.25 | G153: 233.10 | H153: 221.20 | I153: 213.05 | J153: 253.15 | K153: 261.30 | L153: 273.20 | M153: 249.4 | N153: 229.35 | O153: 28905000 | P153: 16.04%
A154: 144
A155: 145
A156: 146
A157: 147
A175: Pivot Point: This is trigger point for intra day buy/sell based on the price range of the previous day
A176: As per the tool,the trader should take BUY position just above Pivot and keep the stop loss of pivot point and the first target would be Resistance 1(R1)
A177: If R1 is crossed then R2 becomes the next target with stop loss of at R1
A178: Similarly if price goes below pivot point then the trader should sell and keep a stop loss of pivot point and the first target would be S1
A179: If S1 is crossed then S2 becomes the next target with stop loss of at S1
A181: Disclaimer:
A182: This document has been prepared by the Retail Research Desk of Asit C Mehta
A183: Investment Intermediates Ltd. and is meant for use of the recipient only
A184: and is not for circulation. This document is not to be reported or
A185: copied or made available to others. It should not be considered to be
A186: taken as an offer to sell or a solicitation to buy any security. The
A187: information contained herein is from sources believed reliable. We do
A188: not represent that it is accurate or complete and it should not be
A189: relied upon as such. We may from time to time have positions in and buy
A190: and sell securities referred to herein

Sheet Cash Intra
M5: Back to Main Page
A6: FOR INTRA DAY TRADING | K6: =Main!B10 -> 2021-02-03
A8: Sr.no | B8: Scrip | C8: CLOSE RATE | D8: Pivot Point | E8: Supports | H8: Resistances
C9: Point | E9: S1 | F9: S2 | G9: S3 | H9: R1 | I9: R2 | J9: R3 | K9: HIGH | L9: LOW | M9: Total Trade Quanity in Lakhs
A10: 1 | B10: Nifty 50 | C10: 14647.85 | D10: 14616.23 | E10: 14500.77 | F10: 14353.68 | G10: 14238.22 | H10: 14763.32 | I10: 14878.78 | J10: 15025.87 | K10: 14731.7 | L10: 14469.15
A11: 2 | B11: Nifty Bank | C11: 34267.9 | D11: 34167.85 | E11: 33683.20 | F11: 33098.50 | G11: 32613.85 | H11: 34752.55 | I11: 35237.20 | J11: 35821.90 | K11: 34652.5 | L11: 33583.15
A12: 3 | B12: Nifty CPSE | C12: 1627 | D12: 1626.80 | E12: 1612.55 | F12: 1598.10 | G12: 1583.85 | H12: 1641.25 | I12: 1655.50 | J12: 1669.95 | K12: 1641.05 | L12: 1612.35
A13: 4 | B13: Nifty Infra | C13: 3989 | D13: 3962.92 | E13: 3923.63 | F13: 3858.27 | G13: 3818.98 | H13: 4028.28 | I13: 4067.57 | J13: 4132.93 | K13: 4002.2 | L13: 3897.55
A14: 5 | B14: Nifty IT | C14: 25447.8 | D14: 25376.58 | E14: 25178.42 | F14: 24909.03 | G14: 24710.87 | H14: 25645.97 | I14: 25844.13 | J14: 26113.52 | K14: 25574.75 | L14: 25107.2
A15: 6 | B15: Nifty PSE | C15: 2859.1 | D15: 2855.30 | E15: 2832.45 | F15: 2805.80 | G15: 2782.95 | H15: 2881.95 | I15: 2904.80 | J15: 2931.45 | K15: 2878.15 | L15: 2828.65
A16: 7 | B16: Nifty Midcap 50 | C16: 6468.7 | D16: 6434.48 | E16: 6379.82 | F16: 6290.93 | G16: 6236.27 | H16: 6523.37 | I16: 6578.03 | J16: 6666.92 | K16: 6489.15 | L16: 6345.6
A17: 8 | B17: ACC | C17: 1762.85 | D17: 1745.97 | E17: 1707.93 | F17: 1653.02 | G17: 1614.98 | H17: 1800.88 | I17: 1838.92 | J17: 1893.83 | K17: 1784 | L17: 1691.05 | M17: 16.97944
A18: 9 | B18: AUBANK | C18: 960.7 | D18: 964.92 | E18: 930.83 | F18: 900.97 | G18: 866.88 | H18: 994.78 | I18: 1028.87 | J18: 1058.73 | K18: 999 | L18: 935.05 | M18: 11.30196
A19: 10 | B19: AARTIIND | C19: 1181.55 | D19: 1173.98 | E19: 1160.57 | F19: 1139.58 | G19: 1126.17 | H19: 1194.97 | I19: 1208.38 | J19: 1229.37 | K19: 1187.4 | L19: 1153 | M19: 3.05988
A20: 11 | B20: ABBOTINDIA | C20: 14093.85 | D20: 14171.88 | E20: 13881.77 | F20: 13669.68 | G20: 13379.57 | H20: 14383.97 | I20: 14674.08 | J20: 14886.17 | K20: 14462 | L20: 13959.8 | M20: 0.56037
A21: 12 | B21: ADANIENT | C21: 564.2 | D21: 557.30 | E21: 547.70 | F21: 531.20 | G21: 521.60 | H21: 573.80 | I21: 583.40 | J21: 599.90 | K21: 566.9 | L21: 540.8 | M21: 51.44708
A22: 13 | B22: ADANIGREEN | C22: 1031.95 | D22: 1030.97 | E22: 1014.98 | F22: 998.02 | G22: 982.03 | H22: 1047.93 | I22: 1063.92 | J22: 1080.88 | K22: 1046.95 | L22: 1014 | M22: 3.53217
A23: 14 | B23: ADANIPORTS | C23: 550.8 | D23: 548.55 | E23: 542.25 | F23: 533.70 | G23: 527.40 | H23: 557.10 | I23: 563.40 | J23: 571.95 | K23: 554.85 | L23: 540 | M23: 71.60471
A24: 15 | B24: ATGL | C24: 401.1 | D24: 398.42 | E24: 389.88 | F24: 378.67 | G24: 370.13 | H24: 409.63 | I24: 418.17 | J24: 429.38 | K24: 406.95 | L24: 387.2 | M24: 16.76396
A25: 16 | B25: ADANITRANS | C25: 491.35 | D25: 487.52 | E25: 476.33 | F25: 461.32 | G25: 450.13 | H25: 502.53 | I25: 513.72 | J25: 528.73 | K25: 498.7 | L25: 472.5 | M25: 7.90371
A26: 17 | B26: ABCAPITAL | C26: 84.75 | D26: 85.35 | E26: 83.20 | F26: 81.65 | G26: 79.50 | H26: 86.90 | I26: 89.05 | J26: 90.60 | K26: 87.5 | L26: 83.8 | M26: 36.55563
A27: 18 | B27: ABFRL | C27: 150.95 | D27: 152.55 | E27: 148.95 | F27: 146.95 | G27: 143.35 | H27: 154.55 | I27: 158.15 | J27: 160.15 | K27: 156.15 | L27: 150.55 | M27: 25.78907
A28: 19 | B28: AJANTPHARM | C28: 1747.15 | D28: 1752.87 | E28: 1715.73 | F28: 1684.32 | G28: 1647.18 | H28: 1784.28 | I28: 1821.42 | J28: 1852.83 | K28: 1790 | L28: 1721.45 | M28: 2.50509
A29: 20 | B29: APLLTD | C29: 973.75 | D29: 973.40 | E29: 956.50 | F29: 939.25 | G29: 922.35 | H29: 990.65 | I29: 1007.55 | J29: 1024.80 | K29: 990.3 | L29: 956.15 | M29: 4.90051
A30: 21 | B30: ALKEM | C30: 2902.75 | D30: 2911.90 | E30: 2850.85 | F30: 2798.95 | G30: 2737.90 | H30: 2963.80 | I30: 3024.85 | J30: 3076.75 | K30: 2972.95 | L30: 2860 | M30: 1.71959
A31: 22 | B31: AMARAJABAT | C31: 940.95 | D31: 951.45 | E31: 928.00 | F31: 915.05 | G31: 891.60 | H31: 964.40 | I31: 987.85 | J31: 1000.80 | K31: 974.9 | L31: 938.5 | M31: 10.8238
A32: 23 | B32: AMBUJACEM | C32: 276.25 | D32: 272.32 | E32: 265.03 | F32: 253.82 | G32: 246.53 | H32: 283.53 | I32: 290.82 | J32: 302.03 | K32: 279.6 | L32: 261.1 | M32: 128.96237
A33: 24 | B33: APOLLOHOSP | C33: 2705.15 | D33: 2709.38 | E33: 2673.77 | F33: 2642.38 | G33: 2606.77 | H33: 2740.77 | I33: 2776.38 | J33: 2807.77 | K33: 2745 | L33: 2678 | M33: 6.07131
A34: 25 | B34: APOLLOTYRE | C34: 227.5 | D34: 223.77 | E34: 218.83 | F34: 210.17 | G34: 205.23 | H34: 232.43 | I34: 237.37 | J34: 246.03 | K34: 228.7 | L34: 215.1 | M34: 211.34623
A35: 26 | B35: ASHOKLEY | C35: 132.3 | D35: 130.07 | E35: 126.23 | F35: 120.17 | G35: 116.33 | H35: 136.13 | I35: 139.97 | J35: 146.03 | K35: 133.9 | L35: 124 | M35: 766.58238
A36: 27 | B36: ASIANPAINT | C36: 2463.65 | D36: 2469.58 | E36: 2419.17 | F36: 2374.68 | G36: 2324.27 | H36: 2514.07 | I36: 2564.48 | J36: 2608.97 | K36: 2520 | L36: 2425.1 | M36: 26.79428
A37: 28 | B37: AUROPHARMA | C37: 921.6 | D37: 923.70 | E37: 908.50 | F37: 895.40 | G37: 880.20 | H37: 936.80 | I37: 952.00 | J37: 965.10 | K37: 938.9 | L37: 910.6 | M37: 26.92863
A38: 29 | B38: DMART | C38: 2869.1 | D38: 2852.60 | E38: 2798.20 | F38: 2727.30 | G38: 2672.90 | H38: 2923.50 | I38: 2977.90 | J38: 3048.80 | K38: 2907 | L38: 2781.7 | M38: 8.37632
A39: 30 | B39: AXISBANK | C39: 714.2 | D39: 721.12 | E39: 697.28 | F39: 680.37 | G39: 656.53 | H39: 738.03 | I39: 761.87 | J39: 778.78 | K39: 744.95 | L39: 704.2 | M39: 287.0332
A40: 31 | B40: BAJAJ-AUTO | C40: 4201.45 | D40: 4196.62 | E40: 4122.08 | F40: 4042.72 | G40: 3968.18 | H40: 4275.98 | I40: 4350.52 | J40: 4429.88 | K40: 4271.15 | L40: 4117.25 | M40: 11.67922
A41: 32 | B41: BAJFINANCE | C41: 5173.2 | D41: 5202.02 | E41: 5066.08 | F41: 4958.97 | G41: 4823.03 | H41: 5309.13 | I41: 5445.07 | J41: 5552.18 | K41: 5337.95 | L41: 5094.9 | M41: 43.47993
A42: 33 | B42: BAJAJFINSV | C42: 9476.3 | D42: 9593.77 | E42: 9197.53 | F42: 8918.77 | G42: 8522.53 | H42: 9872.53 | I42: 10268.77 | J42: 10547.53 | K42: 9990 | L42: 9315 | M42: 13.9439
A43: 34 | B43: BAJAJHLDNG | C43: 3357.4 | D43: 3374.75 | E43: 3300.50 | F43: 3243.60 | G43: 3169.35 | H43: 3431.65 | I43: 3505.90 | J43: 3562.80 | K43: 3449 | L43: 3317.85 | M43: 0.56087
A44: 35 | B44: BALKRISIND | C44: 1673.5 | D44: 1671.05 | E44: 1638.45 | F44: 1603.40 | G44: 1570.80 | H44: 1706.10 | I44: 1738.70 | J44: 1773.75 | K44: 1703.65 | L44: 1636 | M44: 6.26595
A45: 36 | B45: BANDHANBNK | C45: 339.35 | D45: 337.23 | E45: 330.57 | F45: 321.78 | G45: 315.12 | H45: 346.02 | I45: 352.68 | J45: 361.47 | K45: 343.9 | L45: 328.45 | M45: 219.59784
A46: 37 | B46: BANKBARODA | C46: 74.65 | D46: 74.98 | E46: 73.02 | F46: 71.38 | G46: 69.42 | H46: 76.62 | I46: 78.58 | J46: 80.22 | K46: 76.95 | L46: 73.35 | M46: 730.20753
A47: 38 | B47: BANKINDIA | C47: 53.4 | D47: 53.38 | E47: 51.62 | F47: 49.83 | G47: 48.07 | H47: 55.17 | I47: 56.93 | J47: 58.72 | K47: 55.15 | L47: 51.6 | M47: 119.79786
A48: 39 | B48: BATAINDIA | C48: 1540.55 | D48: 1539.55 | E48: 1519.15 | F48: 1497.75 | G48: 1477.35 | H48: 1560.95 | I48: 1581.35 | J48: 1602.75 | K48: 1559.95 | L48: 1518.15 | M48: 4.40122
A49: 40 | B49: BERGEPAINT | C49: 724.45 | D49: 730.53 | E49: 714.62 | F49: 704.78 | G49: 688.87 | H49: 740.37 | I49: 756.28 | J49: 766.12 | K49: 746.45 | L49: 720.7 | M49: 17.53803
A50: 41 | B50: BEL | C50: 133.5 | D50: 133.90 | E50: 131.00 | F50: 128.50 | G50: 125.60 | H50: 136.40 | I50: 139.30 | J50: 141.80 | K50: 136.8 | L50: 131.4 | M50: 107.38562
A51: 42 | B51: BHARATFORG | C51: 648.4 | D51: 639.20 | E51: 627.70 | F51: 607.00 | G51: 595.50 | H51: 659.90 | I51: 671.40 | J51: 692.10 | K51: 650.7 | L51: 618.5 | M51: 40.78912
A52: 43 | B52: BHEL | C52: 38.9 | D52: 38.97 | E52: 37.98 | F52: 37.07 | G52: 36.08 | H52: 39.88 | I52: 40.87 | J52: 41.78 | K52: 39.95 | L52: 38.05 | M52: 570.99937
A53: 44 | B53: BPCL | C53: 408 | D53: 404.08 | E53: 397.17 | F53: 386.33 | G53: 379.42 | H53: 414.92 | I53: 421.83 | J53: 432.67 | K53: 411 | L53: 393.25 | M53: 88.76838
A54: 45 | B54: BHARTIARTL | C54: 599.35 | D54: 594.75 | E54: 583.85 | F54: 568.35 | G54: 557.45 | H54: 610.25 | I54: 621.15 | J54: 636.65 | K54: 605.65 | L54: 579.25 | M54: 213.11866
A55: 46 | B55: BIOCON | C55: 391.5 | D55: 388.20 | E55: 382.40 | F55: 373.30 | G55: 367.50 | H55: 397.30 | I55: 403.10 | J55: 412.20 | K55: 394 | L55: 379.1 | M55: 48.91113
A56: 47 | B56: BBTC | C56: 1262.4 | D56: 1259.47 | E56: 1247.93 | F56: 1233.47 | G56: 1221.93 | H56: 1273.93 | I56: 1285.47 | J56: 1299.93 | K56: 1271 | L56: 1245 | M56: 0.43269
A57: 48 | B57: BOSCHLTD | C57: 16531.25 | D57: 16460.25 | E57: 16221.00 | F57: 15910.75 | G57: 15671.50 | H57: 16770.50 | I57: 17009.75 | J57: 17320.00 | K57: 16699.5 | L57: 16150 | M57: 0.64405
A58: 49 | B58: BRITANNIA | C58: 3501.25 | D58: 3513.00 | E58: 3472.00 | F58: 3442.75 | G58: 3401.75 | H58: 3542.25 | I58: 3583.25 | J58: 3612.50 | K58: 3554 | L58: 3483.75 | M58: 8.6995
A59: 50 | B59: CESC | C59: 629.9 | D59: 628.77 | E59: 622.38 | F59: 614.87 | G59: 608.48 | H59: 636.28 | I59: 642.67 | J59: 650.18 | K59: 635.15 | L59: 621.25 | M59: 2.37988
A60: 51 | B60: CADILAHC | C60: 467.2 | D60: 463.93 | E60: 456.97 | F60: 446.73 | G60: 439.77 | H60: 474.17 | I60: 481.13 | J60: 491.37 | K60: 470.9 | L60: 453.7 | M60: 39.39023
A61: 52 | B61: CANBK | C61: 146.55 | D61: 146.08 | E61: 141.52 | F61: 136.48 | G61: 131.92 | H61: 151.12 | I61: 155.68 | J61: 160.72 | K61: 150.65 | L61: 141.05 | M61: 498.0957
A62: 53 | B62: CASTROLIND | C62: 126.8 | D62: 128.95 | E62: 123.55 | F62: 120.30 | G62: 114.90 | H62: 132.20 | I62: 137.60 | J62: 140.85 | K62: 134.35 | L62: 125.7 | M62: 58.178
A63: 54 | B63: CHOLAFIN | C63: 439.1 | D63: 449.37 | E63: 423.73 | F63: 408.37 | G63: 382.73 | H63: 464.73 | I63: 490.37 | J63: 505.73 | K63: 475 | L63: 434 | M63: 100.99741
A64: 55 | B64: CIPLA | C64: 821.6 | D64: 816.48 | E64: 806.62 | F64: 791.63 | G64: 781.77 | H64: 831.47 | I64: 841.33 | J64: 856.32 | K64: 826.35 | L64: 801.5 | M64: 84.86828
A65: 56 | B65: CUB | C65: 181.6 | D65: 178.90 | E65: 175.80 | F65: 170.00 | G65: 166.90 | H65: 184.70 | I65: 187.80 | J65: 193.60 | K65: 182 | L65: 173.1 | M65: 37.96147
A66: 57 | B66: COALINDIA | C66: 131.25 | D66: 131.25 | E66: 129.65 | F66: 128.05 | G66: 126.45 | H66: 132.85 | I66: 134.45 | J66: 136.05 | K66: 132.85 | L66: 129.65 | M66: 154.85139
A67: 58 | B67: COFORGE | C67: 2453.05 | D67: 2445.03 | E67: 2392.07 | F67: 2331.08 | G67: 2278.12 | H67: 2506.02 | I67: 2558.98 | J67: 2619.97 | K67: 2498 | L67: 2384.05 | M67: 4.51684
A68: 59 | B68: COLPAL | C68: 1617.95 | D68: 1625.28 | E68: 1599.77 | F68: 1581.58 | G68: 1556.07 | H68: 1643.47 | I68: 1668.98 | J68: 1687.17 | K68: 1650.8 | L68: 1607.1 | M68: 8.71671
A69: 60 | B69: CONCOR | C69: 455.6 | D69: 456.18 | E69: 449.57 | F69: 443.53 | G69: 436.92 | H69: 462.22 | I69: 468.83 | J69: 474.87 | K69: 462.8 | L69: 450.15 | M69: 19.88474
A70: 61 | B70: COROMANDEL | C70: 789.4 | D70: 805.63 | E70: 759.27 | F70: 729.13 | G70: 682.77 | H70: 835.77 | I70: 882.13 | J70: 912.27 | K70: 852 | L70: 775.5 | M70: 10.31538
A71: 62 | B71: CROMPTON | C71: 414.7 | D71: 412.78 | E71: 405.12 | F71: 395.53 | G71: 387.87 | H71: 422.37 | I71: 430.03 | J71: 439.62 | K71: 420.45 | L71: 403.2 | M71: 17.0822
A72: 63 | B72: CUMMINSIND | C72: 759.75 | D72: 763.18 | E72: 726.57 | F72: 693.38 | G72: 656.77 | H72: 796.37 | I72: 832.98 | J72: 866.17 | K72: 799.8 | L72: 730 | M72: 74.9943
A73: 64 | B73: DLF | C73: 294.5 | D73: 290.78 | E73: 282.57 | F73: 270.63 | G73: 262.42 | H73: 302.72 | I73: 310.93 | J73: 322.87 | K73: 299 | L73: 278.85 | M73: 276.44084
A74: 65 | B74: DABUR | C74: 526.4 | D74: 528.80 | E74: 522.00 | F74: 517.60 | G74: 510.80 | H74: 533.20 | I74: 540.00 | J74: 544.40 | K74: 535.6 | L74: 524.4 | M74: 22.46578
A75: 66 | B75: DALBHARAT | C75: 1258 | D75: 1244.27 | E75: 1217.73 | F75: 1177.47 | G75: 1150.93 | H75: 1284.53 | I75: 1311.07 | J75: 1351.33 | K75: 1270.8 | L75: 1204 | M75: 3.10318
A76: 67 | B76: DHANI | C76: 359 | D76: 363.12 | E76: 351.33 | F76: 343.67 | G76: 331.88 | H76: 370.78 | I76: 382.57 | J76: 390.23 | K76: 374.9 | L76: 355.45 | M76: 7.00125
A77: 68 | B77: DIVISLAB | C77: 3548.6 | D77: 3520.80 | E77: 3473.90 | F77: 3399.20 | G77: 3352.30 | H77: 3595.50 | I77: 3642.40 | J77: 3717.10 | K77: 3567.7 | L77: 3446.1 | M77: 16.24774
A78: 69 | B78: LALPATHLAB | C78: 2436.8 | D78: 2399.35 | E78: 2303.15 | F78: 2169.50 | G78: 2073.30 | H78: 2533.00 | I78: 2629.20 | J78: 2762.85 | K78: 2495.55 | L78: 2265.7 | M78: 4.19051
A79: 70 | B79: DRREDDY | C79: 4482.5 | D79: 4463.83 | E79: 4399.67 | F79: 4316.83 | G79: 4252.67 | H79: 4546.67 | I79: 4610.83 | J79: 4693.67 | K79: 4528 | L79: 4381 | M79: 36.75106
A80: 71 | B80: EDELWEISS | C80: 67.85 | D80: 66.68 | E80: 65.42 | F80: 62.98 | G80: 61.72 | H80: 69.12 | I80: 70.38 | J80: 72.82 | K80: 67.95 | L80: 64.25 | M80: 16.08374
A81: 72 | B81: EICHERMOT | C81: 2904.85 | D81: 2883.60 | E81: 2847.20 | F81: 2789.55 | G81: 2753.15 | H81: 2941.25 | I81: 2977.65 | J81: 3035.30 | K81: 2920 | L81: 2825.95 | M81: 21.25895
A82: 73 | B82: EMAMILTD | C82: 479.65 | D82: 478.70 | E82: 473.05 | F82: 466.45 | G82: 460.80 | H82: 485.30 | I82: 490.95 | J82: 497.55 | K82: 484.35 | L82: 472.1 | M82: 8.01887
A83: 74 | B83: ENDURANCE | C83: 1367.7 | D83: 1374.77 | E83: 1349.78 | F83: 1331.87 | G83: 1306.88 | H83: 1392.68 | I83: 1417.67 | J83: 1435.58 | K83: 1399.75 | L83: 1356.85 | M83: 1.58987
A84: 75 | B84: ESCORTS | C84: 1334.15 | D84: 1322.68 | E84: 1290.37 | F84: 1246.58 | G84: 1214.27 | H84: 1366.47 | I84: 1398.78 | J84: 1442.57 | K84: 1355 | L84: 1278.9 | M84: 46.85702
A85: 76 | B85: EXIDEIND | C85: 201.4 | D85: 200.22 | E85: 197.43 | F85: 193.47 | G85: 190.68 | H85: 204.18 | I85: 206.97 | J85: 210.93 | K85: 203 | L85: 196.25 | M85: 64.31888
A86: 77 | B86: FEDERALBNK | C86: 80.25 | D86: 79.90 | E86: 77.95 | F86: 75.65 | G86: 73.70 | H86: 82.20 | I86: 84.15 | J86: 86.45 | K86: 81.85 | L86: 77.6 | M86: 520.80504
A87: 78 | B87: FORTIS | C87: 163.85 | D87: 164.40 | E87: 162.55 | F87: 161.25 | G87: 159.40 | H87: 165.70 | I87: 167.55 | J87: 168.85 | K87: 166.25 | L87: 163.1 | M87: 10.54622
A88: 79 | B88: FRETAIL | C88: 81.65 | D88: 81.08 | E88: 78.72 | F88: 75.78 | G88: 73.42 | H88: 84.02 | I88: 86.38 | J88: 89.32 | K88: 83.45 | L88: 78.15 | M88: 34.94286
A89: 80 | B89: GAIL | C89: 129.7 | D89: 130.22 | E89: 128.23 | F89: 126.77 | G89: 124.78 | H89: 131.68 | I89: 133.67 | J89: 135.13 | K89: 132.2 | L89: 128.75 | M89: 164.60769
A90: 81 | B90: GMRINFRA | C90: 24.9 | D90: 24.88 | E90: 24.42 | F90: 23.93 | G90: 23.47 | H90: 25.37 | I90: 25.83 | J90: 26.32 | K90: 25.35 | L90: 24.4 | M90: 204.72166
A91: 82 | B91: GICRE | C91: 138.65 | D91: 140.57 | E91: 135.78 | F91: 132.92 | G91: 128.13 | H91: 143.43 | I91: 148.22 | J91: 151.08 | K91: 145.35 | L91: 137.7 | M91: 7.03504
A92: 83 | B92: GLENMARK | C92: 487.15 | D92: 486.62 | E92: 481.23 | F92: 475.32 | G92: 469.93 | H92: 492.53 | I92: 497.92 | J92: 503.83 | K92: 492 | L92: 480.7 | M92: 17.16999
A93: 84 | B93: GODREJAGRO | C93: 529.9 | D93: 535.17 | E93: 523.23 | F93: 516.57 | G93: 504.63 | H93: 541.83 | I93: 553.77 | J93: 560.43 | K93: 547.1 | L93: 528.5 | M93: 0.87387
A94: 85 | B94: GODREJCP | C94: 747.85 | D94: 754.43 | E94: 738.42 | F94: 728.98 | G94: 712.97 | H94: 763.87 | I94: 779.88 | J94: 789.32 | K94: 770.45 | L94: 745 | M94: 8.05564
A95: 86 | B95: GODREJIND | C95: 444.35 | D95: 446.45 | E95: 437.90 | F95: 431.45 | G95: 422.90 | H95: 452.90 | I95: 461.45 | J95: 467.90 | K95: 455 | L95: 440 | M95: 3.26872
A96: 87 | B96: GODREJPROP | C96: 1399.5 | D96: 1377.40 | E96: 1352.10 | F96: 1304.70 | G96: 1279.40 | H96: 1424.80 | I96: 1450.10 | J96: 1497.50 | K96: 1402.7 | L96: 1330 | M96: 11.58586
A97: 88 | B97: GRASIM | C97: 1190 | D97: 1178.78 | E97: 1147.67 | F97: 1105.33 | G97: 1074.22 | H97: 1221.12 | I97: 1252.23 | J97: 1294.57 | K97: 1209.9 | L97: 1136.45 | M97: 41.22906
A98: 89 | B98: GUJGASLTD | C98: 367 | D98: 365.10 | E98: 360.90 | F98: 354.80 | G98: 350.60 | H98: 371.20 | I98: 375.40 | J98: 381.50 | K98: 369.3 | L98: 359 | M98: 10.1473
A99: 90 | B99: GSPL | C99: 201.3 | D99: 201.60 | E99: 199.20 | F99: 197.10 | G99: 194.70 | H99: 203.70 | I99: 206.10 | J99: 208.20 | K99: 204 | L99: 199.5 | M99: 4.30947
A100: 91 | B100: HCLTECH | C100: 954.65 | D100: 951.07 | E100: 939.13 | F100: 923.62 | G100: 911.68 | H100: 966.58 | I100: 978.52 | J100: 994.03 | K100: 963 | L100: 935.55 | M100: 76.90178
A101: 92 | B101: HDFCAMC | C101: 2977.4 | D101: 2988.13 | E101: 2939.27 | F101: 2901.13 | G101: 2852.27 | H101: 3026.27 | I101: 3075.13 | J101: 3113.27 | K101: 3037 | L101: 2950 | M101: 2.12746
A102: 93 | B102: HDFCBANK | C102: 1560.55 | D102: 1545.48 | E102: 1512.47 | F102: 1464.38 | G102: 1431.37 | H102: 1593.57 | I102: 1626.58 | J102: 1674.67 | K102: 1578.5 | L102: 1497.4 | M102: 212.10103
A103: 94 | B103: HDFCLIFE | C103: 681.05 | D103: 689.18 | E103: 666.37 | F103: 651.68 | G103: 628.87 | H103: 703.87 | I103: 726.68 | J103: 741.37 | K103: 712 | L103: 674.5 | M103: 67.02065
A104: 95 | B104: HAVELLS | C104: 1130.3 | D104: 1116.40 | E104: 1085.90 | F104: 1041.50 | G104: 1011.00 | H104: 1160.80 | I104: 1191.30 | J104: 1235.70 | K104: 1146.9 | L104: 1072 | M104: 58.29926
A105: 96 | B105: HEROMOTOCO | C105: 3293.85 | D105: 3318.28 | E105: 3236.57 | F105: 3179.28 | G105: 3097.57 | H105: 3375.57 | I105: 3457.28 | J105: 3514.57 | K105: 3400 | L105: 3261 | M105: 17.51516
A106: 97 | B106: HINDALCO | C106: 255.35 | D106: 252.22 | E106: 247.03 | F106: 238.72 | G106: 233.53 | H106: 260.53 | I106: 265.72 | J106: 274.03 | K106: 257.4 | L106: 243.9 | M106: 182.51184
A107: 98 | B107: HINDPETRO | C107: 222.3 | D107: 222.73 | E107: 219.57 | F107: 216.83 | G107: 213.67 | H107: 225.47 | I107: 228.63 | J107: 231.37 | K107: 225.9 | L107: 220 | M107: 101.04614
A108: 99 | B108: HINDUNILVR | C108: 2230.45 | D108: 2236.82 | E108: 2198.63 | F108: 2166.82 | G108: 2128.63 | H108: 2268.63 | I108: 2306.82 | J108: 2338.63 | K108: 2275 | L108: 2205 | M108: 42.15607
A109: 100 | B109: HINDZINC | C109: 292.4 | D109: 290.32 | E109: 286.63 | F109: 280.87 | G109: 277.18 | H109: 296.08 | I109: 299.77 | J109: 305.53 | K109: 294 | L109: 284.55 | M109: 31.47425
A110: 101 | B110: HUDCO | C110: 43.05 | D110: 43.45 | E110: 42.50 | F110: 41.95 | G110: 41.00 | H110: 44.00 | I110: 44.95 | J110: 45.50 | K110: 44.4 | L110: 42.9 | M110: 20.84038
A111: 102 | B111: HDFC | C111: 2659 | D111: 2677.98 | E111: 2593.02 | F111: 2527.03 | G111: 2442.07 | H111: 2743.97 | I111: 2828.93 | J111: 2894.92 | K111: 2762.95 | L111: 2612 | M111: 92.53486
A112: 103 | B112: ICICIBANK | C112: 617.35 | D112: 613.35 | E112: 602.70 | F112: 588.05 | G112: 577.40 | H112: 628.00 | I112: 638.65 | J112: 653.30 | K112: 624 | L112: 598.7 | M112: 423.62384
A113: 104 | B113: ICICIGI | C113: 1387.95 | D113: 1393.22 | E113: 1366.73 | F113: 1345.52 | G113: 1319.03 | H113: 1414.43 | I113: 1440.92 | J113: 1462.13 | K113: 1419.7 | L113: 1372 | M113: 17.74566
A114: 105 | B114: ICICIPRULI | C114: 475 | D114: 482.40 | E114: 465.95 | F114: 456.90 | G114: 440.45 | H114: 491.45 | I114: 507.90 | J114: 516.95 | K114: 498.85 | L114: 473.35 | M114: 62.08284
A115: 106 | B115: ISEC | C115: 428.05 | D115: 420.22 | E115: 410.93 | F115: 393.82 | G115: 384.53 | H115: 437.33 | I115: 446.62 | J115: 463.73 | K115: 429.5 | L115: 403.1 | M115: 10.48071
A116: 107 | B116: IDFCFIRSTB | C116: 47.7 | D116: 47.73 | E116: 46.52 | F116: 45.33 | G116: 44.12 | H116: 48.92 | I116: 50.13 | J116: 51.32 | K116: 48.95 | L116: 46.55 | M116: 560.64941
A117: 108 | B117: ITC | C117: 218.2 | D117: 219.57 | E117: 215.63 | F117: 213.07 | G117: 209.13 | H117: 222.13 | I117: 226.07 | J117: 228.63 | K117: 223.5 | L117: 217 | M117: 484.57781
A118: 109 | B118: IBULHSGFIN | C118: 213.6 | D118: 213.43 | E118: 208.37 | F118: 203.13 | G118: 198.07 | H118: 218.67 | I118: 223.73 | J118: 228.97 | K118: 218.5 | L118: 208.2 | M118: 223.48007
A119: 110 | B119: INDHOTEL | C119: 123.3 | D119: 123.18 | E119: 121.77 | F119: 120.23 | G119: 118.82 | H119: 124.72 | I119: 126.13 | J119: 127.67 | K119: 124.6 | L119: 121.65 | M119: 18.12841
A120: 111 | B120: IOC | C120: 98.8 | D120: 98.25 | E120: 97.30 | F120: 95.80 | G120: 94.85 | H120: 99.75 | I120: 100.70 | J120: 102.20 | K120: 99.2 | L120: 96.75 | M120: 386.41408
A121: 112 | B121: IRCTC | C121: 1470.5 | D121: 1469.95 | E121: 1461.90 | F121: 1453.30 | G121: 1445.25 | H121: 1478.55 | I121: 1486.60 | J121: 1495.20 | K121: 1478 | L121: 1461.35 | M121: 10.63176
A122: 113 | B122: IGL | C122: 554.9 | D122: 548.68 | E122: 539.97 | F122: 525.03 | G122: 516.32 | H122: 563.62 | I122: 572.33 | J122: 587.27 | K122: 557.4 | L122: 533.75 | M122: 30.44205
A123: 114 | B123: INDUSTOWER | C123: 247.4 | D123: 247.53 | E123: 242.07 | F123: 236.73 | G123: 231.27 | H123: 252.87 | I123: 258.33 | J123: 263.67 | K123: 253 | L123: 242.2 | M123: 77.91175
A124: 115 | B124: INDUSINDBK | C124: 975.65 | D124: 974.65 | E124: 950.30 | F124: 924.95 | G124: 900.60 | H124: 1000.00 | I124: 1024.35 | J124: 1049.70 | K124: 999 | L124: 949.3 | M124: 205.56081
A125: 116 | B125: NAUKRI | C125: 4861.5 | D125: 4762.33 | E125: 4615.37 | F125: 4369.23 | G125: 4222.27 | H125: 5008.47 | I125: 5155.43 | J125: 5401.57 | K125: 4909.3 | L125: 4516.2 | M125: 12.46121
A126: 117 | B126: INFY | C126: 1271.25 | D126: 1276.42 | E126: 1258.43 | F126: 1245.62 | G126: 1227.63 | H126: 1289.23 | I126: 1307.22 | J126: 1320.03 | K126: 1294.4 | L126: 1263.6 | M126: 68.9249
A127: 118 | B127: INDIGO | C127: 1630 | D127: 1632.92 | E127: 1594.28 | F127: 1558.57 | G127: 1519.93 | H127: 1668.63 | I127: 1707.27 | J127: 1742.98 | K127: 1671.55 | L127: 1597.2 | M127: 10.56437
A128: 119 | B128: IPCALAB | C128: 1888.35 | D128: 1896.37 | E128: 1872.03 | F128: 1855.72 | G128: 1831.38 | H128: 1912.68 | I128: 1937.02 | J128: 1953.33 | K128: 1920.7 | L128: 1880.05 | M128: 5.26487
A129: 120 | B129: JSWENERGY | C129: 71.95 | D129: 71.57 | E129: 70.18 | F129: 68.42 | G129: 67.03 | H129: 73.33 | I129: 74.72 | J129: 76.48 | K129: 72.95 | L129: 69.8 | M129: 20.20022
A130: 121 | B130: JSWSTEEL | C130: 389 | D130: 385.80 | E130: 379.90 | F130: 370.80 | G130: 364.90 | H130: 394.90 | I130: 400.80 | J130: 409.90 | K130: 391.7 | L130: 376.7 | M130: 74.50391
A131: 122 | B131: JINDALSTEL | C131: 276.1 | D131: 277.87 | E131: 269.43 | F131: 262.77 | G131: 254.33 | H131: 284.53 | I131: 292.97 | J131: 299.63 | K131: 286.3 | L131: 271.2 | M131: 135.967
A132: 123 | B132: JUBLFOOD | C132: 2698.55 | D132: 2677.52 | E132: 2635.13 | F132: 2571.72 | G132: 2529.33 | H132: 2740.93 | I132: 2783.32 | J132: 2846.73 | K132: 2719.9 | L132: 2614.1 | M132: 7.64707
A133: 124 | B133: KOTAKBANK | C133: 1861.3 | D133: 1846.82 | E133: 1814.53 | F133: 1767.77 | G133: 1735.48 | H133: 1893.58 | I133: 1925.87 | J133: 1972.63 | K133: 1879.1 | L133: 1800.05 | M133: 58.71337
A134: 125 | B134: L&TFH | C134: 93.8 | D134: 93.92 | E134: 91.93 | F134: 90.07 | G134: 88.08 | H134: 95.78 | I134: 97.77 | J134: 99.63 | K134: 95.9 | L134: 92.05 | M134: 241.06922
A135: 126 | B135: LTTS | C135: 2549.6 | D135: 2531.85 | E135: 2505.15 | F135: 2460.70 | G135: 2434.00 | H135: 2576.30 | I135: 2603.00 | J135: 2647.45 | K135: 2558.55 | L135: 2487.4 | M135: 2.27466
A136: 127 | B136: LICHSGFIN | C136: 441 | D136: 444.12 | E136: 432.73 | F136: 424.47 | G136: 413.08 | H136: 452.38 | I136: 463.77 | J136: 472.03 | K136: 455.5 | L136: 435.85 | M136: 97.19962
A137: 128 | B137: LTI | C137: 4038.55 | D137: 4029.85 | E137: 3959.70 | F137: 3880.85 | G137: 3810.70 | H137: 4108.70 | I137: 4178.85 | J137: 4257.70 | K137: 4100 | L137: 3951 | M137: 1.58015
A138: 129 | B138: LT | C138: 1520.2 | D138: 1529.07 | E138: 1465.13 | F138: 1410.07 | G138: 1346.13 | H138: 1584.13 | I138: 1648.07 | J138: 1703.13 | K138: 1593 | L138: 1474 | M138: 143.49665
A139: 130 | B139: LUPIN | C139: 1032.5 | D139: 1021.50 | E139: 1006.55 | F139: 980.60 | G139: 965.65 | H139: 1047.45 | I139: 1062.40 | J139: 1088.35 | K139: 1036.45 | L139: 995.55 | M139: 34.6644
A140: 131 | B140: MRF | C140: 90745.95 | D140: 90540.90 | E140: 89131.90 | F140: 87517.85 | G140: 86108.85 | H140: 92154.95 | I140: 93563.95 | J140: 95178.00 | K140: 91949.9 | L140: 88926.85 | M140: 0.51519
A141: 132 | B141: MGL | C141: 1080.95 | D141: 1076.05 | E141: 1066.10 | F141: 1051.25 | G141: 1041.30 | H141: 1090.90 | I141: 1100.85 | J141: 1115.70 | K141: 1086 | L141: 1061.2 | M141: 6.14642
A142: 133 | B142: M&MFIN | C142: 172.05 | D142: 170.18 | E142: 165.37 | F142: 158.68 | G142: 153.87 | H142: 176.87 | I142: 181.68 | J142: 188.37 | K142: 175 | L142: 163.5 | M142: 188.54306
A143: 134 | B143: M&M | C143: 816.85 | D143: 818.95 | E143: 800.50 | F143: 784.15 | G143: 765.70 | H143: 835.30 | I143: 853.75 | J143: 870.10 | K143: 837.4 | L143: 802.6 | M143: 53.34431
A144: 135 | B144: MANAPPURAM | C144: 169.75 | D144: 169.53 | E144: 166.37 | F144: 162.98 | G144: 159.82 | H144: 172.92 | I144: 176.08 | J144: 179.47 | K144: 172.7 | L144: 166.15 | M144: 70.4624
A145: 136 | B145: MARICO | C145: 423.7 | D145: 424.30 | E145: 418.15 | F145: 412.60 | G145: 406.45 | H145: 429.85 | I145: 436.00 | J145: 441.55 | K145: 430.45 | L145: 418.75 | M145: 32.04628
A146: 137 | B146: MARUTI | C146: 7654.7 | D146: 7638.20 | E146: 7506.65 | F146: 7358.60 | G146: 7227.05 | H146: 7786.25 | I146: 7917.80 | J146: 8065.85 | K146: 7769.75 | L146: 7490.15 | M146: 17.00845
A147: 138 | B147: MFSL | C147: 696.3 | D147: 700.55 | E147: 682.45 | F147: 668.60 | G147: 650.50 | H147: 714.40 | I147: 732.50 | J147: 746.35 | K147: 718.65 | L147: 686.7 | M147: 12.9402
A148: 139 | B148: MINDTREE | C148: 1680.85 | D148: 1691.63 | E148: 1656.27 | F148: 1631.68 | G148: 1596.32 | H148: 1716.22 | I148: 1751.58 | J148: 1776.17 | K148: 1727 | L148: 1667.05 | M148: 5.11751
A149: 140 | B149: MOTHERSUMI | C149: 156.3 | D149: 155.82 | E149: 153.18 | F149: 150.07 | G149: 147.43 | H149: 158.93 | I149: 161.57 | J149: 164.68 | K149: 158.45 | L149: 152.7 | M149: 126.65368
A150: 141 | B150: MPHASIS | C150: 1572.8 | D150: 1565.20 | E150: 1539.75 | F150: 1506.70 | G150: 1481.25 | H150: 1598.25 | I150: 1623.70 | J150: 1656.75 | K150: 1590.65 | L150: 1532.15 | M150: 4.05555
A151: 142 | B151: MUTHOOTFIN | C151: 1166.95 | D151: 1167.30 | E151: 1151.65 | F151: 1136.35 | G151: 1120.70 | H151: 1182.60 | I151: 1198.25 | J151: 1213.55 | K151: 1182.95 | L151: 1152 | M151: 10.53066
A152: 143 | B152: NATCOPHARM | C152: 887.05 | D152: 892.12 | E152: 876.93 | F152: 866.82 | G152: 851.63 | H152: 902.23 | I152: 917.42 | J152: 927.53 | K152: 907.3 | L152: 882 | M152: 1.92797
A153: 144 | B153: NMDC | C153: 110.8 | D153: 110.72 | E153: 108.33 | F153: 105.87 | G153: 103.48 | H153: 113.18 | I153: 115.57 | J153: 118.03 | K153: 113.1 | L153: 108.25 | M153: 107.84634
A154: 145 | B154: NTPC | C154: 94.15 | D154: 94.13 | E154: 92.92 | F154: 91.68 | G154: 90.47 | H154: 95.37 | I154: 96.58 | J154: 97.82 | K154: 95.35 | L154: 92.9 | M154: 292.79584
A155: 146 | B155: NATIONALUM | C155: 50.45 | D155: 50.28 | E155: 49.47 | F155: 48.48 | G155: 47.67 | H155: 51.27 | I155: 52.08 | J155: 53.07 | K155: 51.1 | L155: 49.3 | M155: 342.85287
A156: 147 | B156: NAVINFLUOR | C156: 2510.35 | D156: 2470.78 | E156: 2392.57 | F156: 2274.78 | G156: 2196.57 | H156: 2588.57 | I156: 2666.78 | J156: 2784.57 | K156: 2549 | L156: 2353 | M156: 3.30962
A157: 148 | B157: NESTLEIND | C157: 17190.3 | D157: 17198.27 | E157: 17046.53 | F157: 16902.77 | G157: 16751.03 | H157: 17342.03 | I157: 17493.77 | J157: 17637.53 | K157: 17350 | L157: 17054.5 | M157: 1.30298
A158: 149 | B158: NAM-INDIA | C158: 331.6 | D158: 330.47 | E158: 325.13 | F158: 318.67 | G158: 313.33 | H158: 336.93 | I158: 342.27 | J158: 348.73 | K158: 335.8 | L158: 324 | M158: 13.63338
A159: 150 | B159: OBEROIRLTY | C159: 546.95 | D159: 544.67 | E159: 537.38 | F159: 527.82 | G159: 520.53 | H159: 554.23 | I159: 561.52 | J159: 571.08 | K159: 551.95 | L159: 535.1 | M159: 4.74098
A160: 151 | B160: ONGC | C160: 92.85 | D160: 92.67 | E160: 91.38 | F160: 89.92 | G160: 88.63 | H160: 94.13 | I160: 95.42 | J160: 96.88 | K160: 93.95 | L160: 91.2 | M160: 221.41489
A161: 152 | B161: OIL | C161: 112.95 | D161: 113.02 | E161: 112.03 | F161: 111.12 | G161: 110.13 | H161: 113.93 | I161: 114.92 | J161: 115.83 | K161: 114 | L161: 112.1 | M161: 7.25312
A162: 153 | B162: OFSS | C162: 3280.8 | D162: 3273.28 | E162: 3217.57 | F162: 3154.33 | G162: 3098.62 | H162: 3336.52 | I162: 3392.23 | J162: 3455.47 | K162: 3329 | L162: 3210.05 | M162: 0.32943
A163: 154 | B163: PIIND | C163: 2063.6 | D163: 2044.35 | E163: 2000.25 | F163: 1936.90 | G163: 1892.80 | H163: 2107.70 | I163: 2151.80 | J163: 2215.15 | K163: 2088.45 | L163: 1981 | M163: 7.30737
A164: 155 | B164: PAGEIND | C164: 29372.8 | D164: 29062.47 | E164: 28444.93 | F164: 27517.07 | G164: 26899.53 | H164: 29990.33 | I164: 30607.87 | J164: 31535.73 | K164: 29680 | L164: 28134.6 | M164: 0.70158
A165: 156 | B165: PETRONET | C165: 246.45 | D165: 245.75 | E165: 242.70 | F165: 238.95 | G165: 235.90 | H165: 249.50 | I165: 252.55 | J165: 256.30 | K165: 248.8 | L165: 242 | M165: 43.55693
A166: 157 | B166: PFIZER | C166: 4468.65 | D166: 4492.88 | E166: 4400.77 | F166: 4332.88 | G166: 4240.77 | H166: 4560.77 | I166: 4652.88 | J166: 4720.77 | K166: 4585 | L166: 4425 | M166: 0.62731
A167: 158 | B167: PIDILITIND | C167: 1761.05 | D167: 1753.87 | E167: 1728.23 | F167: 1695.42 | G167: 1669.78 | H167: 1786.68 | I167: 1812.32 | J167: 1845.13 | K167: 1779.5 | L167: 1721.05 | M167: 8.70067
A168: 159 | B168: PEL | C168: 1500.9 | D168: 1476.47 | E168: 1436.38 | F168: 1371.87 | G168: 1331.78 | H168: 1540.98 | I168: 1581.07 | J168: 1645.58 | K168: 1516.55 | L168: 1411.95 | M168: 26.03431
A169: 160 | B169: POLYCAB | C169: 1270.45 | D169: 1259.98 | E169: 1242.02 | F169: 1213.58 | G169: 1195.62 | H169: 1288.42 | I169: 1306.38 | J169: 1334.82 | K169: 1277.95 | L169: 1231.55 | M169: 5.91972
A170: 161 | B170: PFC | C170: 118.95 | D170: 119.02 | E170: 117.03 | F170: 115.12 | G170: 113.13 | H170: 120.93 | I170: 122.92 | J170: 124.83 | K170: 121 | L170: 117.1 | M170: 58.72278
A171: 162 | B171: POWERGRID | C171: 194.2 | D171: 193.02 | E171: 190.38 | F171: 186.57 | G171: 183.93 | H171: 196.83 | I171: 199.47 | J171: 203.28 | K171: 195.65 | L171: 189.2 | M171: 60.77028
A172: 163 | B172: PRESTIGE | C172: 284.25 | D172: 283.02 | E172: 279.23 | F172: 274.22 | G172: 270.43 | H172: 288.03 | I172: 291.82 | J172: 296.83 | K172: 286.8 | L172: 278 | M172: 3.91758
A173: 164 | B173: PGHH | C173: 11120.75 | D173: 11191.60 | E173: 11029.15 | F173: 10937.55 | G173: 10775.10 | H173: 11283.20 | I173: 11445.65 | J173: 11537.25 | K173: 11354.05 | L173: 11100 | M173: 0.20784
A174: 165 | B174: PNB | C174: 36.2 | D174: 36.20 | E174: 35.55 | F174: 34.90 | G174: 34.25 | H174: 36.85 | I174: 37.50 | J174: 38.15 | K174: 36.85 | L174: 35.55 | M174: 1998.32087
A175: 166 | B175: RBLBANK | C175: 242.4 | D175: 243.25 | E175: 237.15 | F175: 231.90 | G175: 225.80 | H175: 248.50 | I175: 254.60 | J175: 259.85 | K175: 249.35 | L175: 238 | M175: 291.05457
A176: 167 | B176: RECLTD | C176: 143.7 | D176: 142.42 | E176: 140.38 | F176: 137.07 | G176: 135.03 | H176: 145.73 | I176: 147.77 | J176: 151.08 | K176: 144.45 | L176: 139.1 | M176: 57.35905
A177: 168 | B177: RAJESHEXPO | C177: 477.5 | D177: 478.15 | E177: 474.35 | F177: 471.20 | G177: 467.40 | H177: 481.30 | I177: 485.10 | J177: 488.25 | K177: 481.95 | L177: 475 | M177: 2.00887
A178: 169 | B178: RELIANCE | C178: 1925.8 | D178: 1906.92 | E178: 1873.83 | F178: 1821.87 | G178: 1788.78 | H178: 1958.88 | I178: 1991.97 | J178: 2043.93 | K178: 1940 | L178: 1854.95 | M178: 191.38414
A179: 170 | B179: SBICARD | C179: 1008.75 | D179: 1014.25 | E179: 995.50 | F179: 982.25 | G179: 963.50 | H179: 1027.50 | I179: 1046.25 | J179: 1059.50 | K179: 1033 | L179: 1001 | M179: 8.17924
A180: 171 | B180: SBILIFE | C180: 865.35 | D180: 871.10 | E180: 852.20 | F180: 839.05 | G180: 820.15 | H180: 884.25 | I180: 903.15 | J180: 916.30 | K180: 890 | L180: 857.95 | M180: 27.81083
A181: 172 | B181: SRF | C181: 5449.55 | D181: 5486.95 | E181: 5392.60 | F181: 5335.65 | G181: 5241.30 | H181: 5543.90 | I181: 5638.25 | J181: 5695.20 | K181: 5581.3 | L181: 5430 | M181: 2.46981
A182: 173 | B182: SANOFI | C182: 7899.65 | D182: 7938.50 | E182: 7841.15 | F182: 7782.65 | G182: 7685.30 | H182: 7997.00 | I182: 8094.35 | J182: 8152.85 | K182: 8035.85 | L182: 7880 | M182: 0.16661
A183: 174 | B183: SHREECEM | C183: 26432.55 | D183: 25761.03 | E183: 24872.07 | F183: 23311.58 | G183: 22422.62 | H183: 27321.52 | I183: 28210.48 | J183: 29770.97 | K183: 26650 | L183: 24200.55 | M183: 1.88876
A184: 175 | B184: SRTRANSFIN | C184: 1366.65 | D184: 1381.12 | E184: 1332.23 | F184: 1297.82 | G184: 1248.93 | H184: 1415.53 | I184: 1464.42 | J184: 1498.83 | K184: 1430 | L184: 1346.7 | M184: 61.46122
A185: 176 | B185: SIEMENS | C185: 1818.85 | D185: 1782.60 | E185: 1735.20 | F185: 1651.55 | G185: 1604.15 | H185: 1866.25 | I185: 1913.65 | J185: 1997.30 | K185: 1830 | L185: 1698.95 | M185: 11.77367
A186: 177 | B186: SBIN | C186: 333.1 | D186: 328.50 | E186: 319.60 | F186: 306.10 | G186: 297.20 | H186: 342.00 | I186: 350.90 | J186: 364.40 | K186: 337.4 | L186: 315 | M186: 1214.34166
A187: 178 | B187: SAIL | C187: 61 | D187: 61.82 | E187: 59.28 | F187: 57.57 | G187: 55.03 | H187: 63.53 | I187: 66.07 | J187: 67.78 | K187: 64.35 | L187: 60.1 | M187: 713.9156
A188: 179 | B188: SUNPHARMA | C188: 609.45 | D188: 605.95 | E188: 595.00 | F188: 580.55 | G188: 569.60 | H188: 620.40 | I188: 631.35 | J188: 645.80 | K188: 616.9 | L188: 591.5 | M188: 157.88247
A189: 180 | B189: SUNTV | C189: 520.6 | D189: 515.30 | E189: 504.60 | F189: 488.60 | G189: 477.90 | H189: 531.30 | I189: 542.00 | J189: 558.00 | K189: 526 | L189: 499.3 | M189: 45.20335
A190: 181 | B190: SYNGENE | C190: 566.4 | D190: 566.73 | E190: 561.72 | F190: 557.03 | G190: 552.02 | H190: 571.42 | I190: 576.43 | J190: 581.12 | K190: 571.75 | L190: 562.05 | M190: 6.1644
A191: 182 | B191: TVSMOTOR | C191: 620.9 | D191: 610.02 | E191: 593.63 | F191: 566.37 | G191: 549.98 | H191: 637.28 | I191: 653.67 | J191: 680.93 | K191: 626.4 | L191: 582.75 | M191: 130.69121
A192: 183 | B192: TATACHEM | C192: 519.6 | D192: 513.62 | E192: 503.83 | F192: 488.07 | G192: 478.28 | H192: 529.38 | I192: 539.17 | J192: 554.93 | K192: 523.4 | L192: 497.85 | M192: 49.10238
A193: 184 | B193: TCS | C193: 3203.45 | D193: 3192.48 | E193: 3160.97 | F193: 3118.48 | G193: 3086.97 | H193: 3234.97 | I193: 3266.48 | J193: 3308.97 | K193: 3224 | L193: 3150 | M193: 28.81837
A194: 185 | B194: TATACONSUM | C194: 575.35 | D194: 579.63 | E194: 562.87 | F194: 550.38 | G194: 533.62 | H194: 592.12 | I194: 608.88 | J194: 621.37 | K194: 596.4 | L194: 567.15 | M194: 57.13446
A195: 186 | B195: TATAMOTORS | C195: 322 | D195: 313.75 | E195: 298.65 | F195: 275.30 | G195: 260.20 | H195: 337.10 | I195: 352.20 | J195: 375.55 | K195: 328.85 | L195: 290.4 | M195: 2519.65965
A196: 187 | B196: TATAPOWER | C196: 83.6 | D196: 82.45 | E196: 80.80 | F196: 78.00 | G196: 76.35 | H196: 85.25 | I196: 86.90 | J196: 89.70 | K196: 84.1 | L196: 79.65 | M196: 479.55673
A197: 188 | B197: TATASTEEL | C197: 641.65 | D197: 637.92 | E197: 627.83 | F197: 614.02 | G197: 603.93 | H197: 651.73 | I197: 661.82 | J197: 675.63 | K197: 648 | L197: 624.1 | M197: 180.48957
A198: 189 | B198: TECHM | C198: 957.2 | D198: 955.87 | E198: 938.83 | F198: 920.47 | G198: 903.43 | H198: 974.23 | I198: 991.27 | J198: 1009.63 | K198: 972.9 | L198: 937.5 | M198: 49.7153
A199: 190 | B199: RAMCOCEM | C199: 877.3 | D199: 867.78 | E199: 850.57 | F199: 823.83 | G199: 806.62 | H199: 894.52 | I199: 911.73 | J199: 938.47 | K199: 885 | L199: 841.05 | M199: 14.47847
A200: 191 | B200: TITAN | C200: 1485.45 | D200: 1501.15 | E200: 1466.30 | F200: 1447.15 | G200: 1412.30 | H200: 1520.30 | I200: 1555.15 | J200: 1574.30 | K200: 1536 | L200: 1482 | M200: 19.74202
A201: 192 | B201: TORNTPHARM | C201: 2571.55 | D201: 2558.72 | E201: 2532.13 | F201: 2492.72 | G201: 2466.13 | H201: 2598.13 | I201: 2624.72 | J201: 2664.13 | K201: 2585.3 | L201: 2519.3 | M201: 5.6135
A202: 193 | B202: TORNTPOWER | C202: 314.85 | D202: 313.80 | E202: 309.60 | F202: 304.35 | G202: 300.15 | H202: 319.05 | I202: 323.25 | J202: 328.50 | K202: 318 | L202: 308.55 | M202: 22.70968
A203: 194 | B203: TRENT | C203: 665.75 | D203: 662.97 | E203: 643.93 | F203: 622.12 | G203: 603.08 | H203: 684.78 | I203: 703.82 | J203: 725.63 | K203: 682 | L203: 641.15 | M203: 7.32091
A204: 195 | B204: UPL | C204: 566.3 | D204: 558.60 | E204: 548.70 | F204: 531.10 | G204: 521.20 | H204: 576.20 | I204: 586.10 | J204: 603.70 | K204: 568.5 | L204: 541 | M204: 134.16792
A205: 196 | B205: ULTRACEMCO | C205: 6123.55 | D205: 6035.85 | E205: 5872.70 | F205: 5621.85 | G205: 5458.70 | H205: 6286.70 | I205: 6449.85 | J205: 6700.70 | K205: 6199 | L205: 5785 | M205: 22.51712
... 29 more rows

Sheet MidCap Intra
L5: Back To Main Page
A6: FOR INTRA DAY TRADING | K6: =Main!B10 -> 2021-02-03
A9: Sr.no | B9: Scrip | C9: CLOSE RATE | D9: Pivot Point | E9: Supports | H9: Resistances
C10: Point | E10: S1 | F10: S2 | G10: S3 | H10: R1 | I10: R2 | J10: R3 | K10: HIGH | L10: LOW | M10: Total Trade Quanity in Lakhs
A11: 1 | B11: 3MINDIA | C11: 20617 | D11: 20190.43 | E11: 19671.57 | F11: 18726.13 | G11: 18207.27 | H11: 21135.87 | I11: 21654.73 | J11: 22600.17 | K11: 20709.3 | L11: 19245 | M11: 0.24991
A12: 2 | B12: ABB | C12: 1445.4 | D12: 1447.55 | E12: 1387.75 | F12: 1330.10 | G12: 1270.30 | H12: 1505.20 | I12: 1565.00 | J12: 1622.65 | K12: 1507.35 | L12: 1389.9 | M12: 4.15804
A13: 3 | B13: POWERINDIA | C13: 1263.55 | D13: 1255.95 | E13: 1236.60 | F13: 1209.65 | G13: 1190.30 | H13: 1282.90 | I13: 1302.25 | J13: 1329.20 | K13: 1275.3 | L13: 1229 | M13: 0.27992
A14: 4 | B14: ACC | C14: 1762.85 | D14: 1745.97 | E14: 1707.93 | F14: 1653.02 | G14: 1614.98 | H14: 1800.88 | I14: 1838.92 | J14: 1893.83 | K14: 1784 | L14: 1691.05 | M14: 16.97944
A15: 5 | B15: AIAENG | C15: 1939.3 | D15: 1944.97 | E15: 1929.38 | F15: 1919.47 | G15: 1903.88 | H15: 1954.88 | I15: 1970.47 | J15: 1980.38 | K15: 1960.55 | L15: 1935.05 | M15: 0.34268
A16: 6 | B16: APLAPOLLO | C16: 931.5 | D16: 937.55 | E16: 920.10 | F16: 908.70 | G16: 891.25 | H16: 948.95 | I16: 966.40 | J16: 977.80 | K16: 955 | L16: 926.15 | M16: 3.08982
A17: 7 | B17: AUBANK | C17: 960.7 | D17: 964.92 | E17: 930.83 | F17: 900.97 | G17: 866.88 | H17: 994.78 | I17: 1028.87 | J17: 1058.73 | K17: 999 | L17: 935.05 | M17: 11.30196
A18: 8 | B18: AARTIDRUGS | C18: 678.05 | D18: 681.98 | E18: 671.07 | F18: 664.08 | G18: 653.17 | H18: 688.97 | I18: 699.88 | J18: 706.87 | K18: 692.9 | L18: 675 | M18: 2.71545
A19: 9 | B19: AARTIIND | C19: 1181.55 | D19: 1173.98 | E19: 1160.57 | F19: 1139.58 | G19: 1126.17 | H19: 1194.97 | I19: 1208.38 | J19: 1229.37 | K19: 1187.4 | L19: 1153 | M19: 3.05988
A20: 10 | B20: AAVAS | C20: 1982.2 | D20: 1955.40 | E20: 1911.80 | F20: 1841.40 | G20: 1797.80 | H20: 2025.80 | I20: 2069.40 | J20: 2139.80 | K20: 1999 | L20: 1885 | M20: 0.91738
A21: 11 | B21: ABBOTINDIA | C21: 14093.85 | D21: 14171.88 | E21: 13881.77 | F21: 13669.68 | G21: 13379.57 | H21: 14383.97 | I21: 14674.08 | J21: 14886.17 | K21: 14462 | L21: 13959.8 | M21: 0.56037
A22: 12 | B22: ADANIENT | C22: 564.2 | D22: 557.30 | E22: 547.70 | F22: 531.20 | G22: 521.60 | H22: 573.80 | I22: 583.40 | J22: 599.90 | K22: 566.9 | L22: 540.8 | M22: 51.44708
A23: 13 | B23: ADANIGREEN | C23: 1031.95 | D23: 1030.97 | E23: 1014.98 | F23: 998.02 | G23: 982.03 | H23: 1047.93 | I23: 1063.92 | J23: 1080.88 | K23: 1046.95 | L23: 1014 | M23: 3.53217
A24: 14 | B24: ADANIPORTS | C24: 550.8 | D24: 548.55 | E24: 542.25 | F24: 533.70 | G24: 527.40 | H24: 557.10 | I24: 563.40 | J24: 571.95 | K24: 554.85 | L24: 540 | M24: 71.60471
A25: 15 | B25: ATGL | C25: 401.1 | D25: 398.42 | E25: 389.88 | F25: 378.67 | G25: 370.13 | H25: 409.63 | I25: 418.17 | J25: 429.38 | K25: 406.95 | L25: 387.2 | M25: 16.76396
A26: 16 | B26: ADANITRANS | C26: 491.35 | D26: 487.52 | E26: 476.33 | F26: 461.32 | G26: 450.13 | H26: 502.53 | I26: 513.72 | J26: 528.73 | K26: 498.7 | L26: 472.5 | M26: 7.90371
A27: 17 | B27: ABCAPITAL | C27: 84.75 | D27: 85.35 | E27: 83.20 | F27: 81.65 | G27: 79.50 | H27: 86.90 | I27: 89.05 | J27: 90.60 | K27: 87.5 | L27: 83.8 | M27: 36.55563
A28: 18 | B28: ABFRL | C28: 150.95 | D28: 152.55 | E28: 148.95 | F28: 146.95 | G28: 143.35 | H28: 154.55 | I28: 158.15 | J28: 160.15 | K28: 156.15 | L28: 150.55 | M28: 25.78907
A29: 19 | B29: ADVENZYMES | C29: 327.4 | D29: 324.50 | E29: 319.00 | F29: 310.60 | G29: 305.10 | H29: 332.90 | I29: 338.40 | J29: 346.80 | K29: 330 | L29: 316.1 | M29: 2.70784
A30: 20 | B30: AEGISCHEM | C30: 280.75 | D30: 284.45 | E30: 276.30 | F30: 271.85 | G30: 263.70 | H30: 288.90 | I30: 297.05 | J30: 301.50 | K30: 292.6 | L30: 280 | M30: 1.6762
A31: 21 | B31: AFFLE | C31: 3801.65 | D31: 3800.72 | E31: 3747.43 | F31: 3693.22 | G31: 3639.93 | H31: 3854.93 | I31: 3908.22 | J31: 3962.43 | K31: 3854 | L31: 3746.5 | M31: 0.62134
A32: 22 | B32: AJANTPHARM | C32: 1747.15 | D32: 1752.87 | E32: 1715.73 | F32: 1684.32 | G32: 1647.18 | H32: 1784.28 | I32: 1821.42 | J32: 1852.83 | K32: 1790 | L32: 1721.45 | M32: 2.50509
A33: 23 | B33: AKZOINDIA | C33: 2272.3 | D33: 2276.50 | E33: 2208.00 | F33: 2143.70 | G33: 2075.20 | H33: 2340.80 | I33: 2409.30 | J33: 2473.60 | K33: 2345 | L33: 2212.2 | M33: 0.39021
A34: 24 | B34: ALEMBICLTD | C34: 96.15 | D34: 95.98 | E34: 95.17 | F34: 94.18 | G34: 93.37 | H34: 96.97 | I34: 97.78 | J34: 98.77 | K34: 96.8 | L34: 95 | M34: 3.1847
A35: 25 | B35: APLLTD | C35: 973.75 | D35: 973.40 | E35: 956.50 | F35: 939.25 | G35: 922.35 | H35: 990.65 | I35: 1007.55 | J35: 1024.80 | K35: 990.3 | L35: 956.15 | M35: 4.90051
A36: 26 | B36: ALKEM | C36: 2902.75 | D36: 2911.90 | E36: 2850.85 | F36: 2798.95 | G36: 2737.90 | H36: 2963.80 | I36: 3024.85 | J36: 3076.75 | K36: 2972.95 | L36: 2860 | M36: 1.71959
A37: 27 | B37: ALKYLAMINE | C37: 5149.2 | D37: 5121.07 | E37: 5053.13 | F37: 4957.07 | G37: 4889.13 | H37: 5217.13 | I37: 5285.07 | J37: 5381.13 | K37: 5189 | L37: 5025 | M37: 1.05327
A38: 28 | B38: ALOKINDS | C38: 21.2 | D38: 21.32 | E38: 21.03 | F38: 20.87 | G38: 20.58 | H38: 21.48 | I38: 21.77 | J38: 21.93 | K38: 21.6 | L38: 21.15 | M38: 59.51509
A39: 29 | B39: AMARAJABAT | C39: 940.95 | D39: 951.45 | E39: 928.00 | F39: 915.05 | G39: 891.60 | H39: 964.40 | I39: 987.85 | J39: 1000.80 | K39: 974.9 | L39: 938.5 | M39: 10.8238
A40: 30 | B40: AMBER | C40: 2712.5 | D40: 2708.48 | E40: 2669.02 | F40: 2625.53 | G40: 2586.07 | H40: 2751.97 | I40: 2791.43 | J40: 2834.92 | K40: 2747.95 | L40: 2665 | M40: 2.02351
A41: 31 | B41: AMBUJACEM | C41: 276.25 | D41: 272.32 | E41: 265.03 | F41: 253.82 | G41: 246.53 | H41: 283.53 | I41: 290.82 | J41: 302.03 | K41: 279.6 | L41: 261.1 | M41: 128.96237
A42: 32 | B42: APOLLOHOSP | C42: 2705.15 | D42: 2709.38 | E42: 2673.77 | F42: 2642.38 | G42: 2606.77 | H42: 2740.77 | I42: 2776.38 | J42: 2807.77 | K42: 2745 | L42: 2678 | M42: 6.07131
A43: 33 | B43: APOLLOTYRE | C43: 227.5 | D43: 223.77 | E43: 218.83 | F43: 210.17 | G43: 205.23 | H43: 232.43 | I43: 237.37 | J43: 246.03 | K43: 228.7 | L43: 215.1 | M43: 211.34623
A44: 34 | B44: ASHOKLEY | C44: 132.3 | D44: 130.07 | E44: 126.23 | F44: 120.17 | G44: 116.33 | H44: 136.13 | I44: 139.97 | J44: 146.03 | K44: 133.9 | L44: 124 | M44: 766.58238
A45: 35 | B45: ASHOKA | C45: 100.7 | D45: 99.00 | E45: 96.00 | F45: 91.30 | G45: 88.30 | H45: 103.70 | I45: 106.70 | J45: 111.40 | K45: 102 | L45: 94.3 | M45: 31.64484
A46: 36 | B46: ASIANPAINT | C46: 2463.65 | D46: 2469.58 | E46: 2419.17 | F46: 2374.68 | G46: 2324.27 | H46: 2514.07 | I46: 2564.48 | J46: 2608.97 | K46: 2520 | L46: 2425.1 | M46: 26.79428
A47: 37 | B47: ASTERDM | C47: 154.3 | D47: 155.68 | E47: 151.62 | F47: 148.93 | G47: 144.87 | H47: 158.37 | I47: 162.43 | J47: 165.12 | K47: 159.75 | L47: 153 | M47: 0.99571
A48: 38 | B48: ASTRAZEN | C48: 3634.95 | D48: 3654.10 | E48: 3593.15 | F48: 3551.35 | G48: 3490.40 | H48: 3695.90 | I48: 3756.85 | J48: 3798.65 | K48: 3715.05 | L48: 3612.3 | M48: 0.29463
A49: 39 | B49: ASTRAL | C49: 1799.7 | D49: 1778.03 | E49: 1752.07 | F49: 1704.43 | G49: 1678.47 | H49: 1825.67 | I49: 1851.63 | J49: 1899.27 | K49: 1804 | L49: 1730.4 | M49: 1.60873
A50: 40 | B50: ATUL | C50: 6548.85 | D50: 6579.62 | E50: 6499.23 | F50: 6449.62 | G50: 6369.23 | H50: 6629.23 | I50: 6709.62 | J50: 6759.23 | K50: 6660 | L50: 6530 | M50: 0.43621
A51: 41 | B51: AUROPHARMA | C51: 921.6 | D51: 923.70 | E51: 908.50 | F51: 895.40 | G51: 880.20 | H51: 936.80 | I51: 952.00 | J51: 965.10 | K51: 938.9 | L51: 910.6 | M51: 26.92863
A52: 42 | B52: AVANTIFEED | C52: 514.15 | D52: 517.05 | E52: 508.10 | F52: 502.05 | G52: 493.10 | H52: 523.10 | I52: 532.05 | J52: 538.10 | K52: 526 | L52: 511 | M52: 2.29233
A53: 43 | B53: DMART | C53: 2869.1 | D53: 2852.60 | E53: 2798.20 | F53: 2727.30 | G53: 2672.90 | H53: 2923.50 | I53: 2977.90 | J53: 3048.80 | K53: 2907 | L53: 2781.7 | M53: 8.37632
A54: 44 | B54: AXISBANK | C54: 714.2 | D54: 721.12 | E54: 697.28 | F54: 680.37 | G54: 656.53 | H54: 738.03 | I54: 761.87 | J54: 778.78 | K54: 744.95 | L54: 704.2 | M54: 287.0332
A55: 45 | B55: BASF | C55: 1569.1 | D55: 1585.37 | E55: 1543.73 | F55: 1518.37 | G55: 1476.73 | H55: 1610.73 | I55: 1652.37 | J55: 1677.73 | K55: 1627 | L55: 1560 | M55: 0.1934
A56: 46 | B56: BEML | C56: 922.1 | D56: 927.70 | E56: 910.40 | F56: 898.70 | G56: 881.40 | H56: 939.40 | I56: 956.70 | J56: 968.40 | K56: 945 | L56: 916 | M56: 3.35207
A57: 47 | B57: BSE | C57: 608.25 | D57: 611.05 | E57: 598.45 | F57: 588.65 | G57: 576.05 | H57: 620.85 | I57: 633.45 | J57: 643.25 | K57: 623.65 | L57: 601.25 | M57: 3.37177
A58: 48 | B58: BAJAJ-AUTO | C58: 4201.45 | D58: 4196.62 | E58: 4122.08 | F58: 4042.72 | G58: 3968.18 | H58: 4275.98 | I58: 4350.52 | J58: 4429.88 | K58: 4271.15 | L58: 4117.25 | M58: 11.67922
A59: 49 | B59: BAJAJCON | C59: 213.2 | D59: 215.05 | E59: 210.15 | F59: 207.10 | G59: 202.20 | H59: 218.10 | I59: 223.00 | J59: 226.05 | K59: 219.95 | L59: 212 | M59: 2.73054
A60: 50 | B60: BAJAJELEC | C60: 734.5 | D60: 738.25 | E60: 714.90 | F60: 695.30 | G60: 671.95 | H60: 757.85 | I60: 781.20 | J60: 800.80 | K60: 761.6 | L60: 718.65 | M60: 2.59544
A61: 51 | B61: BAJFINANCE | C61: 5173.2 | D61: 5202.02 | E61: 5066.08 | F61: 4958.97 | G61: 4823.03 | H61: 5309.13 | I61: 5445.07 | J61: 5552.18 | K61: 5337.95 | L61: 5094.9 | M61: 43.47993
A62: 52 | B62: BAJAJFINSV | C62: 9476.3 | D62: 9593.77 | E62: 9197.53 | F62: 8918.77 | G62: 8522.53 | H62: 9872.53 | I62: 10268.77 | J62: 10547.53 | K62: 9990 | L62: 9315 | M62: 13.9439
A63: 53 | B63: BAJAJHLDNG | C63: 3357.4 | D63: 3374.75 | E63: 3300.50 | F63: 3243.60 | G63: 3169.35 | H63: 3431.65 | I63: 3505.90 | J63: 3562.80 | K63: 3449 | L63: 3317.85 | M63: 0.56087
A64: 54 | B64: BALKRISIND | C64: 1673.5 | D64: 1671.05 | E64: 1638.45 | F64: 1603.40 | G64: 1570.80 | H64: 1706.10 | I64: 1738.70 | J64: 1773.75 | K64: 1703.65 | L64: 1636 | M64: 6.26595
A65: 55 | B65: BALMLAWRIE | C65: 122.3 | D65: 123.00 | E65: 120.50 | F65: 118.70 | G65: 116.20 | H65: 124.80 | I65: 127.30 | J65: 129.10 | K65: 125.5 | L65: 121.2 | M65: 3.90662
A66: 56 | B66: BALRAMCHIN | C66: 164.65 | D66: 170.20 | E66: 157.65 | F66: 150.65 | G66: 138.10 | H66: 177.20 | I66: 189.75 | J66: 196.75 | K66: 182.75 | L66: 163.2 | M66: 26.52361
A67: 57 | B67: BANDHANBNK | C67: 339.35 | D67: 337.23 | E67: 330.57 | F67: 321.78 | G67: 315.12 | H67: 346.02 | I67: 352.68 | J67: 361.47 | K67: 343.9 | L67: 328.45 | M67: 219.59784
A68: 58 | B68: BANKBARODA | C68: 74.65 | D68: 74.98 | E68: 73.02 | F68: 71.38 | G68: 69.42 | H68: 76.62 | I68: 78.58 | J68: 80.22 | K68: 76.95 | L68: 73.35 | M68: 730.20753
A69: 59 | B69: BANKINDIA | C69: 53.4 | D69: 53.38 | E69: 51.62 | F69: 49.83 | G69: 48.07 | H69: 55.17 | I69: 56.93 | J69: 58.72 | K69: 55.15 | L69: 51.6 | M69: 119.79786
A70: 60 | B70: MAHABANK | C70: 15 | D70: 15.18 | E70: 14.77 | F70: 14.53 | G70: 14.12 | H70: 15.42 | I70: 15.83 | J70: 16.07 | K70: 15.6 | L70: 14.95 | M70: 65.57268
A71: 61 | B71: BATAINDIA | C71: 1540.55 | D71: 1539.55 | E71: 1519.15 | F71: 1497.75 | G71: 1477.35 | H71: 1560.95 | I71: 1581.35 | J71: 1602.75 | K71: 1559.95 | L71: 1518.15 | M71: 4.40122
A72: 62 | B72: BAYERCROP | C72: 5211.95 | D72: 5285.02 | E72: 5126.93 | F72: 5041.92 | G72: 4883.83 | H72: 5370.03 | I72: 5528.12 | J72: 5613.13 | K72: 5443.1 | L72: 5200 | M72: 0.42481
A73: 63 | B73: BERGEPAINT | C73: 724.45 | D73: 730.53 | E73: 714.62 | F73: 704.78 | G73: 688.87 | H73: 740.37 | I73: 756.28 | J73: 766.12 | K73: 746.45 | L73: 720.7 | M73: 17.53803
A74: 64 | B74: BDL | C74: 333.3 | D74: 333.90 | E74: 329.90 | F74: 326.50 | G74: 322.50 | H74: 337.30 | I74: 341.30 | J74: 344.70 | K74: 337.9 | L74: 330.5 | M74: 1.77184
A75: 65 | B75: BEL | C75: 133.5 | D75: 133.90 | E75: 131.00 | F75: 128.50 | G75: 125.60 | H75: 136.40 | I75: 139.30 | J75: 141.80 | K75: 136.8 | L75: 131.4 | M75: 107.38562
A76: 66 | B76: BHARATFORG | C76: 648.4 | D76: 639.20 | E76: 627.70 | F76: 607.00 | G76: 595.50 | H76: 659.90 | I76: 671.40 | J76: 692.10 | K76: 650.7 | L76: 618.5 | M76: 40.78912
A77: 67 | B77: BHEL | C77: 38.9 | D77: 38.97 | E77: 37.98 | F77: 37.07 | G77: 36.08 | H77: 39.88 | I77: 40.87 | J77: 41.78 | K77: 39.95 | L77: 38.05 | M77: 570.99937
A78: 68 | B78: BPCL | C78: 408 | D78: 404.08 | E78: 397.17 | F78: 386.33 | G78: 379.42 | H78: 414.92 | I78: 421.83 | J78: 432.67 | K78: 411 | L78: 393.25 | M78: 88.76838
A79: 69 | B79: BHARATRAS | C79: 9991.5 | D79: 10033.17 | E79: 9936.33 | F79: 9881.17 | G79: 9784.33 | H79: 10088.33 | I79: 10185.17 | J79: 10240.33 | K79: 10130 | L79: 9978 | M79: 0.0157
A80: 70 | B80: BHARTIARTL | C80: 599.35 | D80: 594.75 | E80: 583.85 | F80: 568.35 | G80: 557.45 | H80: 610.25 | I80: 621.15 | J80: 636.65 | K80: 605.65 | L80: 579.25 | M80: 213.11866
A81: 71 | B81: BIOCON | C81: 391.5 | D81: 388.20 | E81: 382.40 | F81: 373.30 | G81: 367.50 | H81: 397.30 | I81: 403.10 | J81: 412.20 | K81: 394 | L81: 379.1 | M81: 48.91113
A82: 72 | B82: BIRLACORPN | C82: 777.45 | D82: 769.15 | E82: 756.30 | F82: 735.15 | G82: 722.30 | H82: 790.30 | I82: 803.15 | J82: 824.30 | K82: 782 | L82: 748 | M82: 4.90101
A83: 73 | B83: BSOFT | C83: 248.6 | D83: 251.08 | E83: 245.52 | F83: 242.43 | G83: 236.87 | H83: 254.17 | I83: 259.73 | J83: 262.82 | K83: 256.65 | L83: 248 | M83: 9.75972
A84: 74 | B84: BLISSGVS | C84: 186.95 | D84: 186.92 | E84: 184.83 | F84: 182.72 | G84: 180.63 | H84: 189.03 | I84: 191.12 | J84: 193.23 | K84: 189 | L84: 184.8 | M84: 10.12024
A85: 75 | B85: BLUEDART | C85: 3935 | D85: 3940.80 | E85: 3874.20 | F85: 3813.40 | G85: 3746.80 | H85: 4001.60 | I85: 4068.20 | J85: 4129.00 | K85: 4007.4 | L85: 3880 | M85: 0.37835
A86: 76 | B86: BLUESTARCO | C86: 802.3 | D86: 794.65 | E86: 784.30 | F86: 766.30 | G86: 755.95 | H86: 812.65 | I86: 823.00 | J86: 841.00 | K86: 805 | L86: 776.65 | M86: 1.05201
A87: 77 | B87: BBTC | C87: 1262.4 | D87: 1259.47 | E87: 1247.93 | F87: 1233.47 | G87: 1221.93 | H87: 1273.93 | I87: 1285.47 | J87: 1299.93 | K87: 1271 | L87: 1245 | M87: 0.43269
A88: 78 | B88: BOMDYEING | C88: 76.8 | D88: 76.73 | E88: 75.87 | F88: 74.93 | G88: 74.07 | H88: 77.67 | I88: 78.53 | J88: 79.47 | K88: 77.6 | L88: 75.8 | M88: 18.33957
A89: 79 | B89: BOSCHLTD | C89: 16531.25 | D89: 16460.25 | E89: 16221.00 | F89: 15910.75 | G89: 15671.50 | H89: 16770.50 | I89: 17009.75 | J89: 17320.00 | K89: 16699.5 | L89: 16150 | M89: 0.64405
A90: 80 | B90: BRIGADE | C90: 250.65 | D90: 251.37 | E90: 246.78 | F90: 242.92 | G90: 238.33 | H90: 255.23 | I90: 259.82 | J90: 263.68 | K90: 255.95 | L90: 247.5 | M90: 1.77252
A91: 81 | B91: BRITANNIA | C91: 3501.25 | D91: 3513.00 | E91: 3472.00 | F91: 3442.75 | G91: 3401.75 | H91: 3542.25 | I91: 3583.25 | J91: 3612.50 | K91: 3554 | L91: 3483.75 | M91: 8.6995
A92: 82 | B92: CARERATING | C92: 516 | D92: 510.35 | E92: 498.80 | F92: 481.60 | G92: 470.05 | H92: 527.55 | I92: 539.10 | J92: 556.30 | K92: 521.9 | L92: 493.15 | M92: 3.02715
A93: 83 | B93: CCL | C93: 247.85 | D93: 247.17 | E93: 242.43 | F93: 237.02 | G93: 232.28 | H93: 252.58 | I93: 257.32 | J93: 262.73 | K93: 251.9 | L93: 241.75 | M93: 3.53855
A94: 84 | B94: CESC | C94: 629.9 | D94: 628.77 | E94: 622.38 | F94: 614.87 | G94: 608.48 | H94: 636.28 | I94: 642.67 | J94: 650.18 | K94: 635.15 | L94: 621.25 | M94: 2.37988
A95: 85 | B95: CRISIL | C95: 1935.85 | D95: 1936.40 | E95: 1916.80 | F95: 1897.75 | G95: 1878.15 | H95: 1955.45 | I95: 1975.05 | J95: 1994.10 | K95: 1956 | L95: 1917.35 | M95: 0.14368
A96: 86 | B96: CSBBANK | C96: 225.4 | D96: 227.43 | E96: 221.07 | F96: 216.73 | G96: 210.37 | H96: 231.77 | I96: 238.13 | J96: 242.47 | K96: 233.8 | L96: 223.1 | M96: 2.41194
A97: 87 | B97: CADILAHC | C97: 467.2 | D97: 463.93 | E97: 456.97 | F97: 446.73 | G97: 439.77 | H97: 474.17 | I97: 481.13 | J97: 491.37 | K97: 470.9 | L97: 453.7 | M97: 39.39023
A98: 88 | B98: CANFINHOME | C98: 489.4 | D98: 489.27 | E98: 485.13 | F98: 480.87 | G98: 476.73 | H98: 493.53 | I98: 497.67 | J98: 501.93 | K98: 493.4 | L98: 485 | M98: 6.62167
A99: 89 | B99: CANBK | C99: 146.55 | D99: 146.08 | E99: 141.52 | F99: 136.48 | G99: 131.92 | H99: 151.12 | I99: 155.68 | J99: 160.72 | K99: 150.65 | L99: 141.05 | M99: 498.0957
A100: 90 | B100: CAPLIPOINT | C100: 467.25 | D100: 466.85 | E100: 461.00 | F100: 454.75 | G100: 448.90 | H100: 473.10 | I100: 478.95 | J100: 485.20 | K100: 472.7 | L100: 460.6 | M100: 1.11736
A101: 91 | B101: CGCL | C101: 365.6 | D101: 373.22 | E101: 357.38 | F101: 349.17 | G101: 333.33 | H101: 381.43 | I101: 397.27 | J101: 405.48 | K101: 389.05 | L101: 365 | M101: 3.01785
A102: 92 | B102: CARBORUNIV | C102: 414.7 | D102: 421.72 | E102: 405.53 | F102: 396.37 | G102: 380.18 | H102: 430.88 | I102: 447.07 | J102: 456.23 | K102: 437.9 | L102: 412.55 | M102: 4.33196
A103: 93 | B103: CASTROLIND | C103: 126.8 | D103: 128.95 | E103: 123.55 | F103: 120.30 | G103: 114.90 | H103: 132.20 | I103: 137.60 | J103: 140.85 | K103: 134.35 | L103: 125.7 | M103: 58.178
A104: 94 | B104: CEATLTD | C104: 1492.3 | D104: 1494.62 | E104: 1470.23 | F104: 1448.17 | G104: 1423.78 | H104: 1516.68 | I104: 1541.07 | J104: 1563.13 | K104: 1519 | L104: 1472.55 | M104: 3.76817
A105: 95 | B105: CENTRALBK | C105: 14.1 | D105: 14.25 | E105: 13.90 | F105: 13.70 | G105: 13.35 | H105: 14.45 | I105: 14.80 | J105: 15.00 | K105: 14.6 | L105: 14.05 | M105: 67.55995
A106: 96 | B106: CDSL | C106: 504.9 | D106: 503.27 | E106: 497.63 | F106: 490.37 | G106: 484.73 | H106: 510.53 | I106: 516.17 | J106: 523.43 | K106: 508.9 | L106: 496 | M106: 6.33238
A107: 97 | B107: CENTURYPLY | C107: 267.5 | D107: 267.25 | E107: 262.55 | F107: 257.60 | G107: 252.90 | H107: 272.20 | I107: 276.90 | J107: 281.85 | K107: 271.95 | L107: 262.3 | M107: 2.57138
A108: 98 | B108: CENTURYTEX | C108: 471.35 | D108: 461.23 | E108: 446.02 | F108: 420.68 | G108: 405.47 | H108: 486.57 | I108: 501.78 | J108: 527.12 | K108: 476.45 | L108: 435.9 | M108: 20.796
A109: 99 | B109: CERA | C109: 3359.15 | D109: 3458.10 | E109: 3216.20 | F109: 3073.25 | G109: 2831.35 | H109: 3601.05 | I109: 3842.95 | J109: 3985.90 | K109: 3700 | L109: 3315.15 | M109: 0.19841
A110: 100 | B110: CHALET | C110: 173.65 | D110: 173.87 | E110: 171.98 | F110: 170.32 | G110: 168.43 | H110: 175.53 | I110: 177.42 | J110: 179.08 | K110: 175.75 | L110: 172.2 | M110: 1.31249
A111: 101 | B111: CHAMBLFERT | C111: 234.95 | D111: 235.93 | E111: 231.97 | F111: 228.98 | G111: 225.02 | H111: 238.92 | I111: 242.88 | J111: 245.87 | K111: 239.9 | L111: 232.95 | M111: 9.02229
A112: 102 | B112: CHENNPETRO | C112: 92.1 | D112: 92.80 | E112: 91.10 | F112: 90.10 | G112: 88.40 | H112: 93.80 | I112: 95.50 | J112: 96.50 | K112: 94.5 | L112: 91.8 | M112: 12.61744
A113: 103 | B113: CHOLAHLDNG | C113: 529.4 | D113: 532.90 | E113: 504.60 | F113: 479.80 | G113: 451.50 | H113: 557.70 | I113: 586.00 | J113: 610.80 | K113: 561.2 | L113: 508.1 | M113: 5.29133
A114: 104 | B114: CHOLAFIN | C114: 439.1 | D114: 449.37 | E114: 423.73 | F114: 408.37 | G114: 382.73 | H114: 464.73 | I114: 490.37 | J114: 505.73 | K114: 475 | L114: 434 | M114: 100.99741
A115: 105 | B115: CIPLA | C115: 821.6 | D115: 816.48 | E115: 806.62 | F115: 791.63 | G115: 781.77 | H115: 831.47 | I115: 841.33 | J115: 856.32 | K115: 826.35 | L115: 801.5 | M115: 84.86828
A116: 106 | B116: CUB | C116: 181.6 | D116: 178.90 | E116: 175.80 | F116: 170.00 | G116: 166.90 | H116: 184.70 | I116: 187.80 | J116: 193.60 | K116: 182 | L116: 173.1 | M116: 37.96147
A117: 107 | B117: COALINDIA | C117: 131.25 | D117: 131.25 | E117: 129.65 | F117: 128.05 | G117: 126.45 | H117: 132.85 | I117: 134.45 | J117: 136.05 | K117: 132.85 | L117: 129.65 | M117: 154.85139
A118: 108 | B118: COCHINSHIP | C118: 360.25 | D118: 358.57 | E118: 354.73 | F118: 349.22 | G118: 345.38 | H118: 364.08 | I118: 367.92 | J118: 373.43 | K118: 362.4 | L118: 353.05 | M118: 1.82996
A119: 109 | B119: COFORGE | C119: 2453.05 | D119: 2445.03 | E119: 2392.07 | F119: 2331.08 | G119: 2278.12 | H119: 2506.02 | I119: 2558.98 | J119: 2619.97 | K119: 2498 | L119: 2384.05 | M119: 4.51684
A120: 110 | B120: COLPAL | C120: 1617.95 | D120: 1625.28 | E120: 1599.77 | F120: 1581.58 | G120: 1556.07 | H120: 1643.47 | I120: 1668.98 | J120: 1687.17 | K120: 1650.8 | L120: 1607.1 | M120: 8.71671
A121: 111 | B121: CONCOR | C121: 455.6 | D121: 456.18 | E121: 449.57 | F121: 443.53 | G121: 436.92 | H121: 462.22 | I121: 468.83 | J121: 474.87 | K121: 462.8 | L121: 450.15 | M121: 19.88474
A122: 112 | B122: COROMANDEL | C122: 789.4 | D122: 805.63 | E122: 759.27 | F122: 729.13 | G122: 682.77 | H122: 835.77 | I122: 882.13 | J122: 912.27 | K122: 852 | L122: 775.5 | M122: 10.31538
A123: 113 | B123: CREDITACC | C123: 740.5 | D123: 738.65 | E123: 724.30 | F123: 708.10 | G123: 693.75 | H123: 754.85 | I123: 769.20 | J123: 785.40 | K123: 753 | L123: 722.45 | M123: 2.52341
A124: 114 | B124: CROMPTON | C124: 414.7 | D124: 412.78 | E124: 405.12 | F124: 395.53 | G124: 387.87 | H124: 422.37 | I124: 430.03 | J124: 439.62 | K124: 420.45 | L124: 403.2 | M124: 17.0822
A125: 115 | B125: CUMMINSIND | C125: 759.75 | D125: 763.18 | E125: 726.57 | F125: 693.38 | G125: 656.77 | H125: 796.37 | I125: 832.98 | J125: 866.17 | K125: 799.8 | L125: 730 | M125: 74.9943
A126: 116 | B126: CYIENT | C126: 640.2 | D126: 641.48 | E126: 609.72 | F126: 579.23 | G126: 547.47 | H126: 671.97 | I126: 703.73 | J126: 734.22 | K126: 673.25 | L126: 611 | M126: 15.28694
A127: 117 | B127: DBCORP | C127: 85.05 | D127: 84.90 | E127: 83.60 | F127: 82.15 | G127: 80.85 | H127: 86.35 | I127: 87.65 | J127: 89.10 | K127: 86.2 | L127: 83.45 | M127: 3.68291
A128: 118 | B128: DCBBANK | C128: 115.1 | D128: 113.67 | E128: 111.43 | F128: 107.77 | G128: 105.53 | H128: 117.33 | I128: 119.57 | J128: 123.23 | K128: 115.9 | L128: 110 | M128: 42.34309
A129: 119 | B129: DCMSHRIRAM | C129: 433.4 | D129: 441.72 | E129: 422.68 | F129: 411.97 | G129: 392.93 | H129: 452.43 | I129: 471.47 | J129: 482.18 | K129: 460.75 | L129: 431 | M129: 1.42431
A130: 120 | B130: DLF | C130: 294.5 | D130: 290.78 | E130: 282.57 | F130: 270.63 | G130: 262.42 | H130: 302.72 | I130: 310.93 | J130: 322.87 | K130: 299 | L130: 278.85 | M130: 276.44084
A131: 121 | B131: DABUR | C131: 526.4 | D131: 528.80 | E131: 522.00 | F131: 517.60 | G131: 510.80 | H131: 533.20 | I131: 540.00 | J131: 544.40 | K131: 535.6 | L131: 524.4 | M131: 22.46578
A132: 122 | B132: DALBHARAT | C132: 1258 | D132: 1244.27 | E132: 1217.73 | F132: 1177.47 | G132: 1150.93 | H132: 1284.53 | I132: 1311.07 | J132: 1351.33 | K132: 1270.8 | L132: 1204 | M132: 3.10318
A133: 123 | B133: DEEPAKNTR | C133: 981.55 | D133: 989.90 | E133: 969.65 | F133: 957.75 | G133: 937.50 | H133: 1001.80 | I133: 1022.05 | J133: 1033.95 | K133: 1010.15 | L133: 978 | M133: 7.98239
A134: 124 | B134: DELTACORP | C134: 153.1 | D134: 152.57 | E134: 150.13 | F134: 147.17 | G134: 144.73 | H134: 155.53 | I134: 157.97 | J134: 160.93 | K134: 155 | L134: 149.6 | M134: 20.63198
A135: 125 | B135: DHANI | C135: 359 | D135: 363.12 | E135: 351.33 | F135: 343.67 | G135: 331.88 | H135: 370.78 | I135: 382.57 | J135: 390.23 | K135: 374.9 | L135: 355.45 | M135: 7.00125
A136: 126 | B136: DHANUKA | C136: 737.05 | D136: 736.17 | E136: 723.33 | F136: 709.62 | G136: 696.78 | H136: 749.88 | I136: 762.72 | J136: 776.43 | K136: 749 | L136: 722.45 | M136: 4.03261
A137: 127 | B137: DBL | C137: 460.15 | D137: 455.08 | E137: 446.17 | F137: 432.18 | G137: 423.27 | H137: 469.07 | I137: 477.98 | J137: 491.97 | K137: 464 | L137: 441.1 | M137: 7.87742
A138: 128 | B138: DISHTV | C138: 12.45 | D138: 12.50 | E138: 12.10 | F138: 11.75 | G138: 11.35 | H138: 12.85 | I138: 13.25 | J138: 13.60 | K138: 12.9 | L138: 12.15 | M138: 155.13902
A139: 129 | B139: DCAL | C139: 124.3 | D139: 125.42 | E139: 122.43 | F139: 120.57 | G139: 117.58 | H139: 127.28 | I139: 130.27 | J139: 132.13 | K139: 128.4 | L139: 123.55 | M139: 6.78535
A140: 130 | B140: DIVISLAB | C140: 3548.6 | D140: 3520.80 | E140: 3473.90 | F140: 3399.20 | G140: 3352.30 | H140: 3595.50 | I140: 3642.40 | J140: 3717.10 | K140: 3567.7 | L140: 3446.1 | M140: 16.24774
A141: 131 | B141: DIXON | C141: 15696.6 | D141: 15627.53 | E141: 15370.07 | F141: 15043.53 | G141: 14786.07 | H141: 15954.07 | I141: 16211.53 | J141: 16538.07 | K141: 15885 | L141: 15301 | M141: 1.35877
A142: 132 | B142: LALPATHLAB | C142: 2436.8 | D142: 2399.35 | E142: 2303.15 | F142: 2169.50 | G142: 2073.30 | H142: 2533.00 | I142: 2629.20 | J142: 2762.85 | K142: 2495.55 | L142: 2265.7 | M142: 4.19051
A143: 133 | B143: DRREDDY | C143: 4482.5 | D143: 4463.83 | E143: 4399.67 | F143: 4316.83 | G143: 4252.67 | H143: 4546.67 | I143: 4610.83 | J143: 4693.67 | K143: 4528 | L143: 4381 | M143: 36.75106
A144: 134 | B144: EIDPARRY | C144: 340.25 | D144: 344.28 | E144: 332.32 | F144: 324.38 | G144: 312.42 | H144: 352.22 | I144: 364.18 | J144: 372.12 | K144: 356.25 | L144: 336.35 | M144: 2.26464
A145: 135 | B145: EIHOTEL | C145: 92.2 | D145: 92.45 | E145: 91.25 | F145: 90.30 | G145: 89.10 | H145: 93.40 | I145: 94.60 | J145: 95.55 | K145: 93.65 | L145: 91.5 | M145: 9.30037
A146: 136 | B146: EPL | C146: 238.15 | D146: 241.77 | E146: 231.63 | F146: 225.12 | G146: 214.98 | H146: 248.28 | I146: 258.42 | J146: 264.93 | K146: 251.9 | L146: 235.25 | M146: 4.48679
A147: 137 | B147: ESABINDIA | C147: 1853.35 | D147: 1836.15 | E147: 1792.30 | F147: 1731.25 | G147: 1687.40 | H147: 1897.20 | I147: 1941.05 | J147: 2002.10 | K147: 1880 | L147: 1775.1 | M147: 0.09298
A148: 138 | B148: EDELWEISS | C148: 67.85 | D148: 66.68 | E148: 65.42 | F148: 62.98 | G148: 61.72 | H148: 69.12 | I148: 70.38 | J148: 72.82 | K148: 67.95 | L148: 64.25 | M148: 16.08374
A149: 139 | B149: EICHERMOT | C149: 2904.85 | D149: 2883.60 | E149: 2847.20 | F149: 2789.55 | G149: 2753.15 | H149: 2941.25 | I149: 2977.65 | J149: 3035.30 | K149: 2920 | L149: 2825.95 | M149: 21.25895
A150: 140 | B150: ELGIEQUIP | C150: 163.15 | D150: 163.35 | E150: 161.30 | F150: 159.45 | G150: 157.40 | H150: 165.20 | I150: 167.25 | J150: 169.10 | K150: 165.4 | L150: 161.5 | M150: 0.71257
A151: 141 | B151: EMAMILTD | C151: 479.65 | D151: 478.70 | E151: 473.05 | F151: 466.45 | G151: 460.80 | H151: 485.30 | I151: 490.95 | J151: 497.55 | K151: 484.35 | L151: 472.1 | M151: 8.01887
A152: 142 | B152: ENDURANCE | C152: 1367.7 | D152: 1374.77 | E152: 1349.78 | F152: 1331.87 | G152: 1306.88 | H152: 1392.68 | I152: 1417.67 | J152: 1435.58 | K152: 1399.75 | L152: 1356.85 | M152: 1.58987
A153: 143 | B153: ENGINERSIN | C153: 73.8 | D153: 74.28 | E153: 72.77 | F153: 71.73 | G153: 70.22 | H153: 75.32 | I153: 76.83 | J153: 77.87 | K153: 75.8 | L153: 73.25 | M153: 22.1756
A154: 144 | B154: EQUITAS | C154: 77.5 | D154: 77.08 | E154: 74.67 | F154: 71.83 | G154: 69.42 | H154: 79.92 | I154: 82.33 | J154: 85.17 | K154: 79.5 | L154: 74.25 | M154: 21.44696
A155: 145 | B155: ERIS | C155: 609.55 | D155: 609.07 | E155: 594.68 | F155: 579.82 | G155: 565.43 | H155: 623.93 | I155: 638.32 | J155: 653.18 | K155: 623.45 | L155: 594.2 | M155: 1.77898
A156: 146 | B156: ESCORTS | C156: 1334.15 | D156: 1322.68 | E156: 1290.37 | F156: 1246.58 | G156: 1214.27 | H156: 1366.47 | I156: 1398.78 | J156: 1442.57 | K156: 1355 | L156: 1278.9 | M156: 46.85702
A157: 147 | B157: EXIDEIND | C157: 201.4 | D157: 200.22 | E157: 197.43 | F157: 193.47 | G157: 190.68 | H157: 204.18 | I157: 206.97 | J157: 210.93 | K157: 203 | L157: 196.25 | M157: 64.31888
A158: 148 | B158: FDC | C158: 288.1 | D158: 289.88 | E158: 282.32 | F158: 276.53 | G158: 268.97 | H158: 295.67 | I158: 303.23 | J158: 309.02 | K158: 297.45 | L158: 284.1 | M158: 2.67108
A159: 149 | B159: FEDERALBNK | C159: 80.25 | D159: 79.90 | E159: 77.95 | F159: 75.65 | G159: 73.70 | H159: 82.20 | I159: 84.15 | J159: 86.45 | K159: 81.85 | L159: 77.6 | M159: 520.80504
A160: 150 | B160: FINEORG | C160: 2381.45 | D160: 2389.48 | E160: 2356.97 | F160: 2332.48 | G160: 2299.97 | H160: 2413.97 | I160: 2446.48 | J160: 2470.97 | K160: 2422 | L160: 2365 | M160: 0.11393
A161: 151 | B161: FINCABLES | C161: 374.15 | D161: 375.57 | E161: 371.43 | F161: 368.72 | G161: 364.58 | H161: 378.28 | I161: 382.42 | J161: 385.13 | K161: 379.7 | L161: 372.85 | M161: 1.7178
A162: 152 | B162: FINPIPE | C162: 642.75 | D162: 647.25 | E162: 620.50 | F162: 598.25 | G162: 571.50 | H162: 669.50 | I162: 696.25 | J162: 718.50 | K162: 674 | L162: 625 | M162: 13.06874
A163: 153 | B163: FSL | C163: 92.35 | D163: 91.10 | E163: 89.30 | F163: 86.25 | G163: 84.45 | H163: 94.15 | I163: 95.95 | J163: 99.00 | K163: 92.9 | L163: 88.05 | M163: 22.7854
A164: 154 | B164: FORTIS | C164: 163.85 | D164: 164.40 | E164: 162.55 | F164: 161.25 | G164: 159.40 | H164: 165.70 | I164: 167.55 | J164: 168.85 | K164: 166.25 | L164: 163.1 | M164: 10.54622
A165: 155 | B165: FCONSUMER | C165: 8.55 | D165: 8.48 | E165: 8.27 | F165: 7.98 | G165: 7.77 | H165: 8.77 | I165: 8.98 | J165: 9.27 | K165: 8.7 | L165: 8.2 | M165: 90.6658
A166: 156 | B166: FRETAIL | C166: 81.65 | D166: 81.08 | E166: 78.72 | F166: 75.78 | G166: 73.42 | H166: 84.02 | I166: 86.38 | J166: 89.32 | K166: 83.45 | L166: 78.15 | M166: 34.94286
A167: 157 | B167: GAIL | C167: 129.7 | D167: 130.22 | E167: 128.23 | F167: 126.77 | G167: 124.78 | H167: 131.68 | I167: 133.67 | J167: 135.13 | K167: 132.2 | L167: 128.75 | M167: 164.60769
A168: 158 | B168: GEPIL | C168: 282.25 | D168: 279.13 | E168: 274.12 | F168: 265.98 | G168: 260.97 | H168: 287.27 | I168: 292.28 | J168: 300.42 | K168: 284.15 | L168: 271 | M168: 1.91652
A169: 159 | B169: GHCL | C169: 209.45 | D169: 208.90 | E169: 206.05 | F169: 202.65 | G169: 199.80 | H169: 212.30 | I169: 215.15 | J169: 218.55 | K169: 211.75 | L169: 205.5 | M169: 2.5436
A170: 160 | B170: GMMPFAUDLR | C170: 3547.35 | D170: 3568.45 | E170: 3518.90 | F170: 3490.45 | G170: 3440.90 | H170: 3596.90 | I170: 3646.45 | J170: 3674.90 | K170: 3618 | L170: 3540 | M170: 0.24115
A171: 161 | B171: GMRINFRA | C171: 24.9 | D171: 24.88 | E171: 24.42 | F171: 23.93 | G171: 23.47 | H171: 25.37 | I171: 25.83 | J171: 26.32 | K171: 25.35 | L171: 24.4 | M171: 204.72166
A172: 162 | B172: GALAXYSURF | C172: 2100.9 | D172: 2125.55 | E172: 2069.25 | F172: 2037.60 | G172: 1981.30 | H172: 2157.20 | I172: 2213.50 | J172: 2245.15 | K172: 2181.85 | L172: 2093.9 | M172: 0.1461
A173: 163 | B173: GRSE | C173: 187.65 | D173: 187.52 | E173: 185.13 | F173: 182.62 | G173: 180.23 | H173: 190.03 | I173: 192.42 | J173: 194.93 | K173: 189.9 | L173: 185 | M173: 1.35452
A174: 164 | B174: GARFIBRES | C174: 2195.8 | D174: 2240.27 | E174: 2137.53 | F174: 2079.27 | G174: 1976.53 | H174: 2298.53 | I174: 2401.27 | J174: 2459.53 | K174: 2343 | L174: 2182 | M174: 0.46602
A175: 165 | B175: GICRE | C175: 138.65 | D175: 140.57 | E175: 135.78 | F175: 132.92 | G175: 128.13 | H175: 143.43 | I175: 148.22 | J175: 151.08 | K175: 145.35 | L175: 137.7 | M175: 7.03504
A176: 166 | B176: GILLETTE | C176: 5590 | D176: 5603.30 | E176: 5556.70 | F176: 5523.40 | G176: 5476.80 | H176: 5636.60 | I176: 5683.20 | J176: 5716.50 | K176: 5649.9 | L176: 5570 | M176: 0.08605
A177: 167 | B177: GLAXO | C177: 1456.05 | D177: 1467.97 | E177: 1438.08 | F177: 1420.12 | G177: 1390.23 | H177: 1485.93 | I177: 1515.82 | J177: 1533.78 | K177: 1497.85 | L177: 1450 | M177: 0.27206
A178: 168 | B178: GLENMARK | C178: 487.15 | D178: 486.62 | E178: 481.23 | F178: 475.32 | G178: 469.93 | H178: 492.53 | I178: 497.92 | J178: 503.83 | K178: 492 | L178: 480.7 | M178: 17.16999
A179: 169 | B179: GODFRYPHLP | C179: 937.6 | D179: 940.65 | E179: 928.80 | F179: 920.00 | G179: 908.15 | H179: 949.45 | I179: 961.30 | J179: 970.10 | K179: 952.5 | L179: 931.85 | M179: 0.62195
A180: 170 | B180: GODREJAGRO | C180: 529.9 | D180: 535.17 | E180: 523.23 | F180: 516.57 | G180: 504.63 | H180: 541.83 | I180: 553.77 | J180: 560.43 | K180: 547.1 | L180: 528.5 | M180: 0.87387
A181: 171 | B181: GODREJCP | C181: 747.85 | D181: 754.43 | E181: 738.42 | F181: 728.98 | G181: 712.97 | H181: 763.87 | I181: 779.88 | J181: 789.32 | K181: 770.45 | L181: 745 | M181: 8.05564
A182: 172 | B182: GODREJIND | C182: 444.35 | D182: 446.45 | E182: 437.90 | F182: 431.45 | G182: 422.90 | H182: 452.90 | I182: 461.45 | J182: 467.90 | K182: 455 | L182: 440 | M182: 3.26872
A183: 173 | B183: GODREJPROP | C183: 1399.5 | D183: 1377.40 | E183: 1352.10 | F183: 1304.70 | G183: 1279.40 | H183: 1424.80 | I183: 1450.10 | J183: 1497.50 | K183: 1402.7 | L183: 1330 | M183: 11.58586
A184: 174 | B184: GRANULES | C184: 319.75 | D184: 324.65 | E184: 313.60 | F184: 307.45 | G184: 296.40 | H184: 330.80 | I184: 341.85 | J184: 348.00 | K184: 335.7 | L184: 318.5 | M184: 16.41835
A185: 175 | B185: GRAPHITE | C185: 331.65 | D185: 329.03 | E185: 324.07 | F185: 316.48 | G185: 311.52 | H185: 336.62 | I185: 341.58 | J185: 349.17 | K185: 334 | L185: 321.45 | M185: 14.02715
A186: 176 | B186: GRASIM | C186: 1190 | D186: 1178.78 | E186: 1147.67 | F186: 1105.33 | G186: 1074.22 | H186: 1221.12 | I186: 1252.23 | J186: 1294.57 | K186: 1209.9 | L186: 1136.45 | M186: 41.22906
A187: 177 | B187: GESHIP | C187: 262.9 | D187: 265.15 | E187: 259.50 | F187: 256.10 | G187: 250.45 | H187: 268.55 | I187: 274.20 | J187: 277.60 | K187: 270.8 | L187: 261.75 | M187: 1.12893
A188: 178 | B188: GREAVESCOT | C188: 89.25 | D188: 89.32 | E188: 87.18 | F188: 85.12 | G188: 82.98 | H188: 91.38 | I188: 93.52 | J188: 95.58 | K188: 91.45 | L188: 87.25 | M188: 22.09354
A189: 179 | B189: GRINDWELL | C189: 741.75 | D189: 733.87 | E189: 720.13 | F189: 698.52 | G189: 684.78 | H189: 755.48 | I189: 769.22 | J189: 790.83 | K189: 747.6 | L189: 712.25 | M189: 0.53493
A190: 180 | B190: GUJALKALI | C190: 335.4 | D190: 334.50 | E190: 332.00 | F190: 328.60 | G190: 326.10 | H190: 337.90 | I190: 340.40 | J190: 343.80 | K190: 337 | L190: 331.1 | M190: 0.76885
A191: 181 | B191: GAEL | C191: 141.05 | D191: 142.02 | E191: 138.88 | F191: 136.72 | G191: 133.58 | H191: 144.18 | I191: 147.32 | J191: 149.48 | K191: 145.15 | L191: 139.85 | M191: 2.38573
A192: 182 | B192: FLUOROCHEM | C192: 577.25 | D192: 581.08 | E192: 572.17 | F192: 567.08 | G192: 558.17 | H192: 586.17 | I192: 595.08 | J192: 600.17 | K192: 590 | L192: 576 | M192: 0.26358
A193: 183 | B193: GUJGASLTD | C193: 367 | D193: 365.10 | E193: 360.90 | F193: 354.80 | G193: 350.60 | H193: 371.20 | I193: 375.40 | J193: 381.50 | K193: 369.3 | L193: 359 | M193: 10.1473
A194: 184 | B194: GMDCLTD | C194: 56.1 | D194: 56.77 | E194: 55.18 | F194: 54.27 | G194: 52.68 | H194: 57.68 | I194: 59.27 | J194: 60.18 | K194: 58.35 | L194: 55.85 | M194: 11.8944
A195: 185 | B195: GNFC | C195: 211.9 | D195: 212.50 | E195: 209.70 | F195: 207.50 | G195: 204.70 | H195: 214.70 | I195: 217.50 | J195: 219.70 | K195: 215.3 | L195: 210.3 | M195: 7.0502
A196: 186 | B196: GPPL | C196: 92.15 | D196: 90.95 | E196: 89.45 | F196: 86.75 | G196: 85.25 | H196: 93.65 | I196: 95.15 | J196: 97.85 | K196: 92.45 | L196: 88.25 | M196: 10.99924
A197: 187 | B197: GSFC | C197: 78.05 | D197: 78.43 | E197: 77.02 | F197: 75.98 | G197: 74.57 | H197: 79.47 | I197: 80.88 | J197: 81.92 | K197: 79.85 | L197: 77.4 | M197: 11.21996
A198: 188 | B198: GSPL | C198: 201.3 | D198: 201.60 | E198: 199.20 | F198: 197.10 | G198: 194.70 | H198: 203.70 | I198: 206.10 | J198: 208.20 | K198: 204 | L198: 199.5 | M198: 4.30947
A199: 189 | B199: GULFOILLUB | C199: 686.95 | D199: 690.82 | E199: 676.63 | F199: 666.32 | G199: 652.13 | H199: 701.13 | I199: 715.32 | J199: 725.63 | K199: 705 | L199: 680.5 | M199: 0.22784
A200: 190 | B200: HEG | C200: 1044.1 | D200: 1037.13 | E200: 1016.97 | F200: 989.83 | G200: 969.67 | H200: 1064.27 | I200: 1084.43 | J200: 1111.57 | K200: 1057.3 | L200: 1010 | M200: 6.97591
A201: 191 | B201: HCLTECH | C201: 954.65 | D201: 951.07 | E201: 939.13 | F201: 923.62 | G201: 911.68 | H201: 966.58 | I201: 978.52 | J201: 994.03 | K201: 963 | L201: 935.55 | M201: 76.90178
A202: 192 | B202: HDFCAMC | C202: 2977.4 | D202: 2988.13 | E202: 2939.27 | F202: 2901.13 | G202: 2852.27 | H202: 3026.27 | I202: 3075.13 | J202: 3113.27 | K202: 3037 | L202: 2950 | M202: 2.12746
A203: 193 | B203: HDFCBANK | C203: 1560.55 | D203: 1545.48 | E203: 1512.47 | F203: 1464.38 | G203: 1431.37 | H203: 1593.57 | I203: 1626.58 | J203: 1674.67 | K203: 1578.5 | L203: 1497.4 | M203: 212.10103
A204: 194 | B204: HDFCLIFE | C204: 681.05 | D204: 689.18 | E204: 666.37 | F204: 651.68 | G204: 628.87 | H204: 703.87 | I204: 726.68 | J204: 741.37 | K204: 712 | L204: 674.5 | M204: 67.02065
A205: 195 | B205: HFCL | C205: 27.7 | D205: 27.93 | E205: 26.57 | F205: 25.43 | G205: 24.07 | H205: 29.07 | I205: 30.43 | J205: 31.57 | K205: 29.3 | L205: 26.8 | M205: 152.61751
A206: 196 | B206: HATHWAY | C206: 30.6 | D206: 30.90 | E206: 30.20 | F206: 29.80 | G206: 29.10 | H206: 31.30 | I206: 32.00 | J206: 32.40 | K206: 31.6 | L206: 30.5 | M206: 2.12757
... 321 more rows

Sheet Bulk Deals
E6: Back To Main Page
A7: Subject : | B7: BULK DEAL | D7: =Main!B10 -> 2021-02-03
A9: Date | B9: Scrip code | C9: Scrip Name | D9: Client Name | E9: Buy / Sell | F9: Quantity Traded | G9: Trade Price / Wt.Avg.trade price | H9: Exchange
A10: 2021-02-02 | B10: 511463 | C10: ALEXANDER | D10: KAHAR NIKLESH KANAIYABHAI | E10: BUY | F10: 47,769 | G10: 14.21 | H10: BSE
A11: 2021-02-02 | B11: 524640 | C11: ARCHITORG | D11: JITAL MUKESHBHAI SHAH | E11: BUY | F11: 97,500 | G11: 22 | H11: BSE
A12: 2021-02-02 | B12: 524640 | C12: ARCHITORG | D12: JITAL MUKESH SHAH | E12: SELL | F12: 177,500 | G12: 22 | H12: BSE
A13: 2021-02-02 | B13: 539800 | C13: CHDCHEM | D13: KOTHARI TRADE INVESTMENTS PRIVATE LIMITED . | E13: BUY | F13: 95,463 | G13: 35.79 | H13: BSE
A14: 2021-02-02 | B14: 539800 | C14: CHDCHEM | D14: KOTHARI TRADE INVESTMENTS PRIVATE LIMITED . | E14: SELL | F14: 93,928 | G14: 35.8 | H14: BSE
A15: 2021-02-02 | B15: 539800 | C15: CHDCHEM | D15: ARUNRATHI | E15: SELL | F15: 60,000 | G15: 35.8 | H15: BSE
A16: 2021-02-02 | B16: 538965 | C16: CONCORD | D16: AAKANKSHA | E16: BUY | F16: 50,000 | G16: 25.25 | H16: BSE
A17: 2021-02-02 | B17: 538965 | C17: CONCORD | D17: ADAMANT CONSTRUCTIONS | E17: SELL | F17: 79,910 | G17: 25.15 | H17: BSE
A18: 2021-02-02 | B18: 542155 | C18: DGL | D18: POORVI NARANG | E18: SELL | F18: 62,000 | G18: 12.5 | H18: BSE
A19: 2021-02-02 | B19: 542803 | C19: ELLORATRAD | D19: RITU RAHUL MEHTA | E19: SELL | F19: 10,000 | G19: 83 | H19: BSE
A20: 2021-02-02 | B20: 536709 | C20: INDRENEW | D20: PRABAKARAN HEMANTHKUMAR | E20: SELL | F20: 18,451 | G20: 7.57 | H20: BSE
A21: 2021-02-02 | B21: 539679 | C21: KAPILRAJ | D21: INVESTERIA COMMODITIES PRIVATE LIMITED | E21: SELL | F21: 50,000 | G21: 10 | H21: BSE
A22: 2021-02-02 | B22: 540468 | C22: KMSMEDI | D22: NAWAL AGRAWAL HUF | E22: SELL | F22: 20,000 | G22: 34.02 | H22: BSE
A23: 2021-02-02 | B23: 539289 | C23: MJCO | D23: PACE STOCK BROKING SERVICES PVT LTD | E23: SELL | F23: 300,000 | G23: 44.3 | H23: BSE
A24: 2021-02-02 | B24: 539289 | C24: MJCO | D24: RAJASTHAN GLOBAL SECURITIES PRIVATE LIMITED | E24: SELL | F24: 285,000 | G24: 44.3 | H24: BSE
A25: 2021-02-02 | B25: 539289 | C25: MJCO | D25: GEETA CHETAN SHAH | E25: SELL | F25: 540,775 | G25: 44.3 | H25: BSE
A26: 2021-02-02 | B26: 531802 | C26: PRERINFRA | D26: SANKET V SHAH HUF | E26: BUY | F26: 151,065 | G26: 18.9 | H26: BSE
A27: 2021-02-02 | B27: 531802 | C27: PRERINFRA | D27: N | E27: SELL | F27: 65,000 | G27: 18.9 | H27: BSE
A28: 2021-02-02 | B28: 532689 | C28: PVR | D28: SOCIETE GENERALE | E28: BUY | F28: 1,001,813 | G28: 1519.52 | H28: BSE
A29: 2021-02-02 | B29: 532689 | C29: PVR | D29: MULTIPLES PRIVATE EQUITY FUND | E29: SELL | F29: 301,309 | G29: 1517.54 | H29: BSE
A30: 2021-02-02 | B30: 532689 | C30: PVR | D30: MULTIPLES PRIVATE EQUITY FUND I LIMITED | E30: SELL | F30: 878,153 | G30: 1517.91 | H30: BSE
A31: 2021-02-02 | B31: 540796 | C31: RATNABHUMI | D31: KAIVAN JITENDRAKUMAR SHAH | E31: BUY | F31: 1,998,000 | G31: 42.35 | H31: BSE
A32: 2021-02-02 | B32: 540796 | C32: RATNABHUMI | D32: MEGHNA MUNIR SHAH | E32: SELL | F32: 1,998,000 | G32: 42.35 | H32: BSE
A33: 2021-02-02 | B33: 539026 | C33: SSPNFIN | D33: ASHOK KUMAR SINGH | E33: BUY | F33: 20,000 | G33: 24.38 | H33: BSE
A34: 2021-02-02 | B34: 539026 | C34: SSPNFIN | D34: RAJESH RAMANLAL KAPADIA | E34: BUY | F34: 24,000 | G34: 24.14 | H34: BSE
A35: 2021-02-02 | B35: 539026 | C35: SSPNFIN | D35: DEVJEET CHAKRABORTY | E35: SELL | F35: 24,000 | G35: 24.08 | H35: BSE
A36: 2021-02-02 | B36: 532070 | C36: SUPRBPA | D36: AEGIS INVESTMENT FUND | E36: BUY | F36: 115,000 | G36: 12.69 | H36: BSE
A37: 2021-02-02 | B37: 513305 | C37: TERRASCOPE | D37: WAKIL RAJBHAR | E37: SELL | F37: 148,614 | G37: 2.09 | H37: BSE
A38: 2021-02-02 | B38: 513305 | C38: TERRASCOPE | D38: SEJAL P PATEL | E38: BUY | F38: 85,000 | G38: 2.09 | H38: BSE
A39: 2021-02-02 | B39: 539222 | C39: VMV | D39: RAJESH RAMANLAL KAPADIA | E39: BUY | F39: 30,000 | G39: 28.55 | H39: BSE
A40: 2021-02-02 | B40: ARIES | C40: Aries Agro Limited | D40: JATESH JAIN | E40: BUY | F40: 72,590 | G40: 102.38 | H40: NSE
A41: 2021-02-02 | B41: BIOFILCHEM | C41: Biofil Chemicals & Pharm | D41: GEETA CHETAN SHAH | E41: BUY | F41: 85,003 | G41: 92.95 | H41: NSE
A42: 2021-02-02 | B42: BIOFILCHEM | C42: Biofil Chemicals & Pharm | D42: ALPHA LEON ENTERPRISES LLP | E42: BUY | F42: 89,995 | G42: 93.4 | H42: NSE
A43: 2021-02-02 | B43: INDIGOPNTS | C43: Indigo Paints Limited | D43: INDIA ACORN ICAV | E43: BUY | F43: 538,135 | G43: 2719.79 | H43: NSE
A44: 2021-02-02 | B44: INDIGOPNTS | C44: Indigo Paints Limited | D44: NK SECURITIES RESEARCH PRIVATE LIMITED | E44: BUY | F44: 512,554 | G44: 2688.85 | H44: NSE
A45: 2021-02-02 | B45: INDIGOPNTS | C45: Indigo Paints Limited | D45: NOMURA INDIA INVESTMENT FUND MOTHER FUND - THE MTBJ AC NOMURA INDIA INVES FD | E45: BUY | F45: 530,868 | G45: 2601.54 | H45: NSE
A46: 2021-02-02 | B46: INDIGOPNTS | C46: Indigo Paints Limited | D46: SWAPNIL MEHTA | E46: BUY | F46: 238,054 | G46: 2666.02 | H46: NSE
A47: 2021-02-02 | B47: INDIGOPNTS | C47: Indigo Paints Limited | D47: AL MEHWAR COMMERCIAL INVESTMENTS LLC | E47: BUY | F47: 413,846 | G47: 2774.47 | H47: NSE
A48: 2021-02-02 | B48: INDIGOPNTS | C48: Indigo Paints Limited | D48: ABU DHABI INVESTMENT AUTHORITY | E48: BUY | F48: 641,953 | G48: 2730.29 | H48: NSE
A49: 2021-02-02 | B49: JAKHARIA | C49: JAKHARIA FABRIC LIMITED | D49: NOPEA CAPITAL SERVICES PRIVATE LIMITED | E49: BUY | F49: 23,200 | G49: 145 | H49: NSE
A50: 2021-02-02 | B50: JUMPNET | C50: Jump Networks Limited | D50: OLGA TRADING PRIVATE LIMITED | E50: BUY | F50: 961,462 | G50: 10.98 | H50: NSE
A51: 2021-02-02 | B51: MAJESCO | C51: Majesco Limited | D51: KIA CAPITAL | E51: BUY | F51: 250,000 | G51: 44.3 | H51: NSE
A52: 2021-02-02 | B52: MAJESCO | C52: Majesco Limited | D52: KASHMIRA ENTERPRISES | E52: BUY | F52: 150,000 | G52: 44.3 | H52: NSE
A53: 2021-02-02 | B53: MAJESCO | C53: Majesco Limited | D53: RIKHAV SECURITIES LIMITED | E53: BUY | F53: 150,000 | G53: 44.28 | H53: NSE
A54: 2021-02-02 | B54: MAJESCO | C54: Majesco Limited | D54: NEW WORLD CAPITAL | E54: BUY | F54: 250,000 | G54: 44.3 | H54: NSE
A55: 2021-02-02 | B55: SANCO | C55: Sanco Industries Ltd. | D55: SUNIL BHANDARI | E55: BUY | F55: 547,654 | G55: 17.61 | H55: NSE
A56: 2021-02-02 | B56: SANCO | C56: Sanco Industries Ltd. | D56: PRABHULAL LALLUBHAI PAREKH | E56: BUY | F56: 71,223 | G56: 17.18 | H56: NSE
A57: 2021-02-02 | B57: SANCO | C57: Sanco Industries Ltd. | D57: FASHIONS BRANDS (INDIA) PRIVATE LIMITED | E57: BUY | F57: 100,000 | G57: 18.98 | H57: NSE
A58: 2021-02-02 | B58: SANCO | C58: Sanco Industries Ltd. | D58: DEVANG CHANDRAKANTBHAI SHAH | E58: BUY | F58: 102,869 | G58: 17.35 | H58: NSE
A59: 2021-02-02 | B59: AJOONI | C59: Ajooni Biotech Limited | D59: VISHAL SHARMA | E59: SELL | F59: 64,000 | G59: 32.02 | H59: NSE
A60: 2021-02-02 | B60: ARIES | C60: Aries Agro Limited | D60: JATESH JAIN | E60: SELL | F60: 70,990 | G60: 102.53 | H60: NSE
A61: 2021-02-02 | B61: BIOFILCHEM | C61: Biofil Chemicals & Pharm | D61: ALPHA LEON ENTERPRISES LLP | E61: SELL | F61: 83,123 | G61: 93.68 | H61: NSE
A62: 2021-02-02 | B62: BIOFILCHEM | C62: Biofil Chemicals & Pharm | D62: GEETA CHETAN SHAH | E62: SELL | F62: 1,224 | G62: 96.67 | H62: NSE
A63: 2021-02-02 | B63: INDIGOPNTS | C63: Indigo Paints Limited | D63: NK SECURITIES RESEARCH PRIVATE LIMITED | E63: SELL | F63: 512,578 | G63: 2690.57 | H63: NSE
A64: 2021-02-02 | B64: INDIGOPNTS | C64: Indigo Paints Limited | D64: SWAPNIL MEHTA | E64: SELL | F64: 208,054 | G64: 2590.96 | H64: NSE
A65: 2021-02-02 | B65: INDIGOPNTS | C65: Indigo Paints Limited | D65: EDELWEISS FINANCE AND INVESTMENTS LTD | E65: SELL | F65: 350,431 | G65: 2613 | H65: NSE
A66: 2021-02-02 | B66: JAKHARIA | C66: JAKHARIA FABRIC LIMITED | D66: JAI AMBE TRADEXIM PRIVATE LIMITED | E66: SELL | F66: 23,200 | G66: 145 | H66: NSE
A67: 2021-02-02 | B67: JUMPNET | C67: Jump Networks Limited | D67: MEHRA VIKAS | E67: SELL | F67: 550,000 | G67: 10.92 | H67: NSE
A68: 2021-02-02 | B68: JUMPNET | C68: Jump Networks Limited | D68: OLGA TRADING PRIVATE LIMITED | E68: SELL | F68: 168,841 | G68: 11.05 | H68: NSE
A69: 2021-02-02 | B69: MAJESCO | C69: Majesco Limited | D69: HARDIK M SHAH | E69: SELL | F69: 237,883 | G69: 44.3 | H69: NSE
A70: 2021-02-02 | B70: MAJESCO | C70: Majesco Limited | D70: AARZOO AGGARWAL | E70: SELL | F70: 220,526 | G70: 44.3 | H70: NSE
A71: 2021-02-02 | B71: MAJESCO | C71: Majesco Limited | D71: PACE STOCK BROKING SERVICES PVT LTD | E71: SELL | F71: 300,000 | G71: 44.3 | H71: NSE
A72: 2021-02-02 | B72: MAJESCO | C72: Majesco Limited | D72: SHINE STAR BUILD CAP PVT LTD | E72: SELL | F72: 150,000 | G72: 44.3 | H72: NSE
A73: 2021-02-02 | B73: MAJESCO | C73: Majesco Limited | D73: UNIFI WEALTH MANAGEMENT LTD | E73: SELL | F73: 337,155 | G73: 44.3 | H73: NSE
A74: 2021-02-02 | B74: MAJESCO | C74: Majesco Limited | D74: RAJASTHAN GLOBAL SECURITIES PVT LTD | E74: SELL | F74: 272,378 | G74: 44.3 | H74: NSE
A75: 2021-02-02 | B75: MAJESCO | C75: Majesco Limited | D75: VINOD AGGARWAL (HUF) | E75: SELL | F75: 200,005 | G75: 44.3 | H75: NSE
A76: 2021-02-02 | B76: MAJESCO | C76: Majesco Limited | D76: UNIFI FINANCIAL PVT LTD | E76: SELL | F76: 817,641 | G76: 44.27 | H76: NSE
A77: 2021-02-02 | B77: MAJESCO | C77: Majesco Limited | D77: THIRD ALPHA LLP | E77: SELL | F77: 289,500 | G77: 44.27 | H77: NSE
A78: 2021-02-02 | B78: SANCO | C78: Sanco Industries Ltd. | D78: PRABHULAL LALLUBHAI PAREKH | E78: SELL | F78: 73,723 | G78: 17.21 | H78: NSE
A79: 2021-02-02 | B79: SANCO | C79: Sanco Industries Ltd. | D79: DEVANG CHANDRAKANTBHAI SHAH | E79: SELL | F79: 129,943 | G79: 17.97 | H79: NSE
A80: 2021-02-02 | B80: SANCO | C80: Sanco Industries Ltd. | D80: SUNIL BHANDARI | E80: SELL | F80: 547,654 | G80: 17.99 | H80: NSE

Sheet Call Tracker (Equity & F&O)
M5: Back To Main Page
A6: Retail Research Technical Calls & Fundamental Performance Report for the month of February-2021
M7: =Main!B10 -> 2021-02-03
B8: Positional Call
A9: Sr.no | B9: Date | D9: Company | E9: Rec | F9: Rec Price | G9: Stop Loss*** | H9: Call Closed At | I9: Target | J9: Remark | K9: Profit / Loss per Share | L9: All charges | M9: Net Gain / Loss % | N9: Status | O9: Closed Date
A10: 1 | B10: 2020-12-10 | D10: IRCTC | E10: Buy | F10: 1427.5 | G10: 1330 | H10: 1500 | I10: 1550-1600 | J10: Part Profit of Rs.72.5/- | K10: =H10-F10 -> 72.5 | L10: =(F10*-0.07)/100 -> -1.00 | M10: =(K10+L10)/F10 -> 5.01% | N10: Successful | O10: 2020-12-10 | R10: H
A11: 2 | B11: 2021-01-05 | D11: BRITANNIA | E11: Buy | F11: 3540 | G11: 3295 | H11: =(3682.5+3520)/2 -> 3601.25 | I11: 3900-4000 | J11: Profit of Rs.61.25/- | K11: =H11-F11 -> 61.25 | L11: =(F11*-0.8)/100 -> -28.32 | M11: =(K11+L11)/F11 -> 0.93% | N11: Successful | O11: 2021-02-01 | R11: H
A12: 3 | B12: 2021-02-02 | D12: JKCEMENT | E12: Buy | F12: 2197.5 | G12: 2070 | H12: 2300 | I12: 2400-2450 | J12: Part Profit of Rs.102.5/- | K12: 102.5 | L12: =(F12*-0.07)/100 -> -1.54 | M12: =(K12+L12)/F12 -> 4.59% | N12: Successful | O12: 2020-02-02
A13: 4 | B13: 2021-02-02 | D13: HINDUNILVR | E13: Buy | F13: 2235-2245 | G13: 2090 | I13: 2500-2550 | J13: Open
A18: CLBS = Closing Basis ***
A19: Dividend adjusted <> | F19: Reinitiated $
A20: Part book {} | F20: Revised stoploss #
B22: Momentum Call
A23: Sr.no | B23: Date | D23: Company | E23: Rec | F23: Rec Price | G23: Stop Loss | H23: Call Closed At | I23: Target | J23: Remark | K23: Profit / Loss per Share/Lot | L23: All charges | M23: Net Gain / Loss % | N23: Status | O23: Closed Date
A24: 1 | B24: 2021-02-01 | D24: BHARTIARTL | E24: Buy | F24: 566 | G24: 548 | H24: 577 | I24: 600 | J24: Profit of Rs.61.25/- | K24: =H24-F24 -> 11 | L24: =(F24*-0.07)/100 -> -0.40 | M24: =(K24+L24)/F24 -> 1.87% | N24: Successful | O24: 2021-02-01 | R24: H
A25: 2 | B25: 2021-02-02 | D25: CESC | E25: Buy | F25: 625-630 | G25: 609 | I25: 660 | J25: Open
A26: 3 | B26: 2021-02-02 | D26: MCDOWELL-N | E26: Buy | F26: 575-578 | G26: 560 | I26: 600-610 | J26: Open
A27: 4 | B27: 2021-02-02 | D27: BHARTIARTL | E27: Buy | F27: 599-602 | G27: 585 | I27: 630 | J27: Open
A30: CLBS = Closing Basis *** | H30: *
A31: Dividend adjusted <> | F31: Reinitiated $
F32: Revised stoploss #
A34: Master Trade High Risk
A35: Sr.no | B35: Date | D35: Company | E35: Rec | F35: Rec Price | G35: Stop Loss | H35: Call Closed At | I35: Target | J35: Remark | K35: Profit / Loss per share | L35: All charges | M35: Gain / Loss per Lot | N35: Lot | O35: Status | P35: Closed Date
A36: 1 | B36: 2021-02-02 | D36: AUROPHARMA FEB FUT | E36: Buy | F36: 924-927 | G36: 905 | I36: 960-965 | J36: Open
A37: 2 | B37: 2021-02-02 | D37: RELIANCE FEB FUT | E37: Buy | F37: 1925-1935 | G37: 1885 | I37: 2000 | J37: Open
A43: Master Trade Medium Risk
A44: Sr.no | B44: Date | D44: Company | E44: Rec | F44: Rec Price | G44: Stop Loss | H44: Call Closed At | I44: Target | J44: Remark | K44: Profit/ Loss per lot | L44: All charges | M44: Gain / Loss per Lot | N44: Lot | O44: Status | P44: Closed Date
A45: 1 | B45: 2021-01-29 | D45: NIFTY 13800 PE 11-FEB | E45: Buy | F45: 210-220 | J45: Open | R45: N
D46: NIFTY 13400 PE 11-FEB | E46: Sell | F46: 95-100 | R46: N
A47: 2 | B47: 2021-02-01 | D47: NIFTY 13800 PE 4-FEB | E47: Buy | F47: 67.5 | G47: 35 | H47: 35 | I47: 150 | J47: Loss of Rs, 32.5 | K47: =H47-F47 -> -32.5 | L47: 100 | M47: =(K47*N47)+L47 -> -2337.5 | N47: 75 | O47: Unsuccessful | P47: 2021-02-01 | R47: H
A51: Techno -Funda (positional)
A52: Sr.no | B52: Date | D52: Company | E52: Rec | F52: Rec Price | G52: Stop Loss*** | H52: Call Closed At | I52: Target | J52: Remark | K52: Profit / Loss per Share/Lot | L52: All charges | M52: Net Gain / Loss % | N52: Status | O52: Closed Date
A53: 1 | B53: 2021-01-07 | D53: SIS | E53: Buy | F53: 420-428 | G53: 385 | I53: 500-520 | J53: Open | R53: H
A55: CLBS = Closing Basis *** | F55: Reinitiated $
A56: Dividend adjusted <> | F56: Revised stoploss #
B58: Intrday Call
A59: Sr.no | B59: Date | D59: Company | E59: Rec | F59: Rec Price | G59: Stop Loss | H59: Call Closed At | I59: Target | J59: Remark | K59: Profit / Loss per Share/Lot | L59: Gain / Loss per Lot | M59: Lot | N59: All charges | O59: Net Gain / Loss % | P59: Status | Q59: Closed Date
B72: Investment Idea
A73: Sr.no | B73: Date | D73: Company | E73: Rec | F73: Rec Price | G73: Point of Review | H73: Close Rate | I73: Target | J73: Remark | K73: Profit / Loss per Share | L73: Gain / Loss % | M73: Status | N73: Closed Date
A74: 1 | B74: 2013-11-01 | D74: L&T Finance Holding | E74: Accu | F74: 82.00 | G74: - | H74: 100 | I74: 100.00 | J74: Target Achieved | K74: =H74-F74 -> 18.00 | L74: =K74/F74 -> 21.95% | M74: Successful | N74: 2016-10-14
A75: 2 | B75: 2014-06-04 | D75: Finolex Inds | E75: Buy | F75: 257.00 | G75: - | H75: 300 | I75: 300.00 | J75: Target Achieved | K75: 43.00 | L75: 16.73% | M75: Successful | N75: 2014-07-02
A76: 3 | B76: 2014-07-08 | D76: JK Cement | E76: Buy | F76: 393.00 | G76: - | H76: 468 | I76: 468.00 | J76: Target Achieved | K76: 75.00 | L76: 19.08% | M76: Successful | N76: 2014-08-12
A77: 4 | B77: 2014-08-06 | D77: Finolex Cables | E77: Buy | F77: 205.00 | G77: - | H77: 275 | I77: 250.00 | J77: Target Achieved | K77: 70.00 | L77: 34.15% | M77: Successful | N77: 2014-11-19
A78: 5 | B78: 2014-09-04 | D78: Exide Inds | E78: Buy | F78: 162.00 | G78: - | H78: 190 | I78: 190.00 | J78: Target Achieved | K78: 28.00 | L78: 17.28% | M78: Successful | N78: 2015-01-02
A79: 6 | B79: 2014-09-04 | D79: Deepak Nitrite | E79: Buy | F79: 75.00 | G79: - | H79: 91.5 | I79: 95-100 | J79: Profit of Rs.16.50/- | K79: 16.50 | L79: 22.00% | M79: Successful | N79: 2014-11-11
A80: 7 | B80: 2014-10-01 | D80: Mercks | E80: Buy | F80: 850.00 | G80: - | H80: 982.5 | I80: 1050.00 | J80: Profit of Rs.132.50/- | K80: 132.50 | L80: 15.59% | M80: Successful | N80: 2015-02-04
A81: 8 | B81: 2014-10-01 | D81: Grindwell Norton | E81: Buy | F81: 475.00 | G81: - | H81: 515 | I81: 600.00 | J81: Profit of Rs.40/- | K81: 40.00 | L81: 8.42% | M81: Successful | N81: 2014-10-27
A82: 9 | B82: 2014-10-01 | D82: Snowman Logistics | E82: Buy | F82: 86.00 | G82: - | H82: 99 | I82: 140.00 | J82: Profit of Rs.13.00/- | K82: 13.00 | L82: 15.12% | M82: Successful | N82: 2014-10-27
A83: 10 | B83: 2014-10-14 | D83: Birla Corp | E83: Buy | F83: 496.60 | G83: - | H83: 621 | I83: 580.00 | J83: Target Achieved | K83: 124.40 | L83: 25.05% | M83: Successful | N83: 2016-08-23
A84: 11 | B84: 2014-10-14 | D84: Ultratech Cem | E84: Buy | F84: 2481.90 | G84: - | H84: 2840 | I84: 2870.00 | J84: Profit of Rs.358.10/- | K84: 358.10 | L84: 14.43% | M84: Successful | N84: 2015-01-13
A85: 12 | B85: 2014-10-16 | D85: Sintex Inds | E85: Buy | F85: 84.50 | G85: - | H85: 93 | I85: 110.00 | J85: Profit of Rs.8.50/- | K85: 8.50 | L85: 10.06% | M85: Successful | N85: 2014-10-27
A86: 13 | B86: 2014-10-16 | D86: HSIL | E86: Buy | F86: 401.00 | G86: - | H86: 428 | I86: 450.00 | J86: Profit of Rs.27.00/- | K86: 27.00 | L86: 6.73% | M86: Successful | N86: 2015-01-16
A87: 14 | B87: 2014-10-16 | D87: Eveready Inds | E87: Buy | F87: 101.00 | G87: - | H87: 112 | I87: 120.00 | J87: Profit of Rs.11.00/- | K87: 11.00 | L87: 10.89% | M87: Successful | N87: 2014-10-27
A88: 15 | B88: 2014-11-11 | D88: Pennar Inds | E88: Buy | F88: 59.00 | G88: - | H88: 76 | I88: 76.00 | J88: Target Achieved | K88: 17.00 | L88: 28.81% | M88: Successful | N88: 2017-10-24
A89: 16 | B89: 2014-11-11 | D89: Snowman Logistics | E89: Buy | F89: 99.00 | G89: - | H89: 120 | I89: 120.00 | J89: Profit of Rs.21/- | K89: 21.00 | L89: 21.21% | M89: Successful | N89: 2014-11-17
A90: 17 | B90: 2014-11-13 | D90: Dharamsi Morarji Chem | E90: Buy | F90: 22.00 | G90: - | H90: 33.55 | I90: 32.00 | J90: Profit of Rs 11.55/- | K90: 11.55 | L90: 52.50% | M90: Successful | N90: 2015-07-03
A91: 18 | B91: 2014-12-03 | D91: Tatachem | E91: Buy | F91: 440.00 | G91: - | H91: 520 | I91: 520.00 | J91: Profit of Rs 80.00/- | K91: 80.00 | L91: 18.18% | M91: Successful | N91: 2015-07-23
A92: 19 | B92: 2014-12-03 | D92: Advanta | E92: Buy | F92: 360.00 | G92: - | H92: 427 | I92: 425.00 | J92: Profit of Rs.67.00/- | K92: 67.00 | L92: 18.61% | M92: Successful | N92: 2015-02-23
A93: 20 | B93: 2015-01-08 | D93: GDL | E93: Buy | F93: 360.00 | G93: - | H93: 455 | I93: 420.00 | J93: Profit of Rs.95.00/- | K93: 95.00 | L93: 26.39% | M93: Successful | N93: 2015-01-20
A94: 21 | B94: 2015-01-08 | D94: NRB Bearing | E94: Buy | F94: 130.00 | H94: 175.5 | I94: 165.00 | J94: Profit of Rs 45.50/- | K94: 45.50 | L94: 35.00% | M94: Successful | N94: 2017-12-19
A95: 22 | B95: 2015-02-05 | D95: GSFC | E95: Accu | F95: 98.00 | H95: 120 | I95: 120.00 | J95: Target Achieved | K95: 22.00 | L95: 22.45% | M95: Successful | N95: 2017-01-18
A96: 23 | B96: 2015-02-05 | D96: Sundrmfast | E96: Accu | F96: 196.00 | H96: 262 | I96: 255.00 | J96: Target Achieved | K96: 66.00 | L96: 33.67% | M96: Successful | N96: 2016-08-17
A97: 24 | B97: 2015-03-04 | D97: GPPL | E97: Accu | F97: 235 | H97: 77.00 | I97: 280-285 | J97: Loss of Rs.158/- | K97: -158.00 | L97: -67.23% | M97: Unsuccessful | N97: 2019-02-26
A98: 25 | B98: 2015-03-04 | D98: ORIENTCEM | E98: Accu | F98: 185.00 | H98: 224 | I98: 220-225 | J98: Target Achieved | K98: 39.00 | L98: 21.08% | M98: Successful | N98: 2016-10-04
A99: 26 | B99: 2015-03-27 | D99: PFS | E99: Accu | F99: 49.5 | H99: 15.85 | I99: 67.00 | J99: Loss of Rs.33.65/- | K99: -33.65 | L99: -68% | M99: Unsuccessful | N99: 2019-06-11
A100: 27 | B100: 2015-03-30 | D100: Walchandnagar Ind Ltd | E100: Accu | F100: 183.50 | H100: 219 | I100: 218.00 | J100: Profit of Rs.35.50/- | K100: 35.50 | L100: 19.35% | M100: Successful | N100: 2015-04-09
A101: 28 | B101: 2015-04-20 | D101: Kalpataru Power Transmission Ltd | E101: Accu | F101: =(227+237)/2 -> 232.00 | H101: 298 | I101: 298.00 | J101: Target Achieved | K101: 66.00 | L101: 28.45% | M101: Successful | N101: 2017-03-29
A102: 29 | B102: 2015-05-04 | D102: Mastek Ltd | E102: Buy | F102: 385.00 | H102: =212.5+331 -> 543.5 | I102: 510.00 | J102: Profit of Rs 158.50/- | K102: 158.50 | L102: 41.17% | M102: Successful | N102: 2015-08-19
A103: 30 | B103: 2015-05-04 | D103: Suprajit Eng | E103: Buy | F103: 115.50 | H103: 146 | I103: 142.00 | J103: Profit of Rs 30.50/- | K103: 30.50 | L103: 26.41% | M103: Successful | N103: 2015-07-17
A104: 31 | B104: 2015-05-27 | D104: TCI | E104: Buy | F104: 237.50 | H104: 279.5 | I104: 278.00 | J104: Target Achieved | K104: 42.00 | L104: 17.68% | M104: Successful | N104: 2015-08-06
A105: 32 | B105: 2015-06-19 | D105: HSIL | E105: Accu | F105: 340.00 | H105: 448 | I105: 448.00 | J105: Target Achieved | K105: 108.00 | L105: 31.76% | M105: Successful | N105: 2017-10-10
A106: 33 | B106: 2015-07-06 | D106: Capital First | E106: Accu | F106: 390.00 | H106: 460 | I106: 460.00 | J106: Target Achieved | K106: =H106-F106 -> 70.00 | L106: =K106/F106 -> 17.95% | M106: Successful | N106: 2016-04-18
A107: 34 | B107: 2015-07-10 | D107: Dolphin OffShore | E107: Accu | F107: 122.5 | H107: 61.00 | I107: 172.00 | J107: Loss of Rs.61.50/- | K107: -61.50 | L107: -50.20% | M107: Unsuccessful | N107: 2018-08-21
A108: 35 | B108: 2015-08-03 | D108: Allcargo logistics | E108: Accu | F108: 297.50 | H108: 350 | I108: 360.00 | J108: Profit of Rs 52.50/- | K108: 52.50 | L108: 17.65% | M108: Successful | N108: 2015-08-16
A109: 36 | B109: 2015-08-03 | D109: Camline Fine | E109: Accu | F109: 115.50 | H109: 149 | I109: 140.00 | J109: Profit of Rs 33.50/- | K109: 33.50 | L109: 29.00% | M109: Successful | N109: 2017-01-05
A110: 37 | B110: 2015-09-04 | D110: TCI | E110: Accu | F110: 226.00 | H110: 292 | I110: 292.00 | J110: Target Achieved | K110: 66.00 | L110: 29.20% | M110: Successful | N110: 2015-10-09
A111: 38 | B111: 2015-09-07 | D111: Kalpataru Power Transmission Ltd | E111: Accu | F111: 232.50 | H111: 312.5 | I111: 310.00 | J111: Target Achieved | K111: 80.00 | L111: 34.41% | M111: Successful | N111: 2017-03-29
A112: 39 | B112: 2015-09-21 | D112: LLOYD ELECTRIC & ENG LTD | E112: Accu | F112: 196.50 | H112: 238 | I112: 238.00 | J112: Target Achieved | K112: 41.50 | L112: 21.12% | M112: Successful | N112: 2015-10-14
A113: 40 | B113: 2015-09-24 | D113: L&T Finance Holding | E113: Accu | F113: 65.00 | H113: 82 | I113: 82.00 | J113: Target Achieved | K113: 17.00 | L113: 26.15% | M113: Successful | N113: 2016-07-27
A114: 41 | B114: 2015-10-14 | D114: KEC International ltd | E114: Accu | F114: 144.00 | H114: 182.5 | I114: 181.00 | J114: Target Achieved | K114: 38.50 | L114: 26.74% | M114: Successful | N114: 2017-03-23
A115: 42 | B115: 2015-10-14 | D115: Gruh Finance | E115: Accu | F115: 264.00 | H115: 311 | I115: 311.00 | J115: Target Achieved | K115: 47.00 | L115: 17.80% | M115: Successful | N115: 2016-08-22
A116: 43 | B116: 2015-11-10 | D116: Pidilitind | E116: Buy | F116: 549.50 | H116: 630 | I116: 630.00 | J116: Target Achieved | K116: 80.50 | L116: 14.65% | M116: Successful | N116: 2016-02-19
A117: 44 | B117: 2015-12-04 | D117: Zensar Technology | E117: Accu | F117: 1027.50 | H117: 1315 | I117: 1250.00 | J117: Target Achieved | K117: 287.50 | L117: 27.98% | M117: Successful | N117: 2018-05-24
A118: 45 | B118: 2015-12-29 | D118: Vinati Organics Ltd | E118: Accu | F118: 465.00 | H118: 540 | I118: 540.00 | J118: Target Achieved | K118: 75.00 | L118: 16.13% | M118: Successful | N118: 2016-06-09
A119: 46 | B119: 2016-01-11 | D119: GSFC | E119: Buy | F119: 81.00 | H119: 110 | I119: 110.00 | J119: Target Achieved | K119: 29.00 | L119: 35.80% | M119: Successful | N119: 2017-01-10
A120: 47 | B120: 2016-01-13 | D120: SSWL | E120: Buy | F120: 417.50 | H120: 547 | I120: 535.00 | J120: Target Achieved | K120: 129.50 | L120: 31.02% | M120: Successful | N120: 2016-07-27
A121: 48 | B121: 2016-02-08 | D121: Persistent System Ltd | E121: Accu | F121: 650.00 | H121: 800 | I121: 800.00 | J121: Target Achieved | K121: 150.00 | L121: 23.08% | M121: Successful | N121: 2018-02-23
A122: 49 | B122: 2016-03-04 | D122: UPL | E122: Accu | F122: 437.50 | H122: 504.5 | I122: 522.00 | J122: Profit of Rs.67/- | K122: 67.00 | L122: 15.31% | M122: Successful | N122: 2016-04-20
A123: 50 | B123: 2016-03-09 | D123: Ashoka Buildcon Ltd | E123: Accu | F123: 189.50 | H123: 218 | I123: 218.00 | J123: Target Achieved | K123: 28.50 | L123: 15.04% | M123: Successful | N123: 2017-10-26
A124: 51 | B124: 2016-04-11 | D124: PTC INDIA FIN SERV LTD | E124: Accu | F124: 36.5 | H124: 15.85 | I124: 60.00 | J124: Loss of Rs.20.65/- | K124: -20.65 | L124: -56.58% | M124: Unsuccessful | N124: 2019-06-11
A125: 52 | B125: 2016-04-12 | D125: CAMLINFINE $ | E125: Accu | F125: 93.00 | H125: 149 | I125: 140.00 | J125: Profit of Rs 56/- | K125: 56.00 | L125: 60.22% | M125: Successful | N125: 2017-01-05
A126: 53 | B126: 2016-04-12 | D126: Greaves Cotton Ltd. | E126: Accu | F126: 130.00 | H126: 150 | I126: 150-155 | J126: Target Achieved | K126: 20.00 | L126: 15.38% | M126: Successful | N126: 2016-07-13
A127: 54 | B127: 2016-04-13 | D127: DHFL | E127: Accu | F127: 196.00 | H127: 299 | I127: 299.00 | J127: Target Achieved | K127: 103.00 | L127: 52.55% | M127: Successful | N127: 2016-09-07
A128: 55 | B128: 2016-04-13 | D128: Magma | E128: Accu | F128: 88.00 | H128: 103 | I128: 103.00 | J128: Target Achieved | K128: 15.00 | L128: 17.05% | M128: Successful | N128: 2016-06-09
A129: 56 | B129: 2016-05-02 | D129: KEC International ltd $ | E129: Accu | F129: 127.50 | H129: 148 | I129: 148-150 | J129: Target Achieved | K129: =H129-F129 -> 20.50 | L129: =K129/F129 -> 16.08% | M129: Successful | N129: 2016-07-13
A130: 57 | B130: 2016-05-03 | D130: Mindtree | E130: Accu | F130: 675.00 | H130: 815 | I130: 790-800 | J130: Target Achieved | K130: =H130-F130 -> 140.00 | L130: =K130/F130 -> 20.74% | M130: Successful | N130: 2018-02-23
A131: 58 | B131: 2016-06-01 | D131: Atulauto | E131: Accu | F131: 500 | H131: 232.50 | I131: 565-570 | J131: Loss of Rs.267.50 /- | K131: =H131-F131 -> -267.50 | L131: =K131/F131 -> -53.50% | M131: Unsuccessful | N131: 2019-09-27
A132: 59 | B132: 2016-06-06 | D132: TRITURBINE | E132: Accu | F132: 110.00 | H132: 126.5 | I132: 125.00 | J132: Profit of Rs.16.50/- | K132: =H132-F132 -> 16.50 | L132: =K132/F132 -> 15.00% | M132: Successful | N132: 2016-07-01
A133: 60 | B133: 2016-06-17 | D133: Pennar Industries Ltd | E133: Accu | F133: 44.00 | H133: 69.5 | I133: 69.50 | J133: Profit of Rs.25.50/- | K133: =H133-F133 -> 25.50 | L133: =K133/F133 -> 57.95% | M133: Successful | N133: 2017-08-30
A134: 61 | B134: 2016-06-28 | D134: EVEREADY | E134: Accu | F134: 262.50 | H134: 340 | I134: 333.00 | J134: Profit of Rs.77.50/- | K134: 77.50 | L134: 29.52% | M134: Successful | N134: 2017-10-09
A135: 62 | B135: 2016-06-28 | D135: FIEMIND | E135: Accu | F135: 840.00 | H135: 1230 | I135: 1230.00 | J135: Target Achieved | K135: 390.00 | L135: 46.43% | M135: Successful | N135: 2016-10-06
A136: 63 | B136: 2016-07-05 | D136: Bajaj Corp Ltd | E136: Accu | F136: 395 | H136: =(468.5+342.5)/2 -> 405.50 | I136: 510.00 | J136: Profit of Rs.10.50/- | K136: =H136-F136 -> 10.50 | L136: =K136/F136 -> 3% | M136: Neutral | N136: 2019-05-21
A137: 64 | B137: 2016-08-02 | D137: GPPL $ | E137: Buy | F137: =169.5-12.8 -> 156.7 | H137: 77.00 | I137: 198-200 | J137: Loss of Rs.79.7/- | K137: -79.70 | L137: -50.86% | M137: Unsuccessful | N137: 2019-02-26
A138: 65 | B138: 2016-08-04 | D138: WONDERLA HOLIDAYS LTD | E138: Accu | F138: 400 | H138: 305.00 | I138: 475.00 | J138: Loss of Rs.95/- | K138: -95.00 | L138: -23.75% | M138: Unsuccessful | N138: 2019-05-21
A139: 66 | B139: 2016-08-11 | D139: CAMLINFINE | E139: Accu | F139: 86.50 | H139: 130 | I139: 130.00 | J139: Profit of Rs.43.50/- | K139: 43.50 | L139: 50.29% | M139: Successful | N139: 2017-12-22
A140: 67 | B140: 2016-08-18 | D140: GRANULES | E140: Accu | F140: 133.5 | H140: 126.50 | I140: 178.00 | J140: Exit | K140: -7.00 | L140: -5.24% | M140: Unsuccessful | N140: 2016-09-02
A141: 68 | B141: 2016-08-31 | D141: VA TECH WABAG | E141: Accu | F141: 560.00 | H141: 725 | I141: 725.00 | J141: Target Achieved | K141: 165.00 | L141: 29.46% | M141: Successful | N141: 2016-03-27
A142: 69 | B142: 2016-09-01 | D142: SKIPPER LIMITED | E142: Accu | F142: 160.50 | H142: 210 | I142: 210.00 | J142: Target Achieved | K142: 49.50 | L142: 30.84% | M142: Successful | N142: 2017-05-16
A143: 70 | B143: 2016-10-03 | D143: IFBIND | E143: Accu | F143: 430.00 | H143: 596 | I143: 575.00 | J143: Profit of Rs.166/- | K143: 166.00 | L143: 38.60% | M143: Successful | N143: 2017-02-03
A144: 71 | B144: 2016-10-14 | D144: ASIANTILES | E144: Accu | F144: 280.00 | H144: 345 | I144: 345.00 | J144: Target Achieved | K144: =H144-F144 -> 65.00 | L144: =K144/F144 -> 23.21% | M144: Successful | N144: 2017-03-20
A145: 72 | B145: 2016-10-14 | D145: DEEPIND | E145: Accu | F145: 245.00 | H145: 325.5 | I145: 330.00 | J145: Profit of Rs.80.5/- | K145: 80.50 | L145: =K145/F145 -> 32.86% | M145: Successful | N145: 2017-02-03
A146: 73 | B146: 2016-10-17 | D146: DCBBANK | E146: Accu | F146: 125.00 | H146: 160 | I146: 160.00 | J146: Target Achieved | K146: 35.00 | L146: 28.00% | M146: Successful | N146: 2017-03-09
A147: 74 | B147: 2016-10-17 | D147: ORIENTREF | E147: Accu | F147: 114.00 | H147: 145 | I147: 145.00 | J147: Target Achieved | K147: 31.00 | L147: =K147/F147 -> 27.19% | M147: Successful | N147: 2017-05-04
A148: 75 | B148: 2016-10-17 | D148: GANECOS | E148: Accu | F148: 212.00 | H148: 280 | I148: 276.00 | J148: Profit of Rs.68/- | K148: 68.00 | L148: =K148/F148 -> 32.08% | M148: Successful | N148: 2017-05-03
A149: 76 | B149: 2016-11-04 | D149: NBCC | E149: Accu | F149: 155.00 | H149: 210 | I149: 210.00 | J149: Profit of Rs.55/- | K149: 55.00 | L149: =K149/F149 -> 35.48% | M149: Successful | N149: 2017-07-28
A150: 77 | B150: 2016-12-06 | D150: PRECAM | E150: Accu | F150: 150.5 | H150: 72.50 | I150: 174.00 | J150: Loss of Rs.78/- | K150: -78.00 | L150: -51.83% | M150: Unsuccessful | N150: 2018-08-21
A151: 78 | B151: 2016-12-08 | D151: INFRATEL | E151: Accu | F151: 380.00 | H151: 478 | I151: 468.00 | J151: Target Achieved | K151: =H151-F151 -> 98.00 | L151: =K151/F151 -> 25.79% | M151: Successful | N151: 2017-10-17
A152: 79 | B152: 2016-12-30 | D152: GODREJPROP | E152: Accu | F152: 305.00 | H152: 375 | I152: 375.00 | J152: Target Achieved | K152: =H152-F152 -> 70.00 | L152: =K152/F152 -> 22.95% | M152: Successful | N152: 2017-02-02
A153: 80 | B153: 2017-01-04 | D153: DEEPAKNTR | E153: Accu | F153: 99.50 | H153: 158 | I153: 158.00 | J153: Target Achieved | K153: =H153-F153 -> 58.50 | L153: =K153/F153 -> 58.79% | M153: Successful | N153: 2017-06-12
A154: 81 | B154: 2017-01-04 | D154: DEEPAKNTR | E154: Accu | F154: 99.50 | H154: 158 | I154: 158.00 | J154: Target Achieved | K154: 58.50 | L154: 58.79% | M154: Successful | N154: 2017-06-12
A155: 82 | B155: 2017-02-20 | D155: RECLTD | E155: Accu | F155: 140.50 | H155: 220 | I155: 220.00 | J155: Target Achieved | K155: =H155-F155 -> 79.50 | L155: =K155/F155 -> 56.58% | M155: Successful | N155: 2017-05-09
A156: 83 | B156: 2017-02-20 | D156: SUBROS | E156: Accu | F156: 202.50 | H156: 234 | I156: 234.00 | J156: Target Achieved | K156: 31.50 | L156: 15.56% | M156: Successful | N156: 2017-04-11
A157: 84 | B157: 2017-03-24 | D157: VRLLOG | E157: Accu | F157: 300.50 | H157: 417.5 | I157: 420.00 | J157: Profit of Rs.117/- | K157: =H157-F157 -> 117.00 | L157: =K157/F157 -> 38.94% | M157: Successful | N157: 2017-12-01
A158: 85 | B158: 2017-03-24 | D158: FIEMIND | E158: Accu | F158: 850.00 | H158: 1042.5 | I158: 1023.00 | J158: Profit of Rs 192.50/- | K158: 192.50 | L158: 22.65% | M158: Successful | N158: 2017-04-05
A159: 86 | B159: 2017-04-05 | D159: RATNAMANI | E159: Accu | F159: 785.00 | H159: 930 | I159: 920.00 | J159: Profit of Rs.145/- | K159: =H159-F159 -> 145.00 | L159: =K159/F159 -> 18.47% | M159: Successful | N159: 2017-08-29
A160: 87 | B160: 2017-04-06 | D160: ZEEMEDIA | E160: Accu | F160: 40 | H160: 13.10 | I160: 60.00 | J160: Loss of Rs.26.9/- | K160: -26.90 | L160: -67.25% | M160: Unsuccessful | N160: 2018-02-07
A161: 88 | B161: 2017-04-12 | D161: DABUR | E161: Accu | F161: 289.50 | H161: 354 | I161: 360.00 | J161: Profit of Rs.64.5/- | K161: =H161-F161 -> 64.50 | L161: =K161/F161 -> 22.28% | M161: Successful | N161: 2017-11-01
A162: 89 | B162: 2017-04-20 | D162: KPRMILL | E162: Accu | F162: 700.00 | H162: 840 | I162: 840.00 | J162: Profit of Rs.140/- | K162: 140.00 | L162: 20.00% | M162: Successful | N162: 2017-06-07
A163: 90 | B163: 2017-06-01 | D163: ESSELPACK | E163: Accu | F163: 130.00 | H163: 144.25 | I163: 170.00 | J163: Profit of Rs.14.25/- | K163: 14.25 | L163: 10.96% | M163: Successful | N163: 2019-07-29
A164: 91 | B164: 2017-06-15 | D164: KEI | E164: Accu | F164: 214.50 | H164: 262 | I164: 262.00 | J164: Profit of Rs.47.5/- | K164: 47.50 | L164: 22.14% | M164: Successful | N164: 2017-08-30
A165: 92 | B165: 2017-07-17 | D165: MAYURUNIQ | E165: Accu | F165: 370.00 | H165: 447.5 | I165: 450.00 | J165: Target Achieved | K165: 77.50 | L165: 20.95% | M165: Successful | N165: 2017-10-27
A166: 93 | B166: 2017-07-27 | D166: RAMCOCEM | E166: Accu | F166: 657.50 | H166: 825 | I166: 820.00 | J166: Target Achieved | K166: 167.50 | L166: 25.48% | M166: Successful | N166: 2017-12-21
A167: 94 | B167: 2017-08-17 | D167: FINPIPE | E167: Accu | F167: 605.00 | H167: 750 | I167: 750.00 | J167: Profit of Rs.145/- | K167: 145.00 | L167: 23.97% | M167: Successful | N167: 2017-10-19
A168: 95 | B168: 2017-09-01 | D168: SHK | E168: Accu | F168: 255 | H168: 217.25 | I168: 320.00 | J168: Loss of Rs.37.75/- | K168: -37.75 | L168: -15% | M168: Unsuccessful | N168: 2019-07-15
A169: 96 | B169: 2017-09-19 | D169: SKIPPER | E169: Accu | F169: 215.00 | H169: 258 | I169: 258.00 | J169: Target Achieved | K169: 43.00 | L169: 20.00% | M169: Successful | N169: 2017-11-01
A170: 97 | B170: 2017-09-19 | D170: SKIPPER | E170: Accu | F170: 215.00 | H170: 258 | I170: 258.00 | J170: Target Achieved | K170: 43.00 | L170: 20.00% | M170: Successful | N170: 2017-11-01
A171: 98 | B171: 2017-09-20 | D171: CAMLINFINE$ | E171: Accu | F171: 75.00 | H171: 90 | I171: 90.00 | J171: Profit of Rs.15.00/- | K171: =H171-F171 -> 15.00 | L171: =K171/F171 -> 20.00% | M171: Successful | N171: 2017-10-11
A172: 99 | B172: 2017-10-03 | D172: GNA | E172: Accu | F172: 315.00 | H172: 392 | I172: 384.00 | J172: Profit of Rs.77/- | K172: 77.00 | L172: 24.44% | M172: Successful | N172: 2017-10-09
A173: 100 | B173: 2017-10-05 | D173: NOCIL | E173: Accu | F173: 145.00 | H173: 179 | I173: 180.00 | J173: Profit of Rs.34/- | K173: 34.00 | L173: 23.45% | M173: Successful | N173: 2017-10-17
A174: 101 | B174: 2017-10-06 | D174: CENTURYPLY | E174: Accu | F174: 256.00 | H174: 323 | I174: 320.00 | J174: Target Achieved | K174: 67.00 | L174: 26.17% | M174: Successful | N174: 2017-11-28
A175: 102 | B175: 2017-10-09 | D175: EIHOTEL | E175: Accu | F175: 137.50 | H175: 184 | I175: 183.00 | J175: Profit of Rs.46.5/- | K175: 46.50 | L175: 33.82% | M175: Successful | N175: 2018-01-08
A176: 103 | B176: 2017-10-10 | D176: NRBBEARING | E176: Accu | F176: 125.50 | H176: 158 | I176: 155.00 | J176: Profit of Rs.32.5/- | K176: 32.50 | L176: 25.90% | M176: Successful | N176: 2017-11-28
A177: 104 | B177: 2017-10-10 | D177: BOROSIL | E177: Accu | F177: 895.00 | H177: 1122.5 | I177: 1078.00 | J177: Profit of Rs.227.5/- | K177: 227.50 | L177: 25.42% | M177: Successful | N177: 2018-01-17
A178: 105 | B178: 2017-10-12 | D178: CYIENT | E178: Accu | F178: 525.00 | H178: 629 | I178: 629.00 | J178: Target Achieved | K178: 104.00 | L178: 19.81% | M178: Successful | N178: 2018-01-19
A179: 106 | B179: 2017-11-07 | D179: HATSUN | E179: Accu | F179: 740.00 | H179: 892.5 | I179: 900.00 | J179: Profit of Rs.152.5/- | K179: =H179-F179 -> 152.50 | L179: =K179/F179 -> 20.61% | M179: Successful | N179: 2017-11-13
A180: 107 | B180: 2017-12-04 | D180: SANGHIIND | E180: Accu | F180: 118.50 | H180: 143.5 | I180: 145.00 | J180: Profit of Rs.25/- | K180: =H180-F180 -> 25.00 | L180: =K180/F180 -> 21.10% | M180: Successful | N180: 2017-12-28
A181: 108 | B181: 2017-12-21 | D181: KAJARIACER | E181: Accu | F181: 715 | H181: 500.00 | I181: 872.00 | J181: Loss of Rs.215/- | K181: =H181-F181 -> -215.00 | L181: =K181/F181 -> -30.07% | M181: Unsuccessful | N181: 2019-07-24
A182: 109 | B182: 2017-12-29 | D182: GNA | E182: Accu | F182: 435.00 | H182: 542.5 | I182: 539.00 | J182: Target Achieved | K182: 107.50 | L182: 24.71% | M182: Successful | N182: 2018-04-16
A183: 110 | B183: 2017-12-29 | D183: ZENSARTECH | E183: Accu | F183: 885.00 | H183: 1090 | I183: 1084.00 | J183: Target Achieved | K183: 205.00 | L183: 23.16% | M183: Successful | N183: 2018-04-23
A184: 111 | B184: 2018-04-02 | D184: EVERESTIND | E184: Accu | F184: 478.50 | H184: 442 | I184: 613.00 | J184: Loss of Rs.36.50 /- | K184: =H184-F184 -> -36.50 | L184: =K184/F184 -> -7.63% | M184: Unsuccessful | N184: 2019-10-24
A185: 112 | B185: 2018-04-04 | D185: GPPL$ | E185: Accu | F185: =141.5-7.3 -> 134.2 | H185: 77.00 | I185: 180.00 | J185: Loss of Rs.57.2/- | K185: =H185-F185 -> -57.20 | L185: =K185/F185 -> -42.62% | M185: Unsuccessful | N185: 2019-02-26
A186: 113 | B186: 2018-04-19 | D186: MANPASAND | E186: Accu | F186: 430 | H186: 220.00 | I186: 537.00 | J186: Loss of Rs.210/- | K186: =H186-F186 -> -210.00 | L186: =K186/F186 -> -48.84% | M186: Unsuccessful | N186: 2018-06-01
A187: 114 | B187: 2018-04-30 | D187: HEIDELBERG | E187: Accu | F187: 153.50 | H187: 196.00 | I187: 196.00 | J187: Profit of Rs.42.50/- | K187: =H187-F187 -> 42.50 | L187: =K187/F187 -> 28% | M187: Successful | N187: 2019-05-20
A188: 115 | B188: 2018-07-25 | D188: ZEEMEDIA | E188: Accu | F188: 27.5 | H188: 13.10 | I188: 60.00 | J188: Loss of Rs.14.40/- | K188: -14.40 | L188: -52.36% | M188: Unsuccessful | N188: 2018-02-07
A189: 116 | B189: 2018-08-06 | D189: GABRIEL | E189: Accu | F189: 148.5 | H189: 102 | I189: 182.00 | J189: Loss of Rs.46.50/- | K189: =H189-F189 -> -46.50 | L189: =K189/F189 -> -31.31% | M189: Unsuccessful | N189: 2019-07-15
A190: 117 | B190: 2018-08-23 | D190: INDIANHUME | E190: Accu | F190: 285 | H190: 355 | I190: 364.00 | J190: Profit of Rs.70/- | K190: 70.00 | L190: 24.56% | M190: Successful | N190: 2018-12-21
A191: 118 | B191: 2018-08-29 | D191: GRINDWELL | E191: Accu | F191: 525 | H191: 585 | I191: 635.00 | J191: Profit of Rs.60- | K191: =H191-F191 -> 60.00 | L191: =K191/F191 -> 11.43% | M191: Successful | N191: 2019-07-16
A192: 119 | B192: 2018-10-22 | D192: FINPIPE | E192: Accu | F192: 475 | H192: 574 | I192: 570.00 | J192: Target Achieved | K192: 99.00 | L192: 20.84% | M192: Successful | N192: 2018-10-30
A193: 120 | B193: 2018-10-24 | D193: GULFOILLUB | E193: Accu | F193: 707.5 | H193: 872 | I193: 872.00 | J193: Target Achieved | K193: 164.50 | L193: 23.25% | M193: Successful | N193: 2019-01-17
A194: 121 | B194: 2018-10-25 | D194: DBCORP | E194: Accu | F194: 162 | H194: 204 | I194: 209.00 | J194: Profit of Rs.42/- | K194: 42.00 | L194: 25.93% | M194: Successful | N194: 2019-03-15
A195: 122 | B195: 2018-10-26 | D195: RITES | E195: Accu | F195: 240 | H195: 297 | I195: 297.00 | J195: Target Achieved | K195: 57.00 | L195: 23.75% | M195: Successful | N195: 2018-11-13
A196: 123 | B196: 2018-12-05 | D196: BRIGADE | E196: Accu | F196: 202.5 | H196: 255 | I196: 252.00 | J196: Target Achieved | K196: 52.50 | L196: 25.93% | M196: Successful | N196: 2019-03-18 | R196: V
A197: 124 | B197: 2018-12-31 | D197: JKCEMENT | E197: Accu | F197: 710 | H197: 866 | I197: 866.00 | J197: Target Achieved | K197: 156.00 | L197: 21.97% | M197: Successful | N197: 2019-03-29 | R197: V
A198: 125 | B198: 2019-02-26 | D198: MARICO | E198: Accu | F198: 337.25 | H198: 398.5 | I198: 411.00 | J198: Profit of Rs.61.25/- | K198: 61.25 | L198: 18.16% | M198: Successful | N198: 2019-10-22 | R198: V
A199: 126 | B199: 2019-04-04 | D199: ITDCEM | E199: Accu | F199: 130 | H199: 65 | I199: 158.00 | J199: Loss of Rs.65 /- | K199: -65.00 | L199: -50.00% | M199: Unsuccessful | N199: 2019-09-18 | R199: K
A200: 127 | B200: 2017-10-09 | D200: RECLTD | E200: Accu | F200: 141.5 | H200: 183.50 | I200: 210.00 | J200: Part Profit of Rs.42/- | K200: 42.00 | L200: 30% | M200: Successful | N200: 2017-11-03 | R200: K
A201: 128 | B201: 2017-12-05 | D201: ALLCARGO | E201: Accu | F201: 172.00 | H201: 155.25 | I201: 230.00 | J201: Loss of Rs.16.75/- | K201: =H201-F201 -> -16.75 | L201: =K201/F201 -> -9.74% | M201: Unsuccessful | N201: 2019-11-18 | R201: K
A202: 129 | B202: 2018-10-25 | D202: GODREJCP | E202: Accu | F202: 698.50 | H202: 850.00 | I202: 890.00 | J202: Part Profit of Rs.151.50/- | K202: 151.50 | L202: 22% | M202: Successful | N202: 2018-12-19 | R202: V
A203: 130 | B203: 2017-05-22 | D203: GREAVESCOT | E203: Accu | F203: 127.6 | H203: 138.00 | I203: 190.00 | J203: Profit of Rs.10.40 | K203: 10.40 | L203: 8% | M203: Successful | N203: 2019-11-05 | R203: K
A204: 131 | B204: 2018-02-27 | D204: MOLDTKPAC | E204: Accu | F204: 317.00 | I204: 398.00 | J204: Open | M204: Open | R204: K
A205: 132 | B205: 2018-03-05 | D205: LICHSGFIN | E205: Accu | F205: =510-14.4 -> 495.60 | H205: 350 | I205: 672.00 | J205: Loss of Rs.145.60/- | K205: =H205-F205 -> -145.60 | L205: =K205/F205 -> -29.38% | M205: Unsuccessful | N205: 2020-02-26 | R205: V
A206: 133 | B206: 2018-05-17 | D206: PHILIPCARB | E206: Accu | F206: 230.30 | H206: 102.5 | I206: 348.00 | J206: Loss of Rs.127.80/- | K206: =H206-F206 -> -127.80 | L206: =K206/F206 -> -55.49% | M206: Unsuccessful | N206: 2020-03-06 | R206: V
A207: 134 | B207: 2018-06-07 | D207: KEC | E207: Accu | F207: =342.5-5.1 -> 337.40 | I207: 439.00 | J207: Open | M207: Open | R207: K
A208: 135 | B208: 2018-07-04 | D208: ASHOKLEY | E208: Accu | F208: =127.5-5.53 -> 121.97 | I208: 170.00 | J208: Open | M208: Open | R208: V
A209: 136 | B209: 2018-07-13 | D209: FCONSUMER | E209: Accu | F209: 46.50 | H209: 17 | I209: 59.00 | J209: Loss of Rs.29.50/- | K209: =H209-F209 -> -29.50 | L209: =K209/F209 -> -63.44% | M209: Unsuccessful | N209: 2020-02-26 | R209: V
A210: 137 | B210: 2018-10-23 | D210: JKPAPER | E210: Accu | F210: 156.50 | I210: 191.00 | J210: Open | M210: Open | R210: V
A211: 138 | B211: 2018-12-05 | D211: CCL | E211: Accu | F211: 259.50 | I211: 321.00 | J211: Open | M211: Open | R211: V
A212: 139 | B212: 2018-12-05 | D212: VARROC | E212: Accu | F212: 715 | H212: 445 | I212: 840.00 | J212: Loss of Rs.270/- | K212: =H212-F212 -> -270.00 | L212: =K212/F212 -> -37.76% | M212: Unsuccessful | N212: 2019-12-01 | R212: V
A213: 140 | B213: 2019-01-04 | D213: MGL | E213: Accu | F213: 875 | H213: 1165 | I213: 1185.00 | J213: Profit of Rs.290/- | K213: 290.00 | L213: 33.14% | M213: Successful | N213: 2020-01-17 | R213: V
A214: 141 | B214: 2019-04-04 | D214: COCHINSHIP | E214: Accu | F214: =387-14.63 -> 372.37 | H214: 490 | I214: 490.00 | J214: Target Achieved | K214: 117.63 | L214: 31.59% | M214: Successful | N214: 2020-01-20 | R214: V
A215: 142 | B215: 2019-04-23 | D215: MAHINDCIE | E215: Buy | F215: 220 | H215: 127.5 | I215: 284.00 | J215: Loss of Rs.92.50/- | K215: -92.50 | L215: -42.05% | M215: Unsuccessful | N215: 2020-03-06 | R215: V
A216: 143 | B216: 2019-06-06 | D216: RADICO | E216: Buy | F216: 332.8 | H216: 405 | I216: 419.00 | J216: Profit of Rs.72.20/- | K216: =H216-F216 -> 72.20 | L216: =K216/F216 -> 21.69% | M216: Successful | N216: 2020-01-30 | R216: K
A217: 144 | B217: 2019-06-25 | D217: M&MFIN | E217: Accu | F217: 386 | H217: 395.00 | I217: 452.00 | J217: Profit of Rs.9/- | K217: =H217-F217 -> 9.00 | L217: =K217/F217 -> 2% | M217: Neutral | N217: 2020-02-07 | R217: K
A218: 145 | B218: 2019-08-30 | D218: INDHOTEL | E218: Accu | F218: 135-140 | I218: 190.00 | J218: Open | M218: Open | R218: V
A219: 146 | B219: 2019-09-23 | D219: KNRCON | E219: Accu | F219: 235 | H219: 295 | I219: 296.00 | J219: Profit of Rs.60/- | K219: =H219-F219 -> 60.00 | L219: =K219/F219 -> 25.53% | M219: Successful | N219: 2020-01-14 | R219: K
A220: 147 | B220: 2019-10-14 | D220: KEC$ | E220: Accu | F220: 277.5 | H220: 333 | I220: 333.00 | J220: Profit of Rs.55.50/- | K220: =H220-F220 -> 55.50 | L220: =K220/F220 -> 20.00% | M220: Successful | N220: 2020-01-16 | R220: V
A221: 148 | B221: 2019-10-14 | D221: MGL$ | E221: Accu | F221: 930 | H221: 1165 | I221: 1200.00 | J221: Profit of Rs.235/- | K221: =H221-F221 -> 235.00 | L221: =K221/F221 -> 25.27% | M221: Successful | N221: 2020-01-17 | R221: K
A222: 149 | B222: 2019-10-15 | D222: JKPAPER$ | E222: Accu | F222: 111.00 | I222: 141.00 | J222: Open | M222: Open | R222: K
A223: 150 | B223: 2019-10-15 | D223: RADICO$ | E223: Accu | F223: 296.00 | H223: 370 | I223: 370.00 | J223: Target Achieved | K223: =H223-F223 -> 74.00 | L223: =K223/F223 -> 25.00% | M223: Successful | N223: 2020-01-23 | R223: K
A224: 151 | B224: 2019-10-16 | D224: MOLDTKPAC$ | E224: Accu | F224: 298-302 | I224: 344.00 | J224: Open | M224: Open | R224: K
A225: 152 | B225: 2020-01-02 | D225: PSPPROJECT | E225: Accu | F225: 490-500 | I225: 590.00 | J225: Open | M225: Open | R225: K
A226: 153 | B226: 2020-05-15 | D226: BEL | E226: Accu | F226: 67.50 | H226: 86 | I226: 86.00 | J226: Profit of Rs.18.50/- | K226: =H226-F226 -> 18.50 | L226: =K226/F226 -> 27.41% | M226: Successful | N226: 2020-06-26 | R226: K
A227: 154 | B227: 2020-07-23 | D227: RITES | E227: Accu | F227: 244-249 | I227: 296.00 | J227: Open | R227: K
A228: 155 | B228: 2020-09-18 | D228: IEX | E228: Accu | F228: 206 | H228: 248 | I228: 248.00 | J228: Target Achieved | K228: =H228-F228 -> 42.00 | L228: =K228/F228 -> 20.39% | M228: Successful | N228: 2021-01-18 | R228: K
A229: 156 | B229: 2020-11-05 | D229: IEX | E229: Accu | F229: 182.5 | H229: 248 | I229: 248.00 | J229: Target Achieved | K229: 65.50 | L229: 35.89% | M229: Successful | N229: 2021-01-18 | R229: K
A230: 157 | B230: 2020-11-05 | D230: CCL | E230: Accu | F230: 245-250 | I230: 320.00 | J230: Open | R230: K
A231: 158 | B231: 2020-11-05 | D231: POLYCAB | E231: Accu | F231: 925.00 | H231: 1095 | I231: 1093.00 | J231: Profit of Rs.170/- | K231: =H231-F231 -> 170.00 | L231: =K231/F231 -> 18.38% | M231: Successful | N231: 2021-01-05 | R231: K
A232: 159 | B232: 2020-11-05 | D232: COCHINSHIP | E232: Accu | F232: 330-335 | I232: 406.00 | J232: Open | R232: K
A233: 160 | B233: 2020-11-06 | D233: RITES | E233: Accu | F233: 237.5-242.5 | I233: 290.00 | J233: Open | R233: K
A234: 161 | B234: 2020-12-22 | D234: MIDHANI | E234: Accu | F234: 187-193 | I234: 239.00 | J234: Open | R234: K
... 1 more rows
